BIOGUIDE_ID,OFFICE,QUARTER,CATEGORY,DATE,PAYEE,START DATE,END DATE,PURPOSE,AMOUNT,YEAR,TRANSCODE,TRANSCODELONG,RECORDID,RECIP (orig.)
,OFFICE OF THE SPEAKER,2013Q3,PERSONNEL BENEFITS,07-31,HON. JOHN A. BOEHNER,07/01/13,07/31/13,OFFICIAL EXPENSES FOR LEADERS,"2,083.33",2013,AP,Accounts payable,00680596,HON. JOHN A. BOEHNER
,OFFICE OF THE SPEAKER,2013Q3,PERSONNEL BENEFITS,08-31,HON. JOHN A. BOEHNER,08/01/13,08/31/13,OFFICIAL EXPENSES FOR LEADERS,"2,083.33",2013,AP,Accounts payable,00685591,HON. JOHN A. BOEHNER
,OFFICE OF THE SPEAKER,2013Q3,PERSONNEL BENEFITS,09-30,HON. JOHN A. BOEHNER,09/01/13,09/30/13,OFFICIAL EXPENSES FOR LEADERS,"2,083.33",2013,AP,Accounts payable,00685695,HON. JOHN A. BOEHNER
,OFFICE OF THE SPEAKER,2013Q3,PERSONNEL COMPENSATION,"","ANDREWS,THOMAS S",07/01/13,09/30/13,SENIOR STAFF ASSISTANT,"10,500.00",2013,"","","","ANDREWS,THOMAS S"
,OFFICE OF THE SPEAKER,2013Q3,PERSONNEL COMPENSATION,"","ANDREWS,THOMAS S",06/01/13,07/31/13,SENIOR STAFF ASSISTANT (OVERTIME),"2,176.41",2013,"","","","ANDREWS,THOMAS S"
,OFFICE OF THE SPEAKER,2013Q3,PERSONNEL COMPENSATION,"","AVONDOGLIO,BRYANT J",07/01/13,07/31/13,ADVANCE & DIGITAL PRODUC MGR,"6,666.67",2013,"","","","AVONDOGLIO,BRYANT J"
,OFFICE OF THE SPEAKER,2013Q3,PERSONNEL COMPENSATION,"","BAILEY,BRADLEY",09/01/13,09/30/13,ASSIST TO SPEAKER FOR POLICY,"10,000.00",2013,"","","","BAILEY,BRADLEY"
,OFFICE OF THE SPEAKER,2013Q3,PERSONNEL COMPENSATION,"","BECKER,ALEXANDER M",07/01/13,09/30/13,STAFF ASSISTANT,"8,000.01",2013,"","","","BECKER,ALEXANDER M"
,OFFICE OF THE SPEAKER,2013Q3,PERSONNEL COMPENSATION,"","BECKER,ALEXANDER M",06/01/13,07/31/13,STAFF ASSISTANT (OVERTIME),"1,448.06",2013,"","","","BECKER,ALEXANDER M"
,OFFICE OF THE SPEAKER,2013Q3,PERSONNEL COMPENSATION,"","BENJAMIN, WILLIAM C",07/01/13,09/30/13,DIR OF INFORMATION TECHNOLOGY,"23,250.00",2013,"","","","BENJAMIN, WILLIAM C"
,OFFICE OF THE SPEAKER,2013Q3,PERSONNEL COMPENSATION,"","BLAKE,KRISTENE",07/01/13,09/30/13,DIRECTOR OF SCHDLNG/EXEC ASST,"24,999.99",2013,"","","","BLAKE,KRISTENE"
,OFFICE OF THE SPEAKER,2013Q3,PERSONNEL COMPENSATION,"","BOLAND,KEVIN P",07/01/13,08/31/13,SPECIAL ASSISTANT,"6,666.66",2013,"","","","BOLAND,KEVIN P"
,OFFICE OF THE SPEAKER,2013Q3,PERSONNEL COMPENSATION,"","BOLAND,KEVIN P",08/01/13,08/31/13,SPECIAL ASSISTANT (OTHER COMPENSATION),333.33,2013,"","","","BOLAND,KEVIN P"
,OFFICE OF THE SPEAKER,2013Q3,PERSONNEL COMPENSATION,"","BORDEN III, R C",07/01/13,09/30/13,SHARED EMPLOYEE,"42,000.00",2013,"","","","BORDEN III, R C"
,OFFICE OF THE SPEAKER,2013Q3,PERSONNEL COMPENSATION,"","BOYD,KATHRYN E",07/01/13,09/30/13,ASST COMMUNICATIONS DIRECTOR,"20,833.33",2013,"","","","BOYD,KATHRYN E"
,OFFICE OF THE SPEAKER,2013Q3,PERSONNEL COMPENSATION,"","BOZA-HOLMAN, SOFIA M",07/01/13,09/30/13,COMMUNICATIONS ADVISOR,"9,999.99",2013,"","","","BOZA-HOLMAN, SOFIA M"
,OFFICE OF THE SPEAKER,2013Q3,PERSONNEL COMPENSATION,"","BOZA-HOLMAN, SOFIA M",06/01/13,06/30/13,STAFF ASSISTANT (OVERTIME),346.15,2013,"","","","BOZA-HOLMAN, SOFIA M"
,OFFICE OF THE SPEAKER,2013Q3,PERSONNEL COMPENSATION,"","BROWN,MARYAM S",07/01/13,09/30/13,ASST TO SPEAKER FOR POLICY,"42,000.00",2013,"","","","BROWN,MARYAM S"
,OFFICE OF THE SPEAKER,2013Q3,PERSONNEL COMPENSATION,"","BUCK, BRENDAN K",07/01/13,09/30/13,PRESS SECRETARY,"34,500.00",2013,"","","","BUCK, BRENDAN K"
,OFFICE OF THE SPEAKER,2013Q3,PERSONNEL COMPENSATION,"","BUNKER,ANDREW R",07/01/13,09/30/13,FLOOR ASSISTANT,"8,499.99",2013,"","","","BUNKER,ANDREW R"
,OFFICE OF THE SPEAKER,2013Q3,PERSONNEL COMPENSATION,"","CASSIDY, ED",07/01/13,09/30/13,DIRECTOR OF HOUSE OPERATIONS,"42,999.99",2013,"","","","CASSIDY, ED"
,OFFICE OF THE SPEAKER,2013Q3,PERSONNEL COMPENSATION,"","DESTEFANO,JOHN",07/01/13,07/15/13,SENIOR ADVISOR,"6,875.00",2013,"","","","DESTEFANO,JOHN"
,OFFICE OF THE SPEAKER,2013Q3,PERSONNEL COMPENSATION,"","DESTEFANO,JOHN",07/01/13,07/15/13,SENIOR ADVISOR (OTHER COMPENSATION),"6,875.00",2013,"","","","DESTEFANO,JOHN"
,OFFICE OF THE SPEAKER,2013Q3,PERSONNEL COMPENSATION,"","EASBY-SMITH,ANNE S",07/01/13,09/30/13,SPECIAL EVENTS ASSISTANT,"9,249.99",2013,"","","","EASBY-SMITH,ANNE S"
,OFFICE OF THE SPEAKER,2013Q3,PERSONNEL COMPENSATION,"","ECKARD,NASTASHA",07/01/13,09/30/13,ASSIST TO SPEAKER FOR POLICY,"16,749.99",2013,"","","","ECKARD,NASTASHA"
,OFFICE OF THE SPEAKER,2013Q3,PERSONNEL COMPENSATION,"","EICHHORN, JARED D",07/01/13,09/30/13,FLOOR ASSISTANT,"15,000.00",2013,"","","","EICHHORN, JARED D"
,OFFICE OF THE SPEAKER,2013Q3,PERSONNEL COMPENSATION,"","EMBLER, ELIZABETH G",07/01/13,07/31/13,DIRECTOR OF ADVANCE,"6,241.67",2013,"","","","EMBLER, ELIZABETH G"
,OFFICE OF THE SPEAKER,2013Q3,PERSONNEL COMPENSATION,"","EMBLER, ELIZABETH G",08/01/13,09/30/13,DIRECTOR OF MEDIA AFFAIRS,"15,000.00",2013,"","","","EMBLER, ELIZABETH G"
,OFFICE OF THE SPEAKER,2013Q3,PERSONNEL COMPENSATION,"","FINNEGAN,PATRICK",07/01/13,09/30/13,SPECIAL ASSISTANT TO THE SPEAK,"10,749.99",2013,"","","","FINNEGAN,PATRICK"
,OFFICE OF THE SPEAKER,2013Q3,PERSONNEL COMPENSATION,"","FISHBURN, ASHLEY M",06/27/13,09/30/13,SHARED EMPLOYEE,"5,222.23",2013,"","","","FISHBURN, ASHLEY M"
,OFFICE OF THE SPEAKER,2013Q3,PERSONNEL COMPENSATION,"","FRANKS,JESSICA L",07/01/13,09/30/13,STAFF ASSISTANT,"7,500.00",2013,"","","","FRANKS,JESSICA L"
,OFFICE OF THE SPEAKER,2013Q3,PERSONNEL COMPENSATION,"","GILLESPIE,MAURA M",07/01/13,09/30/13,DEPUTY SCHEDULER,"9,999.99",2013,"","","","GILLESPIE,MAURA M"
,OFFICE OF THE SPEAKER,2013Q3,PERSONNEL COMPENSATION,"","GOLE,ALEXANDRA K",07/01/13,07/31/13,STAFF ASSISTANT,"2,333.33",2013,"","","","GOLE,ALEXANDRA K"
,OFFICE OF THE SPEAKER,2013Q3,PERSONNEL COMPENSATION,"","GREEN, JO-MARIE S",07/01/13,08/31/13,GEN COUNSEL & CHIEF OF LEG OPS,"28,750.00",2013,"","","","GREEN, JO-MARIE S"
,OFFICE OF THE SPEAKER,2013Q3,PERSONNEL COMPENSATION,"","GREEN, JO-MARIE S",09/01/13,09/30/13,GEN COUNSEL/CHIEF OF LEG OPS,"14,375.00",2013,"","","","GREEN, JO-MARIE S"
,OFFICE OF THE SPEAKER,2013Q3,PERSONNEL COMPENSATION,"","GREENE,WILLIAM P",07/01/13,09/30/13,DIRECTOR-OUTREACH,"34,608.34",2013,"","","","GREENE,WILLIAM P"
,OFFICE OF THE SPEAKER,2013Q3,PERSONNEL COMPENSATION,"","HALEY, KATHERINE C",07/01/13,09/30/13,ASST TO SPEAKER FOR POLICY,"24,999.99",2013,"","","","HALEY, KATHERINE C"
,OFFICE OF THE SPEAKER,2013Q3,PERSONNEL COMPENSATION,"","HARROUN, TIMOTHY J",07/01/13,09/30/13,MANAGER REPUBLICAN CLOAKROOM,"33,287.49",2013,"","","","HARROUN, TIMOTHY J"
,OFFICE OF THE SPEAKER,2013Q3,PERSONNEL COMPENSATION,"","HENRIQUEZ,RAUL E",07/01/13,09/30/13,STAFF ASSISTANT,"7,500.00",2013,"","","","HENRIQUEZ,RAUL E"
,OFFICE OF THE SPEAKER,2013Q3,PERSONNEL COMPENSATION,"","HENRIQUEZ,RAUL E",06/01/13,07/31/13,STAFF ASSISTANT (OVERTIME),551.67,2013,"","","","HENRIQUEZ,RAUL E"
,OFFICE OF THE SPEAKER,2013Q3,PERSONNEL COMPENSATION,"","HERRLE, CYNTHIA A",07/01/13,09/30/13,ASST TO THE SPEAKER FOR POLICY,"37,500.00",2013,"","","","HERRLE, CYNTHIA A"
,OFFICE OF THE SPEAKER,2013Q3,PERSONNEL COMPENSATION,"","IVANCIC,CHARLOTTE S",07/01/13,09/30/13,ASSIST TO SPEAKER FOR POLICY,"36,249.99",2013,"","","","IVANCIC,CHARLOTTE S"
,OFFICE OF THE SPEAKER,2013Q3,PERSONNEL COMPENSATION,"","KINZEL,WILL C",07/01/13,09/06/13,ASST TO THE SPEAKER FOR POLICY,"22,533.33",2013,"","","","KINZEL,WILL C"
,OFFICE OF THE SPEAKER,2013Q3,PERSONNEL COMPENSATION,"","KINZEL,WILL C",09/01/13,09/06/13,ASST TO THE SPEAKER FOR POLICY (OTHER COMPENSATION),"8,666.67",2013,"","","","KINZEL,WILL C"
,OFFICE OF THE SPEAKER,2013Q3,PERSONNEL COMPENSATION,"","KOLEGO, TREVOR W",07/01/13,07/10/13,DEPUTY DIR MEMBERS SERVICES,"3,611.11",2013,"","","","KOLEGO, TREVOR W"
,OFFICE OF THE SPEAKER,2013Q3,PERSONNEL COMPENSATION,"","KOLEGO, TREVOR W",07/11/13,09/30/13,DIR OF MEMBER SERVICES,"36,666.67",2013,"","","","KOLEGO, TREVOR W"
,OFFICE OF THE SPEAKER,2013Q3,PERSONNEL COMPENSATION,"","LAMPERT,JUSTIN",07/01/13,09/30/13,RESEARCH ASSISTANT,"11,250.00",2013,"","","","LAMPERT,JUSTIN"
,OFFICE OF THE SPEAKER,2013Q3,PERSONNEL COMPENSATION,"","LEOPOLD,PATRICK R",07/01/13,09/30/13,SHARED EMPLOYEE,"20,000.01",2013,"","","","LEOPOLD,PATRICK R"
,OFFICE OF THE SPEAKER,2013Q3,PERSONNEL COMPENSATION,"","LOHMEYER,SONJA M",07/01/13,09/30/13,DIRECTOR OF PUBLIC LIAISON,"32,499.99",2013,"","","","LOHMEYER,SONJA M"
,OFFICE OF THE SPEAKER,2013Q3,PERSONNEL COMPENSATION,"","LOPER,BRETT S",07/01/13,07/19/13,DEPUTY CHIEF OF STAFF,"9,104.17",2013,"","","","LOPER,BRETT S"
,OFFICE OF THE SPEAKER,2013Q3,PERSONNEL COMPENSATION,"","LOPER,BRETT S",07/01/13,07/19/13,DEPUTY CHIEF OF STAFF (OTHER COMPENSATION),"5,270.83",2013,"","","","LOPER,BRETT S"
,OFFICE OF THE SPEAKER,2013Q3,PERSONNEL COMPENSATION,"","LOZUPONE, AMY S",07/01/13,09/30/13,DIRECTOR OF ADMIN OPERATIONS,"42,000.00",2013,"","","","LOZUPONE, AMY S"
,OFFICE OF THE SPEAKER,2013Q3,PERSONNEL COMPENSATION,"","LUKEMAN,KATHERINE A",07/01/13,09/30/13,ASSIST TO THE SPEAKER F/POLICY,"22,125.00",2013,"","","","LUKEMAN,KATHERINE A"
,OFFICE OF THE SPEAKER,2013Q3,PERSONNEL COMPENSATION,"","MACDONALD, B",07/01/13,09/30/13,SHARED EMPLOYEE,"20,000.01",2013,"","","","MACDONALD, B"
,OFFICE OF THE SPEAKER,2013Q3,PERSONNEL COMPENSATION,"","MALKERSON,COLTON H",07/01/13,09/30/13,STAFF ASSISTANT,"7,500.00",2013,"","","","MALKERSON,COLTON H"
,OFFICE OF THE SPEAKER,2013Q3,PERSONNEL COMPENSATION,"","MALKERSON,COLTON H",07/01/13,07/31/13,STAFF ASSISTANT (OVERTIME),465.14,2013,"","","","MALKERSON,COLTON H"
,OFFICE OF THE SPEAKER,2013Q3,PERSONNEL COMPENSATION,"","MILLER,WILLIAM",07/01/13,09/30/13,STAFF ASSISTANT,"8,000.01",2013,"","","","MILLER,WILLIAM"
,OFFICE OF THE SPEAKER,2013Q3,PERSONNEL COMPENSATION,"","MILLER,WILLIAM",06/01/13,07/31/13,STAFF ASSISTANT (OVERTIME),"1,078.83",2013,"","","","MILLER,WILLIAM"
,OFFICE OF THE SPEAKER,2013Q3,PERSONNEL COMPENSATION,"","MINKLER,ANN W",07/01/13,09/30/13,FLOOR ASSISTANT,"10,749.99",2013,"","","","MINKLER,ANN W"
,OFFICE OF THE SPEAKER,2013Q3,PERSONNEL COMPENSATION,"","PALISI,ANNIE",09/03/13,09/30/13,DEPUTY DIRECTOR OF MEMBER SVCS,"11,666.67",2013,"","","","PALISI,ANNIE"
,OFFICE OF THE SPEAKER,2013Q3,PERSONNEL COMPENSATION,"","PROPP,ELIZABETH R",07/01/13,07/31/13,DEPUTY PRESS SECRETARY,"4,750.00",2013,"","","","PROPP,ELIZABETH R"
,OFFICE OF THE SPEAKER,2013Q3,PERSONNEL COMPENSATION,"","PROPP,ELIZABETH R",08/01/13,09/30/13,DIR OF ADVANCE & MEDIA EVENTS,"11,166.66",2013,"","","","PROPP,ELIZABETH R"
,OFFICE OF THE SPEAKER,2013Q3,PERSONNEL COMPENSATION,"","RATCLIFFE,RAMSEY E",07/01/13,09/30/13,SPECIAL EVENTS ASSISTANT,"9,249.99",2013,"","","","RATCLIFFE,RAMSEY E"
,OFFICE OF THE SPEAKER,2013Q3,PERSONNEL COMPENSATION,"","REED, HEATHER E",07/01/13,09/30/13,ASSISTANT PRESS SECRETARY,"12,083.34",2013,"","","","REED, HEATHER E"
,OFFICE OF THE SPEAKER,2013Q3,PERSONNEL COMPENSATION,"","RENZ, BRANDON",07/01/13,09/30/13,SHARED EMPLOYEE,"20,000.01",2013,"","","","RENZ, BRANDON"
,OFFICE OF THE SPEAKER,2013Q3,PERSONNEL COMPENSATION,"","RICCI,MICHAEL",07/01/13,09/30/13,DIRECTOR OF SPEECHWRITING,"34,833.34",2013,"","","","RICCI,MICHAEL"
,OFFICE OF THE SPEAKER,2013Q3,PERSONNEL COMPENSATION,"","ROBINSON,GREGORY J",08/12/13,09/30/13,PROFESSIONAL STAFF,"7,077.77",2013,"","","","ROBINSON,GREGORY J"
,OFFICE OF THE SPEAKER,2013Q3,PERSONNEL COMPENSATION,"","SAGER,MICHAEL J",07/01/13,09/30/13,SYSTEMS ADMINISTRATOR,"20,000.01",2013,"","","","SAGER,MICHAEL J"
,OFFICE OF THE SPEAKER,2013Q3,PERSONNEL COMPENSATION,"","SCHNITTGER, DAVID M",07/01/13,09/30/13,DEPUTY CHIEF OF STAFF,"43,125.00",2013,"","","","SCHNITTGER, DAVID M"
,OFFICE OF THE SPEAKER,2013Q3,PERSONNEL COMPENSATION,"","SEYMOUR JR, DONALD P",07/01/13,07/31/13,DIGITAL COMMUNICATIONS DIRECTO,"12,166.67",2013,"","","","SEYMOUR JR, DONALD P"
,OFFICE OF THE SPEAKER,2013Q3,PERSONNEL COMPENSATION,"","SEYMOUR JR, DONALD P",08/01/13,09/30/13,DEPUTY COMM DIRECTOR,"24,333.34",2013,"","","","SEYMOUR JR, DONALD P"
,OFFICE OF THE SPEAKER,2013Q3,PERSONNEL COMPENSATION,"","SMITH, KEVIN",07/01/13,09/30/13,DIRECTOR OF COMMUNICATIONS,"40,458.33",2013,"","","","SMITH, KEVIN"
,OFFICE OF THE SPEAKER,2013Q3,PERSONNEL COMPENSATION,"","SMITH,CALEB J",08/12/13,09/30/13,DIGITAL COMMUNICATIONS DIRECTO,"12,250.00",2013,"","","","SMITH,CALEB J"
,OFFICE OF THE SPEAKER,2013Q3,PERSONNEL COMPENSATION,"","SOMMERS, MICHAEL J",07/01/13,09/30/13,CHIEF OF STAFF,"43,125.00",2013,"","","","SOMMERS, MICHAEL J"
,OFFICE OF THE SPEAKER,2013Q3,PERSONNEL COMPENSATION,"","STEEL, MICHAEL",07/01/13,09/30/13,PRESS SECRETARY,"37,500.00",2013,"","","","STEEL, MICHAEL"
,OFFICE OF THE SPEAKER,2013Q3,PERSONNEL COMPENSATION,"","STEWART, DAVID B",07/01/13,09/30/13,POLICY DIRECTOR (STAT),"43,125.00",2013,"","","","STEWART, DAVID B"
,OFFICE OF THE SPEAKER,2013Q3,PERSONNEL COMPENSATION,"","STEWART, JENNIFER M",07/01/13,09/30/13,ASST TO SPEAKER FOR POLICY,"27,500.01",2013,"","","","STEWART, JENNIFER M"
,OFFICE OF THE SPEAKER,2013Q3,PERSONNEL COMPENSATION,"","STRUNK, LYDIA",07/01/13,09/30/13,DEPUTY FLOOR DIRECTOR,"24,999.99",2013,"","","","STRUNK, LYDIA"
,OFFICE OF THE SPEAKER,2013Q3,PERSONNEL COMPENSATION,"","SWANSON,RANDY A",07/01/13,09/30/13,SHARED EMPLOYEE,"20,000.01",2013,"","","","SWANSON,RANDY A"
,OFFICE OF THE SPEAKER,2013Q3,PERSONNEL COMPENSATION,"","THORSEN, ANNE B",07/01/13,09/30/13,FLOOR DIRECTOR,"41,250.00",2013,"","","","THORSEN, ANNE B"
,OFFICE OF THE SPEAKER,2013Q3,PERSONNEL COMPENSATION,"","WELLINGTON III,EDMUND",07/01/13,07/31/13,STAFF ASSISTANT,"2,333.33",2013,"","","","WELLINGTON III,EDMUND"
,OFFICE OF THE SPEAKER,2013Q3,PERSONNEL COMPENSATION,"","WORTH,BRIAN A",07/01/13,09/30/13,SHARED EMPLOYEE,"24,999.99",2013,"","","","WORTH,BRIAN A"
,OFFICE OF THE SPEAKER,2013Q3,TRAVEL,07-03,"SOMMERS,MICHAEL",06/28/13,06/28/13,TAXI/PARKING/TOLLS,37.00,2013,AP,Accounts payable,E0035953,"SOMMERS,MICHAEL"
,OFFICE OF THE SPEAKER,2013Q3,TRAVEL,07-03,"SCHNITTGER, DAVID M",06/28/13,06/28/13,TAXI/PARKING/TOLLS,49.00,2013,AP,Accounts payable,E0035958,"SCHNITTGER, DAVID M"
,OFFICE OF THE SPEAKER,2013Q3,TRAVEL,07-09,"LOPER, BRETT S",02/20/13,05/21/13,TAXI/PARKING/TOLLS,66.83,2013,AP,Accounts payable,E0036949,"LOPER, BRETT S"
,OFFICE OF THE SPEAKER,2013Q3,TRAVEL,07-09,"SMITH, KEVIN",04/30/13,05/29/13,TAXI/PARKING/TOLLS,54.00,2013,AP,Accounts payable,E0036952,"SMITH, KEVIN"
,OFFICE OF THE SPEAKER,2013Q3,TRAVEL,07-09,"GREENE,WILLIAM P",05/01/13,06/26/13,TAXI/PARKING/TOLLS,174.00,2013,AP,Accounts payable,E0037219,"GREENE,WILLIAM P"
,OFFICE OF THE SPEAKER,2013Q3,TRAVEL,07-18,"STEWART, DAVID B",05/14/13,05/14/13,TAXI/PARKING/TOLLS,30.00,2013,AP,Accounts payable,E0037532,"STEWART, DAVID B"
,OFFICE OF THE SPEAKER,2013Q3,TRAVEL,08-12,"BROWN, MARYAM S",06/27/13,06/29/13,TAXI/PARKING/TOLLS,114.00,2013,AP,Accounts payable,E0049319,"BROWN, MARYAM S"
,OFFICE OF THE SPEAKER,2013Q3,TRAVEL,08-12,"BROWN, MARYAM S",06/27/13,06/29/13,TRAVEL SUBSISTENCE,593.56,2013,AP,Accounts payable,E0049320,"BROWN, MARYAM S"
,OFFICE OF THE SPEAKER,2013Q3,TRAVEL,08-12,"BROWN, MARYAM S",06/27/13,06/27/13,COMMERCIAL TRANSPORTATION,985.80,2013,AP,Accounts payable,E0049323,"BROWN, MARYAM S"
,OFFICE OF THE SPEAKER,2013Q3,TRAVEL,09-12,"KINZEL,WILL C",08/01/13,08/04/13,COMMERCIAL TRANSPORTATION,458.60,2013,AP,Accounts payable,E0060334,"KINZEL,WILL C"
,OFFICE OF THE SPEAKER,2013Q3,TRAVEL,09-12,"KINZEL,WILL C",08/01/13,08/04/13,LODGING,600.78,2013,AP,Accounts payable,E0060341,"KINZEL,WILL C"
,OFFICE OF THE SPEAKER,2013Q3,"RENT, COMMUNICATION, UTILITIES",09-12,DC PARTY RENTAL LLC,07/23/13,07/23/13,EQUIP RENTAL (EFF 1/3/03),207.76,2013,AP,Accounts payable,E0060335,DC PARTY RENTAL LLC
,OFFICE OF THE SPEAKER,2013Q3,PRINTING AND REPRODUCTION,07-26,"",07/01/13,07/31/13,PHOTOGRAPHIC (TRANSFER),256.70,2013,GL,General ledger,PIX0031312,""
,OFFICE OF THE SPEAKER,2013Q3,PRINTING AND REPRODUCTION,08-27,"",08/01/13,08/31/13,PHOTOGRAPHIC (TRANSFER),224.60,2013,GL,General ledger,PIX0032157,""
,OFFICE OF THE SPEAKER,2013Q3,PRINTING AND REPRODUCTION,09-24,"",09/01/13,09/30/13,PHOTOGRAPHIC (TRANSFER),305.60,2013,GL,General ledger,PIX0032892,""
,OFFICE OF THE SPEAKER,2013Q3,OTHER SERVICES,08-12,"BROWN, MARYAM S",06/27/13,06/30/13,TRAINING,240.00,2013,AP,Accounts payable,E0049324,"BROWN, MARYAM S"
,OFFICE OF THE SPEAKER,2013Q3,SUPPLIES AND MATERIALS,07-03,DESIGN CUISINE,06/13/13,06/13/13,FOOD & BEVERAGE,"21,119.86",2013,AP,Accounts payable,E0035951,DESIGN CUISINE
,OFFICE OF THE SPEAKER,2013Q3,SUPPLIES AND MATERIALS,07-03,DESIGN CUISINE,06/19/13,06/19/13,FOOD & BEVERAGE,"10,415.00",2013,AP,Accounts payable,E0035955,DESIGN CUISINE
,OFFICE OF THE SPEAKER,2013Q3,SUPPLIES AND MATERIALS,07-09,JOE RAGAN'S COFFEE LTD,06/19/13,06/19/13,FOOD & BEVERAGE,47.85,2013,AP,Accounts payable,E0036948,JOE RAGAN'S COFFEE LTD
,OFFICE OF THE SPEAKER,2013Q3,SUPPLIES AND MATERIALS,07-09,JOE RAGAN'S COFFEE LTD,06/13/13,06/13/13,FOOD & BEVERAGE,180.00,2013,AP,Accounts payable,E0036950,JOE RAGAN'S COFFEE LTD
,OFFICE OF THE SPEAKER,2013Q3,SUPPLIES AND MATERIALS,07-09,JOE RAGAN'S COFFEE LTD,06/19/13,06/19/13,FOOD & BEVERAGE,432.80,2013,AP,Accounts payable,E0036951,JOE RAGAN'S COFFEE LTD
,OFFICE OF THE SPEAKER,2013Q3,SUPPLIES AND MATERIALS,07-09,JOE RAGAN'S COFFEE LTD,06/05/13,06/05/13,FOOD & BEVERAGE,585.05,2013,AP,Accounts payable,E0036953,JOE RAGAN'S COFFEE LTD
,OFFICE OF THE SPEAKER,2013Q3,SUPPLIES AND MATERIALS,07-09,JOE RAGAN'S COFFEE LTD,06/12/13,06/12/13,FOOD & BEVERAGE,412.75,2013,AP,Accounts payable,E0036954,JOE RAGAN'S COFFEE LTD
,OFFICE OF THE SPEAKER,2013Q3,SUPPLIES AND MATERIALS,07-09,JOE RAGAN'S COFFEE LTD,06/25/13,06/25/13,FOOD & BEVERAGE,672.17,2013,AP,Accounts payable,E0036955,JOE RAGAN'S COFFEE LTD
,OFFICE OF THE SPEAKER,2013Q3,SUPPLIES AND MATERIALS,07-09,JOE RAGAN'S COFFEE LTD,06/17/13,06/17/13,FOOD & BEVERAGE,113.25,2013,AP,Accounts payable,E0036956,JOE RAGAN'S COFFEE LTD
,OFFICE OF THE SPEAKER,2013Q3,SUPPLIES AND MATERIALS,07-10,HAGUE QUALITY WATER OF MD INC,07/01/13,07/31/13,WATER,315.00,2013,AP,Accounts payable,E0037531,HAGUE QUALITY WATER OF MD INC
,OFFICE OF THE SPEAKER,2013Q3,SUPPLIES AND MATERIALS,07-17,JOE RAGAN'S COFFEE LTD,05/29/13,05/29/13,FOOD & BEVERAGE,404.65,2013,AP,Accounts payable,00680008,JOE RAGAN'S COFFEE LTD
,OFFICE OF THE SPEAKER,2013Q3,SUPPLIES AND MATERIALS,07-17,COCA-COLA REFRESHMENTS,07/09/13,07/09/13,FOOD & BEVERAGE,165.60,2013,AP,Accounts payable,E0041120,COCA-COLA REFRESHMENTS
,OFFICE OF THE SPEAKER,2013Q3,SUPPLIES AND MATERIALS,07-17,"HALEY, KATHERINE C",07/10/13,07/10/13,HABITATION EXPENSE,40.00,2013,AP,Accounts payable,E0041127,"HALEY, KATHERINE C"
,OFFICE OF THE SPEAKER,2013Q3,SUPPLIES AND MATERIALS,07-22,CITI PCARD-ARTISTIC FRAMING,05/29/13,06/28/13,HABITATION EXPENSE,140.00,2013,AP,Accounts payable,00680125,CITI PCARD-ARTISTIC FRAMING
,OFFICE OF THE SPEAKER,2013Q3,SUPPLIES AND MATERIALS,07-22,CITI PCARD-CAFE RIO MEXICAN GRILL,05/29/13,06/28/13,FOOD & BEVERAGE,263.45,2013,AP,Accounts payable,00680125,CITI PCARD-CAFE RIO MEXICAN GRILL
,OFFICE OF THE SPEAKER,2013Q3,SUPPLIES AND MATERIALS,07-22,CITI PCARD-CAPITOL HOST (RIDGEWEL,05/29/13,06/28/13,FOOD & BEVERAGE,105.00,2013,AP,Accounts payable,00680125,CITI PCARD-CAPITOL HOST (RIDGEWEL
,OFFICE OF THE SPEAKER,2013Q3,SUPPLIES AND MATERIALS,07-22,CITI PCARD-CORNER BAKERY,05/29/13,06/28/13,FOOD & BEVERAGE,572.00,2013,AP,Accounts payable,00680125,CITI PCARD-CORNER BAKERY
,OFFICE OF THE SPEAKER,2013Q3,SUPPLIES AND MATERIALS,07-22,CITI PCARD-COSI,05/29/13,06/28/13,FOOD & BEVERAGE,80.02,2013,AP,Accounts payable,00680125,CITI PCARD-COSI
,OFFICE OF THE SPEAKER,2013Q3,SUPPLIES AND MATERIALS,07-22,CITI PCARD-DOMINO'S,05/29/13,06/28/13,FOOD & BEVERAGE,898.00,2013,AP,Accounts payable,00680125,CITI PCARD-DOMINO'S
,OFFICE OF THE SPEAKER,2013Q3,SUPPLIES AND MATERIALS,07-22,CITI PCARD-DUNKIN,05/29/13,06/28/13,FOOD & BEVERAGE,31.89,2013,AP,Accounts payable,00680125,CITI PCARD-DUNKIN
,OFFICE OF THE SPEAKER,2013Q3,SUPPLIES AND MATERIALS,07-22,CITI PCARD-PF CHANGS,05/29/13,06/28/13,FOOD & BEVERAGE,240.18,2013,AP,Accounts payable,00680125,CITI PCARD-PF CHANGS
,OFFICE OF THE SPEAKER,2013Q3,SUPPLIES AND MATERIALS,07-22,CITI PCARD-TAYLOR GOURMET,05/29/13,06/28/13,FOOD & BEVERAGE,440.54,2013,AP,Accounts payable,00680125,CITI PCARD-TAYLOR GOURMET
,OFFICE OF THE SPEAKER,2013Q3,SUPPLIES AND MATERIALS,07-22,CITI PCARD-TLF ARLINGTON FLORIST,05/29/13,06/28/13,HABITATION EXPENSE,360.00,2013,AP,Accounts payable,00680125,CITI PCARD-TLF ARLINGTON FLORIST
,OFFICE OF THE SPEAKER,2013Q3,SUPPLIES AND MATERIALS,07-22,CITI PCARD-WHOLEFDS PST,05/29/13,06/28/13,FOOD & BEVERAGE,789.88,2013,AP,Accounts payable,00680125,CITI PCARD-WHOLEFDS PST
,OFFICE OF THE SPEAKER,2013Q3,SUPPLIES AND MATERIALS,07-23,COCA-COLA REFRESHMENTS,07/16/13,07/16/13,FOOD & BEVERAGE,202.32,2013,AP,Accounts payable,E0043092,COCA-COLA REFRESHMENTS
,OFFICE OF THE SPEAKER,2013Q3,SUPPLIES AND MATERIALS,08-08,JOE RAGAN'S COFFEE LTD,07/10/13,07/10/13,FOOD & BEVERAGE,649.66,2013,AP,Accounts payable,E0049297,JOE RAGAN'S COFFEE LTD
,OFFICE OF THE SPEAKER,2013Q3,SUPPLIES AND MATERIALS,08-08,JOE RAGAN'S COFFEE LTD,07/03/13,07/03/13,FOOD & BEVERAGE,651.79,2013,AP,Accounts payable,E0049298,JOE RAGAN'S COFFEE LTD
,OFFICE OF THE SPEAKER,2013Q3,SUPPLIES AND MATERIALS,08-08,COCA-COLA REFRESHMENTS,07/23/13,07/23/13,FOOD & BEVERAGE,234.00,2013,AP,Accounts payable,E0049304,COCA-COLA REFRESHMENTS
,OFFICE OF THE SPEAKER,2013Q3,SUPPLIES AND MATERIALS,08-08,LEADERSHIP DIRECTORIES INC,07/01/13,01/01/14,PUBLICATIONS/REFERENCE MAT'L,423.00,2013,AP,Accounts payable,E0049305,LEADERSHIP DIRECTORIES INC
,OFFICE OF THE SPEAKER,2013Q3,SUPPLIES AND MATERIALS,08-08,COCA-COLA REFRESHMENTS,07/30/13,07/30/13,FOOD & BEVERAGE,129.60,2013,AP,Accounts payable,E0049306,COCA-COLA REFRESHMENTS
,OFFICE OF THE SPEAKER,2013Q3,SUPPLIES AND MATERIALS,08-08,JOE RAGAN'S COFFEE LTD,07/24/13,07/24/13,FOOD & BEVERAGE,560.78,2013,AP,Accounts payable,E0049317,JOE RAGAN'S COFFEE LTD
,OFFICE OF THE SPEAKER,2013Q3,SUPPLIES AND MATERIALS,08-08,"ANDREWS,THOMAS S",08/02/13,08/02/13,FOOD & BEVERAGE,139.52,2013,AP,Accounts payable,E0049318,"ANDREWS,THOMAS S"
,OFFICE OF THE SPEAKER,2013Q3,SUPPLIES AND MATERIALS,08-08,HAGUE QUALITY WATER OF MD INC,08/04/13,09/03/13,WATER,315.00,2013,AP,Accounts payable,E0049322,HAGUE QUALITY WATER OF MD INC
,OFFICE OF THE SPEAKER,2013Q3,SUPPLIES AND MATERIALS,08-08,JOE RAGAN'S COFFEE LTD,07/17/13,07/17/13,FOOD & BEVERAGE,438.40,2013,AP,Accounts payable,E0049325,JOE RAGAN'S COFFEE LTD
,OFFICE OF THE SPEAKER,2013Q3,SUPPLIES AND MATERIALS,08-09,"SCHNITTGER, DAVID M",07/25/13,07/25/13,FOOD & BEVERAGE,35.00,2013,AP,Accounts payable,E0049301,"SCHNITTGER, DAVID M"
,OFFICE OF THE SPEAKER,2013Q3,SUPPLIES AND MATERIALS,08-20,CITI PCARD-ARTISTIC FRAMING,06/29/13,07/28/13,HABITATION EXPENSE,140.00,2013,AP,Accounts payable,00682797,CITI PCARD-ARTISTIC FRAMING
,OFFICE OF THE SPEAKER,2013Q3,SUPPLIES AND MATERIALS,08-20,CITI PCARD-CAFE RIO MEXICAN GRILL,06/29/13,07/28/13,FOOD & BEVERAGE,154.28,2013,AP,Accounts payable,00682797,CITI PCARD-CAFE RIO MEXICAN GRILL
,OFFICE OF THE SPEAKER,2013Q3,SUPPLIES AND MATERIALS,08-20,CITI PCARD-CAPITOL HOST (RIDGEWEL,06/29/13,07/28/13,FOOD & BEVERAGE,105.00,2013,AP,Accounts payable,00682797,CITI PCARD-CAPITOL HOST (RIDGEWEL
,OFFICE OF THE SPEAKER,2013Q3,SUPPLIES AND MATERIALS,08-20,CITI PCARD-CHILI'S GRILL & BAR,06/29/13,07/28/13,FOOD & BEVERAGE,109.58,2013,AP,Accounts payable,00682797,CITI PCARD-CHILI'S GRILL & BAR
,OFFICE OF THE SPEAKER,2013Q3,SUPPLIES AND MATERIALS,08-20,CITI PCARD-CORNER BAKERY,06/29/13,07/28/13,FOOD & BEVERAGE,663.50,2013,AP,Accounts payable,00682797,CITI PCARD-CORNER BAKERY
,OFFICE OF THE SPEAKER,2013Q3,SUPPLIES AND MATERIALS,08-20,CITI PCARD-DOMINO'S,06/29/13,07/28/13,FOOD & BEVERAGE,850.80,2013,AP,Accounts payable,00682797,CITI PCARD-DOMINO'S
,OFFICE OF THE SPEAKER,2013Q3,SUPPLIES AND MATERIALS,08-20,CITI PCARD-PORT OF PIRAEUS III,06/29/13,07/28/13,FOOD & BEVERAGE,415.26,2013,AP,Accounts payable,00682797,CITI PCARD-PORT OF PIRAEUS III
,OFFICE OF THE SPEAKER,2013Q3,SUPPLIES AND MATERIALS,08-20,CITI PCARD-ROSA MEXICANO DC L,06/29/13,07/28/13,FOOD & BEVERAGE,"1,376.00",2013,AP,Accounts payable,00682797,CITI PCARD-ROSA MEXICANO DC L
,OFFICE OF THE SPEAKER,2013Q3,SUPPLIES AND MATERIALS,08-20,CITI PCARD-TAYLOR GOURMET,06/29/13,07/28/13,FOOD & BEVERAGE,813.60,2013,AP,Accounts payable,00682797,CITI PCARD-TAYLOR GOURMET
,OFFICE OF THE SPEAKER,2013Q3,SUPPLIES AND MATERIALS,08-20,CITI PCARD-TLF ARLINGTON FLORIST,06/29/13,07/28/13,HABITATION EXPENSE,600.00,2013,AP,Accounts payable,00682797,CITI PCARD-TLF ARLINGTON FLORIST
,OFFICE OF THE SPEAKER,2013Q3,SUPPLIES AND MATERIALS,08-20,CITI PCARD-WHOLEFDS PST,06/29/13,07/28/13,FOOD & BEVERAGE,694.93,2013,AP,Accounts payable,00682797,CITI PCARD-WHOLEFDS PST
,OFFICE OF THE SPEAKER,2013Q3,SUPPLIES AND MATERIALS,08-20,COCA-COLA REFRESHMENTS,08/13/13,08/13/13,FOOD & BEVERAGE,108.00,2013,AP,Accounts payable,E0053325,COCA-COLA REFRESHMENTS
,OFFICE OF THE SPEAKER,2013Q3,SUPPLIES AND MATERIALS,09-12,JOE RAGAN'S COFFEE LTD,08/07/13,08/07/13,FOOD & BEVERAGE,521.71,2013,AP,Accounts payable,E0060333,JOE RAGAN'S COFFEE LTD
,OFFICE OF THE SPEAKER,2013Q3,SUPPLIES AND MATERIALS,09-12,JOE RAGAN'S COFFEE LTD,08/01/13,08/01/13,FOOD & BEVERAGE,732.19,2013,AP,Accounts payable,E0060338,JOE RAGAN'S COFFEE LTD
,OFFICE OF THE SPEAKER,2013Q3,SUPPLIES AND MATERIALS,09-12,JOE RAGAN'S COFFEE LTD,08/28/13,08/28/13,FOOD & BEVERAGE,708.30,2013,AP,Accounts payable,E0060343,JOE RAGAN'S COFFEE LTD
,OFFICE OF THE SPEAKER,2013Q3,SUPPLIES AND MATERIALS,09-12,HAGUE QUALITY WATER OF MD INC,09/04/13,10/03/13,WATER,315.00,2013,AP,Accounts payable,E0060344,HAGUE QUALITY WATER OF MD INC
,OFFICE OF THE SPEAKER,2013Q3,SUPPLIES AND MATERIALS,09-19,CITI PCARD-ARTISTIC FRAMING,07/29/13,08/28/13,HABITATION EXPENSE,152.00,2013,AP,Accounts payable,00690112,CITI PCARD-ARTISTIC FRAMING
,OFFICE OF THE SPEAKER,2013Q3,SUPPLIES AND MATERIALS,09-19,CITI PCARD-CAPTL VISITOR CTR,07/29/13,08/28/13,HABITATION EXPENSE,72.85,2013,AP,Accounts payable,00690112,CITI PCARD-CAPTL VISITOR CTR
,OFFICE OF THE SPEAKER,2013Q3,SUPPLIES AND MATERIALS,09-19,CITI PCARD-CARMINE S,07/29/13,08/28/13,FOOD & BEVERAGE,200.85,2013,AP,Accounts payable,00690112,CITI PCARD-CARMINE S
,OFFICE OF THE SPEAKER,2013Q3,SUPPLIES AND MATERIALS,09-19,CITI PCARD-CRATE & BARREL,07/29/13,08/28/13,HABITATION EXPENSE,203.76,2013,AP,Accounts payable,00690112,CITI PCARD-CRATE & BARREL
,OFFICE OF THE SPEAKER,2013Q3,SUPPLIES AND MATERIALS,09-19,CITI PCARD-TAYLOR GOURMET,07/29/13,08/28/13,FOOD & BEVERAGE,494.00,2013,AP,Accounts payable,00690112,CITI PCARD-TAYLOR GOURMET
,OFFICE OF THE SPEAKER,2013Q3,SUPPLIES AND MATERIALS,09-19,"LOHMEYER, SONJA M",09/04/13,09/04/13,FOOD & BEVERAGE,5.46,2013,AP,Accounts payable,E0064645,"LOHMEYER, SONJA M"
,OFFICE OF THE SPEAKER,2013Q3,SUPPLIES AND MATERIALS,09-20,"LOHMEYER, SONJA M",09/05/13,09/05/13,FOOD & BEVERAGE,138.85,2013,AP,Accounts payable,E0064646,"LOHMEYER, SONJA M"
,OFFICE OF THE SPEAKER,2013Q3,SUPPLIES AND MATERIALS,09-20,"LOHMEYER, SONJA M",09/05/13,09/05/13,FOOD & BEVERAGE,57.67,2013,AP,Accounts payable,E0064664,"LOHMEYER, SONJA M"
,OFFICE OF THE SPEAKER,2013Q3,SUPPLIES AND MATERIALS,09-20,COCA-COLA REFRESHMENTS,09/17/13,09/17/13,FOOD & BEVERAGE,216.00,2013,AP,Accounts payable,E0065985,COCA-COLA REFRESHMENTS
,OFFICE OF THE SPEAKER,2013Q3,SUPPLIES AND MATERIALS,09-20,CQ ROLL CALL,09/29/13,09/28/14,PUBLICATIONS/REFERENCE MAT'L,"17,215.00",2013,AP,Accounts payable,E0065993,CQ ROLL CALL
,OFFICE OF THE SPEAKER,2013Q3,SUPPLIES AND MATERIALS,09-25,COCA-COLA REFRESHMENTS,09/24/13,09/24/13,FOOD & BEVERAGE,230.40,2013,AP,Accounts payable,E0068090,COCA-COLA REFRESHMENTS
,OFFICE OF THE MAJORITY LEADER,2013Q3,PERSONNEL COMPENSATION,"","BARRERA,AMY D",07/01/13,09/30/13,DIRECTOR OF ADMINISTRATION,"15,375.00",2013,"","","","BARRERA,AMY D"
,OFFICE OF THE MAJORITY LEADER,2013Q3,PERSONNEL COMPENSATION,"","BORDEN III, R C",07/01/13,09/30/13,SHARED EMPLOYEE,300.00,2013,"","","","BORDEN III, R C"
,OFFICE OF THE MAJORITY LEADER,2013Q3,PERSONNEL COMPENSATION,"","BRADLEY, NEIL L",07/01/13,09/30/13,DEPUTY CHEIF OF STAFF,"43,125.00",2013,"","","","BRADLEY, NEIL L"
,OFFICE OF THE MAJORITY LEADER,2013Q3,PERSONNEL COMPENSATION,"","CHRISTENSEN, AUTUMN",07/01/13,09/30/13,SHARED EMPLOYEE,"3,000.00",2013,"","","","CHRISTENSEN, AUTUMN"
,OFFICE OF THE MAJORITY LEADER,2013Q3,PERSONNEL COMPENSATION,"","COOPER,RORY S",07/01/13,09/30/13,DIRECTOR OF COMMUNICATIONS,"36,249.99",2013,"","","","COOPER,RORY S"
,OFFICE OF THE MAJORITY LEADER,2013Q3,PERSONNEL COMPENSATION,"","CUTLER,AARON",07/01/13,09/30/13,SR. ADV FOR POLICY & OUTREACH,"32,000.01",2013,"","","","CUTLER,AARON"
,OFFICE OF THE MAJORITY LEADER,2013Q3,PERSONNEL COMPENSATION,"","EDWARDS,SPENCER M",07/01/13,09/30/13,STAFF ASSISTANT,"6,000.00",2013,"","","","EDWARDS,SPENCER M"
,OFFICE OF THE MAJORITY LEADER,2013Q3,PERSONNEL COMPENSATION,"","GUSTAFSON,NICOLE M",07/01/13,09/30/13,POLICY ADVISOR/COUNSEL,"13,749.99",2013,"","","","GUSTAFSON,NICOLE M"
,OFFICE OF THE MAJORITY LEADER,2013Q3,PERSONNEL COMPENSATION,"","HEYE,DOUGLAS R",07/01/13,09/30/13,DEPUTY CHIEF OF STAFF-COMMUNIC,"42,000.00",2013,"","","","HEYE,DOUGLAS R"
,OFFICE OF THE MAJORITY LEADER,2013Q3,PERSONNEL COMPENSATION,"","JAEGER, CHERYL L",07/01/13,09/30/13,SENIOR POLICY ADVISOR,"22,149.99",2013,"","","","JAEGER, CHERYL L"
,OFFICE OF THE MAJORITY LEADER,2013Q3,PERSONNEL COMPENSATION,"","JAMERSON,ALLEN J",09/03/13,09/30/13,SPECIAL ASSISTANT,"1,944.44",2013,"","","","JAMERSON,ALLEN J"
,OFFICE OF THE MAJORITY LEADER,2013Q3,PERSONNEL COMPENSATION,"","JOSEPH,COURTNEY E",07/01/13,09/30/13,CONGRESSIONAL STAFF,"4,749.99",2013,"","","","JOSEPH,COURTNEY E"
,OFFICE OF THE MAJORITY LEADER,2013Q3,PERSONNEL COMPENSATION,"","KAREM,ROBERT S",07/01/13,09/30/13,SENIOR POLICY ADVISOR,"32,000.01",2013,"","","","KAREM,ROBERT S"
,OFFICE OF THE MAJORITY LEADER,2013Q3,PERSONNEL COMPENSATION,"","KEECH,EMILY H",07/01/13,09/30/13,DEPUTY DIRECTOR OF MEMBER SVCS,"11,616.67",2013,"","","","KEECH,EMILY H"
,OFFICE OF THE MAJORITY LEADER,2013Q3,PERSONNEL COMPENSATION,"","KISH,SARAH M",07/01/13,09/30/13,FLOOR ASSISTANT,"13,749.99",2013,"","","","KISH,SARAH M"
,OFFICE OF THE MAJORITY LEADER,2013Q3,PERSONNEL COMPENSATION,"","KLUTTZ,LAWSON T",07/01/13,09/30/13,STAFF ASSISTANT,"6,000.00",2013,"","","","KLUTTZ,LAWSON T"
,OFFICE OF THE MAJORITY LEADER,2013Q3,PERSONNEL COMPENSATION,"","MAHAN,ROGER A",07/01/13,09/30/13,POLICY ADVISOR,"17,499.99",2013,"","","","MAHAN,ROGER A"
,OFFICE OF THE MAJORITY LEADER,2013Q3,PERSONNEL COMPENSATION,"","MARCELLI,NICHOLAS G",07/01/13,09/30/13,DEPUTY DIR DIGITAL MEDIA,"12,000.00",2013,"","","","MARCELLI,NICHOLAS G"
,OFFICE OF THE MAJORITY LEADER,2013Q3,PERSONNEL COMPENSATION,"","NELSON, VALERIE S",07/01/13,07/07/13,DIR OF MEMBER SERVICES,"2,236.11",2013,"","","","NELSON, VALERIE S"
,OFFICE OF THE MAJORITY LEADER,2013Q3,PERSONNEL COMPENSATION,"","PATAKI,TIMOTHY A",07/01/13,09/30/13,FLOOR ASSISTANT,"11,250.00",2013,"","","","PATAKI,TIMOTHY A"
,OFFICE OF THE MAJORITY LEADER,2013Q3,PERSONNEL COMPENSATION,"","PATRU, KATHRYN M",07/01/13,09/30/13,DIR OF MEMBER SERVICES,"37,500.00",2013,"","","","PATRU, KATHRYN M"
,OFFICE OF THE MAJORITY LEADER,2013Q3,PERSONNEL COMPENSATION,"","STAPLETON,JOHN O",07/01/13,09/30/13,SPEECH WRITER,"13,749.99",2013,"","","","STAPLETON,JOHN O"
,OFFICE OF THE MAJORITY LEADER,2013Q3,PERSONNEL COMPENSATION,"","STEWART,WYATT A",07/01/13,09/30/13,POLICY ADVISOR,"15,000.00",2013,"","","","STEWART,WYATT A"
,OFFICE OF THE MAJORITY LEADER,2013Q3,PERSONNEL COMPENSATION,"","STOMBRES, STEVEN C",07/01/13,09/30/13,CHIEF OF STAFF,"43,125.00",2013,"","","","STOMBRES, STEVEN C"
,OFFICE OF THE MAJORITY LEADER,2013Q3,PERSONNEL COMPENSATION,"","VIESON, CHRISTOPHER W",07/01/13,09/30/13,DIRECTOR OF FLOOR OPERATIONS,"35,000.01",2013,"","","","VIESON, CHRISTOPHER W"
,OFFICE OF THE MAJORITY LEADER,2013Q3,PERSONNEL COMPENSATION,"","VILLARI,GENEVIEVE C",07/01/13,09/30/13,DEPUTY PRESS SECRETARY,"16,250.01",2013,"","","","VILLARI,GENEVIEVE C"
,OFFICE OF THE MAJORITY LEADER,2013Q3,PERSONNEL COMPENSATION,"","WALSH,WILLIAM C",07/01/13,09/30/13,DIRECTOR DIGITAL MEDIA,"13,500.00",2013,"","","","WALSH,WILLIAM C"
,OFFICE OF THE MAJORITY LEADER,2013Q3,PERSONNEL COMPENSATION,"","WILLIAMS, KELLY K",07/01/13,09/30/13,DIR OF PROTOCOL & OPERATIONS,"9,500.01",2013,"","","","WILLIAMS, KELLY K"
,OFFICE OF THE MAJORITY LEADER,2013Q3,PERSONNEL COMPENSATION,"","ZACKON,MATTHEW R",07/01/13,09/01/13,SPECIAL ASSISTANT,"4,236.10",2013,"","","","ZACKON,MATTHEW R"
,OFFICE OF THE MAJORITY LEADER,2013Q3,TRAVEL,07-02,"NELSON, VALERIE S",02/25/13,05/15/13,TAXI/PARKING/TOLLS,62.00,2013,AP,Accounts payable,00675469,"NELSON, VALERIE S"
,OFFICE OF THE MAJORITY LEADER,2013Q3,TRAVEL,07-02,"CUMMINGS, TIMOTHY P",05/16/13,06/19/13,PRIVATE AUTO MILEAGE,91.53,2013,AP,Accounts payable,E0035537,"CUMMINGS, TIMOTHY P"
,OFFICE OF THE MAJORITY LEADER,2013Q3,TRAVEL,07-02,"ZACKON, MATTHEW",06/25/13,06/25/13,TAXI/PARKING/TOLLS,13.00,2013,AP,Accounts payable,E0035541,"ZACKON, MATTHEW"
,OFFICE OF THE MAJORITY LEADER,2013Q3,TRAVEL,07-02,"CUTLER, AARON",04/04/13,06/24/13,TAXI/PARKING/TOLLS,86.00,2013,AP,Accounts payable,E0035542,"CUTLER, AARON"
,OFFICE OF THE MAJORITY LEADER,2013Q3,TRAVEL,07-08,"NELSON, VALERIE S",06/12/13,06/12/13,TAXI/PARKING/TOLLS,31.00,2013,AP,Accounts payable,E0036758,"NELSON, VALERIE S"
,OFFICE OF THE MAJORITY LEADER,2013Q3,TRAVEL,07-08,"ZACKON, MATTHEW",06/11/13,06/11/13,TAXI/PARKING/TOLLS,15.00,2013,AP,Accounts payable,E0036761,"ZACKON, MATTHEW"
,OFFICE OF THE MAJORITY LEADER,2013Q3,TRAVEL,07-17,"KEECH, EMILY H",06/19/13,07/10/13,PRIVATE AUTO MILEAGE,47.98,2013,AP,Accounts payable,E0041285,"KEECH, EMILY H"
,OFFICE OF THE MAJORITY LEADER,2013Q3,TRAVEL,07-17,"ZACKON, MATTHEW",07/08/13,07/09/13,TAXI/PARKING/TOLLS,26.00,2013,AP,Accounts payable,E0041291,"ZACKON, MATTHEW"
,OFFICE OF THE MAJORITY LEADER,2013Q3,TRAVEL,08-02,"ZACKON, MATTHEW",07/22/13,07/23/13,TAXI/PARKING/TOLLS,27.00,2013,AP,Accounts payable,E0047736,"ZACKON, MATTHEW"
,OFFICE OF THE MAJORITY LEADER,2013Q3,TRAVEL,08-02,"KEECH, EMILY H",07/22/13,07/24/13,TAXI/PARKING/TOLLS,40.00,2013,AP,Accounts payable,E0047739,"KEECH, EMILY H"
,OFFICE OF THE MAJORITY LEADER,2013Q3,TRAVEL,08-19,"ZACKON, MATTHEW",07/25/13,07/25/13,TAXI/PARKING/TOLLS,12.00,2013,AP,Accounts payable,E0052495,"ZACKON, MATTHEW"
,OFFICE OF THE MAJORITY LEADER,2013Q3,TRAVEL,08-29,"ZACKON, MATTHEW",08/01/13,08/01/13,TAXI/PARKING/TOLLS,14.00,2013,AP,Accounts payable,E0055855,"ZACKON, MATTHEW"
,OFFICE OF THE MAJORITY LEADER,2013Q3,TRAVEL,09-16,"ZACKON, MATTHEW",05/06/13,05/06/13,TAXI/PARKING/TOLLS,15.00,2013,AP,Accounts payable,E0062025,"ZACKON, MATTHEW"
,OFFICE OF THE MAJORITY LEADER,2013Q3,TRAVEL,09-30,"ZACKON, MATTHEW",07/11/13,07/17/13,TAXI/PARKING/TOLLS,32.00,2013,AP,Accounts payable,00691372,"ZACKON, MATTHEW"
,OFFICE OF THE MAJORITY LEADER,2013Q3,"RENT, COMMUNICATION, UTILITIES",08-20,CITI PCARD-FDX OFFICE,06/29/13,07/28/13,POSTAGE / COURIER / BOX RENTAL,277.70,2013,AP,Accounts payable,00682797,CITI PCARD-FDX OFFICE
,OFFICE OF THE MAJORITY LEADER,2013Q3,"RENT, COMMUNICATION, UTILITIES",08-27,"",07/01/13,07/31/13,RECORDING - (TRANSFER),35.00,2013,GL,General ledger,HRS0032159,""
,OFFICE OF THE MAJORITY LEADER,2013Q3,PRINTING AND REPRODUCTION,07-22,CITI PCARD-ISTOCK INTERNATIONAL,05/29/13,06/28/13,PRINTING & REPRODUCTION,144.98,2013,AP,Accounts payable,00680125,CITI PCARD-ISTOCK INTERNATIONAL
,OFFICE OF THE MAJORITY LEADER,2013Q3,PRINTING AND REPRODUCTION,07-22,CITI PCARD-VIRALHEAT,05/29/13,06/28/13,ADVERTISEMENTS,29.99,2013,AP,Accounts payable,00680125,CITI PCARD-VIRALHEAT
,OFFICE OF THE MAJORITY LEADER,2013Q3,PRINTING AND REPRODUCTION,07-26,"",07/01/13,07/31/13,PHOTOGRAPHIC (TRANSFER),18.20,2013,GL,General ledger,PIX0031312,""
,OFFICE OF THE MAJORITY LEADER,2013Q3,PRINTING AND REPRODUCTION,09-19,CITI PCARD-FEDEXOFFICE,07/29/13,08/28/13,PRINTING & REPRODUCTION,47.98,2013,AP,Accounts payable,00690112,CITI PCARD-FEDEXOFFICE
,OFFICE OF THE MAJORITY LEADER,2013Q3,PRINTING AND REPRODUCTION,09-30,CITIBANK P CARD,05/29/13,06/28/13,ADVERTISEMENTS,-29.99,2013,AP,Accounts payable,00691371,CITIBANK P CARD
,OFFICE OF THE MAJORITY LEADER,2013Q3,SUPPLIES AND MATERIALS,07-02,JOE RAGAN'S COFFEE LTD,06/24/13,07/23/13,FOOD & BEVERAGE,200.00,2013,AP,Accounts payable,E0035548,JOE RAGAN'S COFFEE LTD
,OFFICE OF THE MAJORITY LEADER,2013Q3,SUPPLIES AND MATERIALS,07-03,LEXIS-NEXIS,05/01/13,05/31/13,PUBLICATIONS/REFERENCE MAT'L,625.00,2013,AP,Accounts payable,E0035536,LEXIS-NEXIS
,OFFICE OF THE MAJORITY LEADER,2013Q3,SUPPLIES AND MATERIALS,07-08,DEER PARK WATER,04/27/13,05/26/13,FOOD & BEVERAGE,628.04,2013,AP,Accounts payable,00675569,DEER PARK WATER
,OFFICE OF THE MAJORITY LEADER,2013Q3,SUPPLIES AND MATERIALS,07-08,NESTLE WATERS NORTH AMERICA INC,04/27/13,05/26/13,FOOD & BEVERAGE,"-1,211.64",2013,AP,Accounts payable,E0029685,NESTLE WATERS NORTH AMERICA INC
,OFFICE OF THE MAJORITY LEADER,2013Q3,SUPPLIES AND MATERIALS,07-12,CQ ROLL CALL,01/08/13,12/31/13,PUBLICATIONS/REFERENCE MAT'L,"37,642.00",2013,AP,Accounts payable,E0038984,CQ ROLL CALL
,OFFICE OF THE MAJORITY LEADER,2013Q3,SUPPLIES AND MATERIALS,07-17,DEER PARK WATER,05/27/13,06/26/13,WATER,672.97,2013,AP,Accounts payable,00677571,DEER PARK WATER
,OFFICE OF THE MAJORITY LEADER,2013Q3,SUPPLIES AND MATERIALS,07-17,COCA-COLA REFRESHMENTS,07/09/13,07/09/13,FOOD & BEVERAGE,291.60,2013,AP,Accounts payable,E0041293,COCA-COLA REFRESHMENTS
,OFFICE OF THE MAJORITY LEADER,2013Q3,SUPPLIES AND MATERIALS,07-22,CITI PCARD-HARRIS TEETER,05/29/13,06/28/13,FOOD & BEVERAGE,550.13,2013,AP,Accounts payable,00680125,CITI PCARD-HARRIS TEETER
,OFFICE OF THE MAJORITY LEADER,2013Q3,SUPPLIES AND MATERIALS,07-22,CITI PCARD-NEW YORK TIMES DIGITAL,05/29/13,06/28/13,PUBLICATIONS/REFERENCE MAT'L,37.10,2013,AP,Accounts payable,00680125,CITI PCARD-NEW YORK TIMES DIGITAL
,OFFICE OF THE MAJORITY LEADER,2013Q3,SUPPLIES AND MATERIALS,07-22,CITI PCARD-SAFEWAY STORE,05/29/13,06/28/13,FOOD & BEVERAGE,338.67,2013,AP,Accounts payable,00680125,CITI PCARD-SAFEWAY STORE
,OFFICE OF THE MAJORITY LEADER,2013Q3,SUPPLIES AND MATERIALS,07-24,JOE RAGAN'S COFFEE LTD,07/11/13,07/11/13,FOOD & BEVERAGE,283.60,2013,AP,Accounts payable,E0043681,JOE RAGAN'S COFFEE LTD
,OFFICE OF THE MAJORITY LEADER,2013Q3,SUPPLIES AND MATERIALS,08-02,LEXIS-NEXIS,06/01/13,06/30/13,PUBLICATIONS/REFERENCE MAT'L,625.00,2013,AP,Accounts payable,E0047740,LEXIS-NEXIS
,OFFICE OF THE MAJORITY LEADER,2013Q3,SUPPLIES AND MATERIALS,08-02,COCA-COLA REFRESHMENTS,06/27/13,07/27/13,FOOD & BEVERAGE,97.20,2013,AP,Accounts payable,E0047741,COCA-COLA REFRESHMENTS
,OFFICE OF THE MAJORITY LEADER,2013Q3,SUPPLIES AND MATERIALS,08-05,JOE RAGAN'S COFFEE LTD,07/26/13,08/25/13,FOOD & BEVERAGE,523.10,2013,AP,Accounts payable,E0047738,JOE RAGAN'S COFFEE LTD
,OFFICE OF THE MAJORITY LEADER,2013Q3,SUPPLIES AND MATERIALS,08-20,CITI PCARD-APL APPLE ITUNES STORE,06/29/13,07/28/13,PUBLICATIONS/REFERENCE MAT'L,1.05,2013,AP,Accounts payable,00682797,CITI PCARD-APL APPLE ITUNES STORE
,OFFICE OF THE MAJORITY LEADER,2013Q3,SUPPLIES AND MATERIALS,08-20,CITI PCARD-D J WALL-ST-JOURNAL,06/29/13,07/28/13,PUBLICATIONS/REFERENCE MAT'L,120.58,2013,AP,Accounts payable,00682797,CITI PCARD-D J WALL-ST-JOURNAL
,OFFICE OF THE MAJORITY LEADER,2013Q3,SUPPLIES AND MATERIALS,08-20,CITI PCARD-HARRIS TEETER,06/29/13,07/28/13,FOOD & BEVERAGE,273.41,2013,AP,Accounts payable,00682797,CITI PCARD-HARRIS TEETER
,OFFICE OF THE MAJORITY LEADER,2013Q3,SUPPLIES AND MATERIALS,08-20,CITI PCARD-NEW YORK TIMES DIGITAL,06/29/13,07/28/13,PUBLICATIONS/REFERENCE MAT'L,37.10,2013,AP,Accounts payable,00682797,CITI PCARD-NEW YORK TIMES DIGITAL
,OFFICE OF THE MAJORITY LEADER,2013Q3,SUPPLIES AND MATERIALS,08-20,CITI PCARD-SAFEWAY STORE,06/29/13,07/28/13,FOOD & BEVERAGE,222.68,2013,AP,Accounts payable,00682797,CITI PCARD-SAFEWAY STORE
,OFFICE OF THE MAJORITY LEADER,2013Q3,SUPPLIES AND MATERIALS,08-20,CITI PCARD-WME RTD PAPER SUBSCRIP,06/29/13,07/28/13,PUBLICATIONS/REFERENCE MAT'L,18.00,2013,AP,Accounts payable,00682797,CITI PCARD-WME RTD PAPER SUBSCRIP
,OFFICE OF THE MAJORITY LEADER,2013Q3,SUPPLIES AND MATERIALS,08-29,LEXIS-NEXIS,07/01/13,07/31/13,PUBLICATIONS/REFERENCE MAT'L,625.00,2013,AP,Accounts payable,E0055849,LEXIS-NEXIS
,OFFICE OF THE MAJORITY LEADER,2013Q3,SUPPLIES AND MATERIALS,08-29,DEER PARK WATER,06/27/13,07/26/13,WATER,704.88,2013,AP,Accounts payable,E0055851,DEER PARK WATER
,OFFICE OF THE MAJORITY LEADER,2013Q3,SUPPLIES AND MATERIALS,09-04,CANTEEN REFRESHMENT SERVICES,04/09/13,04/09/13,FOOD & BEVERAGE,199.91,2013,AP,Accounts payable,E0056250,CANTEEN REFRESHMENT SERVICES
,OFFICE OF THE MAJORITY LEADER,2013Q3,SUPPLIES AND MATERIALS,09-18,DEER PARK WATER,03/27/13,04/26/13,FOOD & BEVERAGE,583.60,2013,AP,Accounts payable,E0065262,DEER PARK WATER
,OFFICE OF THE MAJORITY LEADER,2013Q3,SUPPLIES AND MATERIALS,09-18,JOE RAGAN'S COFFEE LTD,08/23/13,09/22/13,FOOD & BEVERAGE,245.00,2013,AP,Accounts payable,E0065265,JOE RAGAN'S COFFEE LTD
,OFFICE OF THE MAJORITY LEADER,2013Q3,SUPPLIES AND MATERIALS,09-18,DEER PARK WATER,07/27/13,08/26/13,FOOD & BEVERAGE,674.93,2013,AP,Accounts payable,E0065266,DEER PARK WATER
,OFFICE OF THE MAJORITY LEADER,2013Q3,SUPPLIES AND MATERIALS,09-18,JOE RAGAN'S COFFEE LTD,08/28/13,08/28/13,FOOD & BEVERAGE,129.50,2013,AP,Accounts payable,E0065267,JOE RAGAN'S COFFEE LTD
,OFFICE OF THE MAJORITY LEADER,2013Q3,SUPPLIES AND MATERIALS,09-19,CITI PCARD-APL APPLE ITUNES STORE,07/29/13,08/28/13,PUBLICATIONS/REFERENCE MAT'L,37.09,2013,AP,Accounts payable,00690112,CITI PCARD-APL APPLE ITUNES STORE
,OFFICE OF THE MAJORITY LEADER,2013Q3,SUPPLIES AND MATERIALS,09-19,CITI PCARD-NEW YORK TIMES DIGITAL,07/29/13,08/28/13,PUBLICATIONS/REFERENCE MAT'L,37.10,2013,AP,Accounts payable,00690112,CITI PCARD-NEW YORK TIMES DIGITAL
,OFFICE OF THE MAJORITY LEADER,2013Q3,SUPPLIES AND MATERIALS,09-19,CITI PCARD-SAFEWAY STORE,07/29/13,08/28/13,FOOD & BEVERAGE,217.04,2013,AP,Accounts payable,00690112,CITI PCARD-SAFEWAY STORE
,OFFICE OF THE MAJORITY LEADER,2013Q3,SUPPLIES AND MATERIALS,09-25,JOE RAGAN'S COFFEE LTD,09/17/13,10/16/13,FOOD & BEVERAGE,484.00,2013,AP,Accounts payable,E0068051,JOE RAGAN'S COFFEE LTD
,OFFICE OF THE MINORITY LEADER,2013Q3,PERSONNEL BENEFITS,07-02,OCCASIONS CATERERS,03/13/13,03/13/13,OFFICIAL EXPENSES FOR LEADERS,"5,195.00",2013,AP,Accounts payable,00675501,OCCASIONS CATERERS
,OFFICE OF THE MINORITY LEADER,2013Q3,PERSONNEL BENEFITS,07-24,OCCASIONS CATERERS,03/13/13,03/13/13,OFFICIAL EXPENSES FOR LEADERS,"-5,195.00",2013,AP,Accounts payable,00680312,OCCASIONS CATERERS
,OFFICE OF THE MINORITY LEADER,2013Q3,SUPPLIES AND MATERIALS,07-24,OCCASIONS CATERERS,03/13/13,03/13/13,FOOD & BEVERAGE,"5,195.00",2013,AP,Accounts payable,00680312,OCCASIONS CATERERS
,OFFICE OF THE MINORITY LEADER,2013Q3,PERSONNEL COMPENSATION,"","ABOUCHAR, KEITH S",07/01/13,09/30/13,SENIOR POLICY ADVISOR,"32,700.00",2013,"","","","ABOUCHAR, KEITH S"
,OFFICE OF THE MINORITY LEADER,2013Q3,PERSONNEL COMPENSATION,"","AGUILAR,JORGE A",07/01/13,09/30/13,PRESS ASSISTANT,"11,999.99",2013,"","","","AGUILAR,JORGE A"
,OFFICE OF THE MINORITY LEADER,2013Q3,PERSONNEL COMPENSATION,"","AGUILAR,JORGE A",06/01/13,08/31/13,PRESS ASSISTANT (OVERTIME),"3,586.11",2013,"","","","AGUILAR,JORGE A"
,OFFICE OF THE MINORITY LEADER,2013Q3,PERSONNEL COMPENSATION,"","BARRY,MARY K",07/01/13,09/30/13,DEPUTY DIRECTOR OF ADVANCE,"26,750.00",2013,"","","","BARRY,MARY K"
,OFFICE OF THE MINORITY LEADER,2013Q3,PERSONNEL COMPENSATION,"","BERRET,EMILY C",08/12/13,09/30/13,SPECIAL ASST TO THE LEADER,"7,213.89",2013,"","","","BERRET,EMILY C"
,OFFICE OF THE MINORITY LEADER,2013Q3,PERSONNEL COMPENSATION,"","BLOOM, MICHAEL T",07/01/13,09/30/13,DEPUTY POLICY DIRECTOR,"29,999.99",2013,"","","","BLOOM, MICHAEL T"
,OFFICE OF THE MINORITY LEADER,2013Q3,PERSONNEL COMPENSATION,"","BRIGHT,VICTORIA M",09/01/13,09/30/13,OUTREACH ASSISTANT,"5,708.83",2013,"","","","BRIGHT,VICTORIA M"
,OFFICE OF THE MINORITY LEADER,2013Q3,PERSONNEL COMPENSATION,"","CAPRON, MARGARET W",07/01/13,09/30/13,SENIOR ADV POLICY & COMM,"31,924.26",2013,"","","","CAPRON, MARGARET W"
,OFFICE OF THE MINORITY LEADER,2013Q3,PERSONNEL COMPENSATION,"","CASHMAN,MARY D",07/01/13,07/01/13,ASST TO THE CHIEF OF STAFF,200.00,2013,"","","","CASHMAN,MARY D"
,OFFICE OF THE MINORITY LEADER,2013Q3,PERSONNEL COMPENSATION,"","CHERRY,STEPHANIE",07/01/13,09/30/13,PRESS ADVISOR,"22,962.26",2013,"","","","CHERRY,STEPHANIE"
,OFFICE OF THE MINORITY LEADER,2013Q3,PERSONNEL COMPENSATION,"","COVEY-BRANDT, ALEXIS",07/01/13,09/30/13,CHIEF OF STAFF,"42,825.00",2013,"","","","COVEY-BRANDT, ALEXIS"
,OFFICE OF THE MINORITY LEADER,2013Q3,PERSONNEL COMPENSATION,"","DAY,TAMIKA K",07/01/13,09/30/13,SR STAFF ASST SYS ADMIN,"12,500.01",2013,"","","","DAY,TAMIKA K"
,OFFICE OF THE MINORITY LEADER,2013Q3,PERSONNEL COMPENSATION,"","DEGRAFF, KENNETH B",07/01/13,09/30/13,SENIOR POLICY ADVISOR,"28,749.99",2013,"","","","DEGRAFF, KENNETH B"
,OFFICE OF THE MINORITY LEADER,2013Q3,PERSONNEL COMPENSATION,"","DEVLIN, PATRICK J",07/01/13,09/30/13,COMMUNICATIONS DIRECTOR,"31,250.01",2013,"","","","DEVLIN, PATRICK J"
,OFFICE OF THE MINORITY LEADER,2013Q3,PERSONNEL COMPENSATION,"","DEWHIRST, DIANE",07/01/13,09/30/13,SENIOR ADVISOR,"29,499.99",2013,"","","","DEWHIRST, DIANE"
,OFFICE OF THE MINORITY LEADER,2013Q3,PERSONNEL COMPENSATION,"","DOMINGUEZ,ASHLEY F",07/01/13,07/08/13,STAFF ASSISTANT/PERSONAL CORR,622.22,2013,"","","","DOMINGUEZ,ASHLEY F"
,OFFICE OF THE MINORITY LEADER,2013Q3,PERSONNEL COMPENSATION,"","DOMINGUEZ,ASHLEY F",06/01/13,07/08/13,STAFF ASSISTANT/PERSONAL CORR (OVERTIME),"2,059.59",2013,"","","","DOMINGUEZ,ASHLEY F"
,OFFICE OF THE MINORITY LEADER,2013Q3,PERSONNEL COMPENSATION,"","DOMINGUEZ,ASHLEY F",07/01/13,07/08/13,STAFF ASSISTANT/PERSONAL CORR (OTHER COMPENSATION),622.22,2013,"","","","DOMINGUEZ,ASHLEY F"
,OFFICE OF THE MINORITY LEADER,2013Q3,PERSONNEL COMPENSATION,"","EDMONSON, ROBERT D",07/01/13,09/30/13,CHIEF OF STAFF,"17,499.99",2013,"","","","EDMONSON, ROBERT D"
,OFFICE OF THE MINORITY LEADER,2013Q3,PERSONNEL COMPENSATION,"","ELLISON,MATTHEW B",07/01/13,09/30/13,RESEARCH ASSISTANT,"7,500.00",2013,"","","","ELLISON,MATTHEW B"
,OFFICE OF THE MINORITY LEADER,2013Q3,PERSONNEL COMPENSATION,"","ELSHAMI,NADEEM",07/01/13,09/30/13,CHIEF OF STAFF,"43,125.00",2013,"","","","ELSHAMI,NADEEM"
,OFFICE OF THE MINORITY LEADER,2013Q3,PERSONNEL COMPENSATION,"","ETIENNE,ASHLEY D",07/01/13,09/30/13,DEPUTY COMM DIRECTOR,"32,499.99",2013,"","","","ETIENNE,ASHLEY D"
,OFFICE OF THE MINORITY LEADER,2013Q3,PERSONNEL COMPENSATION,"","FISCHER JR, ROBERT V",07/01/13,09/30/13,ASST FLOOR CHIEF,"33,289.50",2013,"","","","FISCHER JR, ROBERT V"
,OFFICE OF THE MINORITY LEADER,2013Q3,PERSONNEL COMPENSATION,"","GEORGE,EVANGELINE M",07/01/13,09/30/13,PRESS SECRETARY,"18,875.00",2013,"","","","GEORGE,EVANGELINE M"
,OFFICE OF THE MINORITY LEADER,2013Q3,PERSONNEL COMPENSATION,"","GREENER, APRIL L",07/01/13,09/30/13,RESEARCH DIRECTOR,"21,249.99",2013,"","","","GREENER, APRIL L"
,OFFICE OF THE MINORITY LEADER,2013Q3,PERSONNEL COMPENSATION,"","HAMMILL, ANDREW T",07/01/13,09/30/13,COMM DIR/SENIOR ADVISOR,"43,125.00",2013,"","","","HAMMILL, ANDREW T"
,OFFICE OF THE MINORITY LEADER,2013Q3,PERSONNEL COMPENSATION,"","HARTZ, JERRY",07/01/13,09/30/13,DIRECTOR OF FLOOR OPERATIONS,"43,125.00",2013,"","","","HARTZ, JERRY"
,OFFICE OF THE MINORITY LEADER,2013Q3,PERSONNEL COMPENSATION,"","HAYNES JR, WILFRED J",07/01/13,09/30/13,IT DIRECTOR,"24,530.49",2013,"","","","HAYNES JR, WILFRED J"
,OFFICE OF THE MINORITY LEADER,2013Q3,PERSONNEL COMPENSATION,"","IVESTER, WREN",07/01/13,09/30/13,ASST FLOOR CHIEF,"29,974.50",2013,"","","","IVESTER, WREN"
,OFFICE OF THE MINORITY LEADER,2013Q3,PERSONNEL COMPENSATION,"","JUDGE, KRISTINE A",07/01/13,09/30/13,SENIOR ADVISOR/POLICY COMM,"31,924.26",2013,"","","","JUDGE, KRISTINE A"
,OFFICE OF THE MINORITY LEADER,2013Q3,PERSONNEL COMPENSATION,"","KAPLAN,EMMA L",07/01/13,09/30/13,ASST TO THE EXECUTIVE OFFICE,"11,250.00",2013,"","","","KAPLAN,EMMA L"
,OFFICE OF THE MINORITY LEADER,2013Q3,PERSONNEL COMPENSATION,"","KAPLAN,EMMA L",07/01/13,08/31/13,ASST TO THE EXECUTIVE OFFICE (OVERTIME),"2,236.99",2013,"","","","KAPLAN,EMMA L"
,OFFICE OF THE MINORITY LEADER,2013Q3,PERSONNEL COMPENSATION,"","KEITA,KAMILAH Z",07/01/13,09/30/13,DEPUTY INFOMATION TECH. DIRECT,"22,283.01",2013,"","","","KEITA,KAMILAH Z"
,OFFICE OF THE MINORITY LEADER,2013Q3,PERSONNEL COMPENSATION,"","KING,RYAN M",07/01/13,09/30/13,PRESS ADVISOR,"13,250.00",2013,"","","","KING,RYAN M"
,OFFICE OF THE MINORITY LEADER,2013Q3,PERSONNEL COMPENSATION,"","KING,RYAN M",06/01/13,08/31/13,PRESS ADVISOR (OVERTIME),"2,903.33",2013,"","","","KING,RYAN M"
,OFFICE OF THE MINORITY LEADER,2013Q3,PERSONNEL COMPENSATION,"","KRETMAN,MATTHEW A",07/01/13,09/30/13,DIRECTOR OF OUTREACH,"9,999.99",2013,"","","","KRETMAN,MATTHEW A"
,OFFICE OF THE MINORITY LEADER,2013Q3,PERSONNEL COMPENSATION,"","KUNDANIS, GEORGE",07/01/13,09/30/13,DEPUTY CHIEF OF STAFF,"43,125.00",2013,"","","","KUNDANIS, GEORGE"
,OFFICE OF THE MINORITY LEADER,2013Q3,PERSONNEL COMPENSATION,"","LIZARRAGA, JAIME E",07/01/13,09/30/13,SR ADV & DIR OF MEMBER SVC,"39,905.49",2013,"","","","LIZARRAGA, JAIME E"
,OFFICE OF THE MINORITY LEADER,2013Q3,PERSONNEL COMPENSATION,"","LONG,MICHAEL G",07/01/13,09/30/13,DEPUTY DIRECTOR OF MEMBER SVCS,"23,750.00",2013,"","","","LONG,MICHAEL G"
,OFFICE OF THE MINORITY LEADER,2013Q3,PERSONNEL COMPENSATION,"","MAHR,THOMAS",07/01/13,09/30/13,POLICY DIRECTOR,"29,700.00",2013,"","","","MAHR,THOMAS"
,OFFICE OF THE MINORITY LEADER,2013Q3,PERSONNEL COMPENSATION,"","MANGRUM, PEARL J",07/01/13,09/30/13,FINANCIAL ADMINISTRATOR,"21,241.67",2013,"","","","MANGRUM, PEARL J"
,OFFICE OF THE MINORITY LEADER,2013Q3,PERSONNEL COMPENSATION,"","MCCLELLAND,ETHAN L",07/01/13,09/30/13,SPECIAL ASSISTANT,"15,500.01",2013,"","","","MCCLELLAND,ETHAN L"
,OFFICE OF THE MINORITY LEADER,2013Q3,PERSONNEL COMPENSATION,"","MEDLIN,MELINDA L",07/01/13,09/30/13,DIRECTOR OF SCHEDULING,"35,847.00",2013,"","","","MEDLIN,MELINDA L"
,OFFICE OF THE MINORITY LEADER,2013Q3,PERSONNEL COMPENSATION,"","MELTZER,RICHARD",07/01/13,09/30/13,POLICY DIRECTOR,"43,125.00",2013,"","","","MELTZER,RICHARD"
,OFFICE OF THE MINORITY LEADER,2013Q3,PERSONNEL COMPENSATION,"","MILLER,AMY M",07/01/13,09/30/13,SENIOR ADVISOR,"24,999.99",2013,"","","","MILLER,AMY M"
,OFFICE OF THE MINORITY LEADER,2013Q3,PERSONNEL COMPENSATION,"","MINOR,JAIME N",07/01/13,09/30/13,DISTRICT SCHEDULER/EXEC ASSIST,"3,000.00",2013,"","","","MINOR,JAIME N"
,OFFICE OF THE MINORITY LEADER,2013Q3,PERSONNEL COMPENSATION,"","MONGE,KATHERINE S",09/03/13,09/30/13,TAX POLICY ADVISOR,"9,333.33",2013,"","","","MONGE,KATHERINE S"
,OFFICE OF THE MINORITY LEADER,2013Q3,PERSONNEL COMPENSATION,"","MURRAY, ELIZABETH M",07/01/13,09/30/13,SENIOR POLICY ADVISOR,"32,199.99",2013,"","","","MURRAY, ELIZABETH M"
,OFFICE OF THE MINORITY LEADER,2013Q3,PERSONNEL COMPENSATION,"","PARDUE, LAURA E",07/01/13,09/30/13,DEPUTY DIR. - FLOOR OPERATIONS,"31,250.01",2013,"","","","PARDUE, LAURA E"
,OFFICE OF THE MINORITY LEADER,2013Q3,PERSONNEL COMPENSATION,"","PARKER, WYNDEE R",07/01/13,09/30/13,SENIOR POLICY ADVISOR,"43,125.00",2013,"","","","PARKER, WYNDEE R"
,OFFICE OF THE MINORITY LEADER,2013Q3,PERSONNEL COMPENSATION,"","POWELL,JONATHAN M",07/01/13,09/30/13,DIRECTOR OF SPEECHWRITING,"27,000.01",2013,"","","","POWELL,JONATHAN M"
,OFFICE OF THE MINORITY LEADER,2013Q3,PERSONNEL COMPENSATION,"","PRICE, REVA B",07/01/13,09/30/13,OUTREACH DIRECTOR & ADVISOR,"31,924.26",2013,"","","","PRICE, REVA B"
,OFFICE OF THE MINORITY LEADER,2013Q3,PERSONNEL COMPENSATION,"","PRIMUS, WENDELL E",07/01/13,09/30/13,SENIOR POLICY ADVISOR,"43,125.00",2013,"","","","PRIMUS, WENDELL E"
,OFFICE OF THE MINORITY LEADER,2013Q3,PERSONNEL COMPENSATION,"","QUEEN,CORNELIUS W",07/01/13,09/30/13,STAFF ASSISTANT,"6,999.99",2013,"","","","QUEEN,CORNELIUS W"
,OFFICE OF THE MINORITY LEADER,2013Q3,PERSONNEL COMPENSATION,"","REPKO,MARY F",07/01/13,09/30/13,SENIOR POLICY ADVISOR,"32,949.99",2013,"","","","REPKO,MARY F"
,OFFICE OF THE MINORITY LEADER,2013Q3,PERSONNEL COMPENSATION,"","ROMICK, BRIAN",07/01/13,09/30/13,MEMBER SERVICES DIRECTOR,"35,949.99",2013,"","","","ROMICK, BRIAN"
,OFFICE OF THE MINORITY LEADER,2013Q3,PERSONNEL COMPENSATION,"","ROSS,PATRICIA L",09/01/13,09/30/13,LEGISLATIVE ASSISTANT,"6,000.00",2013,"","","","ROSS,PATRICIA L"
,OFFICE OF THE MINORITY LEADER,2013Q3,PERSONNEL COMPENSATION,"","SINGLETARY, BARVETTA",07/01/13,09/30/13,POLICY DIRECTOR,"33,249.99",2013,"","","","SINGLETARY, BARVETTA"
,OFFICE OF THE MINORITY LEADER,2013Q3,PERSONNEL COMPENSATION,"","SMITH,KELSEY L",07/01/13,09/30/13,DEPUTY DIRECTOR OF SCHEDULING,"16,375.01",2013,"","","","SMITH,KELSEY L"
,OFFICE OF THE MINORITY LEADER,2013Q3,PERSONNEL COMPENSATION,"","SMITH,KELSEY L",06/01/13,08/31/13,DEPUTY DIRECTOR OF SCHEDULING (OVERTIME),"6,012.83",2013,"","","","SMITH,KELSEY L"
,OFFICE OF THE MINORITY LEADER,2013Q3,PERSONNEL COMPENSATION,"","SOMANADER,TANYA",07/01/13,09/30/13,DIR OF NEW MEDIA/SPEECHWRITER,"20,000.01",2013,"","","","SOMANADER,TANYA"
,OFFICE OF THE MINORITY LEADER,2013Q3,PERSONNEL COMPENSATION,"","STIVERS, JONATHAN",07/01/13,09/30/13,SENIOR ADVISOR,"35,000.01",2013,"","","","STIVERS, JONATHAN"
,OFFICE OF THE MINORITY LEADER,2013Q3,PERSONNEL COMPENSATION,"","SULLIVAN, BARRY K",07/01/13,09/30/13,CHIEF FLOOR SERVICE (MIN),"43,125.00",2013,"","","","SULLIVAN, BARRY K"
,OFFICE OF THE MINORITY LEADER,2013Q3,PERSONNEL COMPENSATION,"","SURGEON,BINA G",07/01/13,09/30/13,SPECIAL ASST TO THE LEADER,"23,666.67",2013,"","","","SURGEON,BINA G"
,OFFICE OF THE MINORITY LEADER,2013Q3,PERSONNEL COMPENSATION,"","TECKLENBURG, MICHAEL H",07/01/13,09/30/13,COUNSEL,"32,499.99",2013,"","","","TECKLENBURG, MICHAEL H"
,OFFICE OF THE MINORITY LEADER,2013Q3,PERSONNEL COMPENSATION,"","WATKINS, YELBERTON R",07/01/13,09/30/13,CHIEF OF STAFF,"41,250.00",2013,"","","","WATKINS, YELBERTON R"
,OFFICE OF THE MINORITY LEADER,2013Q3,PERSONNEL COMPENSATION,"","WEST,JULIUS L",07/01/13,08/31/13,DISTRICT ASSISTANT,"8,333.34",2013,"","","","WEST,JULIUS L"
,OFFICE OF THE MINORITY LEADER,2013Q3,PERSONNEL COMPENSATION,"","WEST,JULIUS L",09/01/13,09/30/13,DEPUTY DIRECTOR OF MEMBER SVCS,"4,166.67",2013,"","","","WEST,JULIUS L"
,OFFICE OF THE MINORITY LEADER,2013Q3,PERSONNEL COMPENSATION,"","WOLTERS, KATE",07/01/13,09/30/13,PERSONAL ASSISTANT,"34,646.49",2013,"","","","WOLTERS, KATE"
,OFFICE OF THE MINORITY LEADER,2013Q3,TRAVEL,07-10,"HAMMILL, ANDREW T",06/24/13,06/26/13,TRAVEL SUBSISTENCE,"1,089.22",2013,AP,Accounts payable,E0037236,"HAMMILL, ANDREW T"
,OFFICE OF THE MINORITY LEADER,2013Q3,TRAVEL,07-10,"SURGEON,BINA G",05/08/13,06/25/13,TAXI/PARKING/TOLLS,177.00,2013,AP,Accounts payable,E0037238,"SURGEON,BINA G"
,OFFICE OF THE MINORITY LEADER,2013Q3,TRAVEL,07-10,"SURGEON,BINA G",04/28/13,06/25/13,TRAVEL SUBSISTENCE,297.30,2013,AP,Accounts payable,E0037238,"SURGEON,BINA G"
,OFFICE OF THE MINORITY LEADER,2013Q3,TRAVEL,07-10,"SMITH, KELSEY L",06/23/13,06/23/13,MEALS,17.74,2013,AP,Accounts payable,E0037241,"SMITH, KELSEY L"
,OFFICE OF THE MINORITY LEADER,2013Q3,TRAVEL,07-16,CITIBANK GOV CARD SERVICE,05/28/13,06/24/13,TRAVEL SUBSISTENCE,"5,579.67",2013,AP,Accounts payable,E0041320,CITIBANK GOV CARD SERVICE
,OFFICE OF THE MINORITY LEADER,2013Q3,TRAVEL,07-16,CITIBANK GOV CARD SERVICE,05/30/13,06/28/13,COMMERCIAL TRANSPORTATION,"3,876.50",2013,AP,Accounts payable,E0041321,CITIBANK GOV CARD SERVICE
,OFFICE OF THE MINORITY LEADER,2013Q3,TRAVEL,07-25,"BARRY, MARY-KATE",06/25/13,07/09/13,TAXI/PARKING/TOLLS,15.75,2013,AP,Accounts payable,E0044281,"BARRY, MARY-KATE"
,OFFICE OF THE MINORITY LEADER,2013Q3,TRAVEL,07-25,"BARRY, MARY-KATE",06/23/13,06/24/13,TRAVEL SUBSISTENCE,129.03,2013,AP,Accounts payable,E0044281,"BARRY, MARY-KATE"
,OFFICE OF THE MINORITY LEADER,2013Q3,TRAVEL,07-25,"STIVERS, JONATHAN",07/10/13,07/10/13,TAXI/PARKING/TOLLS,29.72,2013,AP,Accounts payable,E0044285,"STIVERS, JONATHAN"
,OFFICE OF THE MINORITY LEADER,2013Q3,TRAVEL,07-25,"MINOR, JAIME N",06/17/13,06/20/13,TRAVEL SUBSISTENCE,27.70,2013,AP,Accounts payable,E0044286,"MINOR, JAIME N"
,OFFICE OF THE MINORITY LEADER,2013Q3,TRAVEL,07-26,"MCCLELLAND, ETHAN L",07/15/13,07/15/13,TAXI/PARKING/TOLLS,8.94,2013,AP,Accounts payable,E0044761,"MCCLELLAND, ETHAN L"
,OFFICE OF THE MINORITY LEADER,2013Q3,TRAVEL,07-31,CITIBANK GOV CARD SERVICE,05/28/13,06/25/13,TRAVEL SUBSISTENCE,"1,956.28",2013,AP,Accounts payable,00680691,CITIBANK GOV CARD SERVICE
,OFFICE OF THE MINORITY LEADER,2013Q3,TRAVEL,08-02,"SMITH, KELSEY L",07/25/13,07/26/13,TRAVEL SUBSISTENCE,595.97,2013,AP,Accounts payable,E0047250,"SMITH, KELSEY L"
,OFFICE OF THE MINORITY LEADER,2013Q3,TRAVEL,08-12,CITIBANK GOV CARD SERVICE,06/24/13,06/24/13,MEALS,49.80,2013,AP,Accounts payable,E0050002,CITIBANK GOV CARD SERVICE
,OFFICE OF THE MINORITY LEADER,2013Q3,TRAVEL,08-28,"STIVERS, JONATHAN",07/30/13,07/30/13,TAXI/PARKING/TOLLS,12.00,2013,AP,Accounts payable,E0055138,"STIVERS, JONATHAN"
,OFFICE OF THE MINORITY LEADER,2013Q3,TRAVEL,08-28,"MINOR, JAIME N",08/09/13,08/14/13,TAXI/PARKING/TOLLS,52.20,2013,AP,Accounts payable,E0055141,"MINOR, JAIME N"
,OFFICE OF THE MINORITY LEADER,2013Q3,TRAVEL,08-28,"PRICE, REVA B",01/22/13,08/06/13,TAXI/PARKING/TOLLS,229.00,2013,AP,Accounts payable,E0055142,"PRICE, REVA B"
,OFFICE OF THE MINORITY LEADER,2013Q3,TRAVEL,08-28,"PRICE, REVA B",08/12/13,08/14/13,TRAVEL SUBSISTENCE,403.42,2013,AP,Accounts payable,E0055142,"PRICE, REVA B"
,OFFICE OF THE MINORITY LEADER,2013Q3,TRAVEL,08-30,CITIBANK GOV CARD SERVICE,07/08/13,08/12/13,COMMERCIAL TRANSPORTATION,"2,388.00",2013,AP,Accounts payable,00685621,CITIBANK GOV CARD SERVICE
,OFFICE OF THE MINORITY LEADER,2013Q3,TRAVEL,08-30,"MINOR, JAIME N",06/06/13,07/21/13,PRIVATE AUTO MILEAGE,67.17,2013,AP,Accounts payable,00685622,"MINOR, JAIME N"
,OFFICE OF THE MINORITY LEADER,2013Q3,TRAVEL,09-06,CITIBANK GOV CARD SERVICE,07/28/13,08/26/13,TRAVEL SUBSISTENCE,"11,068.71",2013,AP,Accounts payable,E0059658,CITIBANK GOV CARD SERVICE
,OFFICE OF THE MINORITY LEADER,2013Q3,TRAVEL,09-10,"WOLTERS, KATE",08/12/13,08/14/13,TRAVEL SUBSISTENCE,"1,063.41",2013,AP,Accounts payable,E0059224,"WOLTERS, KATE"
,OFFICE OF THE MINORITY LEADER,2013Q3,TRAVEL,09-10,"SMITH, KELSEY L",08/22/13,08/23/13,TRAVEL SUBSISTENCE,127.18,2013,AP,Accounts payable,E0059225,"SMITH, KELSEY L"
,OFFICE OF THE MINORITY LEADER,2013Q3,TRAVEL,09-13,CITIBANK GOV CARD SERVICE,07/25/13,08/26/13,TRAVEL SUBSISTENCE,"1,976.41",2013,AP,Accounts payable,E0060765,CITIBANK GOV CARD SERVICE
,OFFICE OF THE MINORITY LEADER,2013Q3,TRAVEL,09-18,"MINOR, JAIME N",09/05/13,09/05/13,MEALS,5.90,2013,AP,Accounts payable,E0063248,"MINOR, JAIME N"
,OFFICE OF THE MINORITY LEADER,2013Q3,TRAVEL,09-18,"MINOR, JAIME N",08/27/13,08/27/13,TAXI/PARKING/TOLLS,9.00,2013,AP,Accounts payable,E0063248,"MINOR, JAIME N"
,OFFICE OF THE MINORITY LEADER,2013Q3,TRAVEL,09-18,"WOLTERS, KATE",08/24/13,08/26/13,TRAVEL SUBSISTENCE,622.28,2013,AP,Accounts payable,E0063257,"WOLTERS, KATE"
,OFFICE OF THE MINORITY LEADER,2013Q3,TRAVEL,09-18,CITIBANK GOV CARD SERVICE,07/30/13,08/27/13,TRAVEL SUBSISTENCE,"4,718.70",2013,AP,Accounts payable,E0063259,CITIBANK GOV CARD SERVICE
,OFFICE OF THE MINORITY LEADER,2013Q3,TRAVEL,09-18,"BARRY, MARY-KATE",06/03/13,07/22/13,TAXI/PARKING/TOLLS,81.00,2013,AP,Accounts payable,E0063441,"BARRY, MARY-KATE"
,OFFICE OF THE MINORITY LEADER,2013Q3,TRAVEL,09-23,"WOLTERS, KATE",09/13/13,09/14/13,TRAVEL SUBSISTENCE,633.25,2013,AP,Accounts payable,E0067155,"WOLTERS, KATE"
,OFFICE OF THE MINORITY LEADER,2013Q3,TRAVEL,09-23,"WOLTERS, KATE",09/09/13,09/10/13,TAXI/PARKING/TOLLS,47.45,2013,AP,Accounts payable,E0067157,"WOLTERS, KATE"
,OFFICE OF THE MINORITY LEADER,2013Q3,TRAVEL,09-24,CITIBANK GOV CARD SERVICE,09/17/13,09/24/13,COMMERCIAL TRANSPORTATION,"1,601.00",2013,AP,Accounts payable,E0067516,CITIBANK GOV CARD SERVICE
,OFFICE OF THE MINORITY LEADER,2013Q3,TRAVEL,09-25,"MINOR, JAIME N",08/04/13,09/07/13,PRIVATE AUTO MILEAGE,89.66,2013,AP,Accounts payable,E0068254,"MINOR, JAIME N"
,OFFICE OF THE MINORITY LEADER,2013Q3,TRAVEL,09-26,"MCCLELLAND, ETHAN L",09/19/13,09/19/13,TAXI/PARKING/TOLLS,11.70,2013,AP,Accounts payable,E0068664,"MCCLELLAND, ETHAN L"
,OFFICE OF THE MINORITY LEADER,2013Q3,TRAVEL,09-27,"SMITH, KELSEY L",09/23/13,09/23/13,TAXI/PARKING/TOLLS,12.00,2013,AP,Accounts payable,E0069077,"SMITH, KELSEY L"
,OFFICE OF THE MINORITY LEADER,2013Q3,TRAVEL,09-30,"MINOR, JAIME N",07/12/13,07/15/13,TRAVEL SUBSISTENCE,87.26,2013,AP,Accounts payable,00691336,"MINOR, JAIME N"
,OFFICE OF THE MINORITY LEADER,2013Q3,"RENT, COMMUNICATION, UTILITIES",07-25,FEDEX,06/25/13,06/25/13,POSTAGE / COURIER / BOX RENTAL,4.85,2013,AP,Accounts payable,E0044283,FEDEX
,OFFICE OF THE MINORITY LEADER,2013Q3,"RENT, COMMUNICATION, UTILITIES",07-26,"MCCLELLAND, ETHAN L",07/16/13,07/16/13,POSTAGE / COURIER / BOX RENTAL,22.50,2013,AP,Accounts payable,E0044282,"MCCLELLAND, ETHAN L"
,OFFICE OF THE MINORITY LEADER,2013Q3,"RENT, COMMUNICATION, UTILITIES",08-20,CITI PCARD-TIV TIVO SERVICE,06/29/13,07/28/13,RECORDING (OUTSIDE),38.01,2013,AP,Accounts payable,00682797,CITI PCARD-TIV TIVO SERVICE
,OFFICE OF THE MINORITY LEADER,2013Q3,"RENT, COMMUNICATION, UTILITIES",08-28,FEDEX,07/31/13,07/31/13,POSTAGE / COURIER / BOX RENTAL,24.37,2013,AP,Accounts payable,E0055025,FEDEX
,OFFICE OF THE MINORITY LEADER,2013Q3,"RENT, COMMUNICATION, UTILITIES",08-28,FEDEX,07/31/13,07/31/13,POSTAGE / COURIER / BOX RENTAL,244.14,2013,AP,Accounts payable,E0055030,FEDEX
,OFFICE OF THE MINORITY LEADER,2013Q3,"RENT, COMMUNICATION, UTILITIES",08-28,CAPITOLHOST,07/24/13,07/24/13,EQUIP RENTAL (EFF 1/3/03),105.00,2013,AP,Accounts payable,E0055211,CAPITOLHOST
,OFFICE OF THE MINORITY LEADER,2013Q3,"RENT, COMMUNICATION, UTILITIES",09-10,FEDEX,08/07/13,08/07/13,POSTAGE / COURIER / BOX RENTAL,14.97,2013,AP,Accounts payable,E0059228,FEDEX
,OFFICE OF THE MINORITY LEADER,2013Q3,"RENT, COMMUNICATION, UTILITIES",09-10,FEDEX,08/07/13,08/07/13,POSTAGE / COURIER / BOX RENTAL,2.64,2013,AP,Accounts payable,E0059231,FEDEX
,OFFICE OF THE MINORITY LEADER,2013Q3,"RENT, COMMUNICATION, UTILITIES",09-18,FEDEX,08/19/13,08/19/13,POSTAGE / COURIER / BOX RENTAL,54.79,2013,AP,Accounts payable,E0063247,FEDEX
,OFFICE OF THE MINORITY LEADER,2013Q3,"RENT, COMMUNICATION, UTILITIES",09-18,FEDEX,08/19/13,08/19/13,POSTAGE / COURIER / BOX RENTAL,24.37,2013,AP,Accounts payable,E0063252,FEDEX
,OFFICE OF THE MINORITY LEADER,2013Q3,"RENT, COMMUNICATION, UTILITIES",09-19,CITI PCARD-TIV TIVO SERVICE,07/29/13,08/28/13,RECORDING (OUTSIDE),27.46,2013,AP,Accounts payable,00690112,CITI PCARD-TIV TIVO SERVICE
,OFFICE OF THE MINORITY LEADER,2013Q3,"RENT, COMMUNICATION, UTILITIES",09-23,FEDEX,08/27/13,08/27/13,POSTAGE / COURIER / BOX RENTAL,6.54,2013,AP,Accounts payable,E0067156,FEDEX
,OFFICE OF THE MINORITY LEADER,2013Q3,"RENT, COMMUNICATION, UTILITIES",09-24,FEDEX,08/23/13,08/30/13,POSTAGE / COURIER / BOX RENTAL,37.12,2013,AP,Accounts payable,E0067171,FEDEX
,OFFICE OF THE MINORITY LEADER,2013Q3,"RENT, COMMUNICATION, UTILITIES",09-27,FEDEX,08/14/13,08/14/13,POSTAGE / COURIER / BOX RENTAL,5.15,2013,AP,Accounts payable,E0069217,FEDEX
,OFFICE OF THE MINORITY LEADER,2013Q3,PRINTING AND REPRODUCTION,07-26,"",07/01/13,07/31/13,PHOTOGRAPHIC (TRANSFER),307.10,2013,GL,General ledger,PIX0031312,""
,OFFICE OF THE MINORITY LEADER,2013Q3,PRINTING AND REPRODUCTION,08-02,RICOH USA INC,05/01/13,05/31/13,PRINTING & REPRODUCTION,194.36,2013,AP,Accounts payable,E0047257,RICOH USA INC
,OFFICE OF THE MINORITY LEADER,2013Q3,PRINTING AND REPRODUCTION,08-27,"",08/01/13,08/31/13,PHOTOGRAPHIC (TRANSFER),231.30,2013,GL,General ledger,PIX0032157,""
,OFFICE OF THE MINORITY LEADER,2013Q3,PRINTING AND REPRODUCTION,09-18,"BARRY, MARY-KATE",07/31/13,07/31/13,PRINTING & REPRODUCTION,22.04,2013,AP,Accounts payable,E0063441,"BARRY, MARY-KATE"
,OFFICE OF THE MINORITY LEADER,2013Q3,PRINTING AND REPRODUCTION,09-24,"",09/01/13,09/30/13,PHOTOGRAPHIC (TRANSFER),163.70,2013,GL,General ledger,PIX0032892,""
,OFFICE OF THE MINORITY LEADER,2013Q3,OTHER SERVICES,07-25,NEAL R GROSS & COMPANY INC,07/18/13,07/18/13,STENOGRAPHIC REPORTING,750.00,2013,AP,Accounts payable,E0044287,NEAL R GROSS & COMPANY INC
,OFFICE OF THE MINORITY LEADER,2013Q3,OTHER SERVICES,08-06,BERNARD RAIMO,07/01/13,07/31/13,CONSULTANT CONTRACT SERVICE,"7,628.00",2013,AP,Accounts payable,E0048776,BERNARD RAIMO
,OFFICE OF THE MINORITY LEADER,2013Q3,OTHER SERVICES,08-28,NEAL R GROSS & COMPANY INC,07/30/13,07/30/13,STENOGRAPHIC REPORTING,"1,500.00",2013,AP,Accounts payable,E0055040,NEAL R GROSS & COMPANY INC
,OFFICE OF THE MINORITY LEADER,2013Q3,OTHER SERVICES,09-10,BERNARD RAIMO,08/01/13,08/31/13,CONSULTANT CONTRACT SERVICE,"7,628.00",2013,AP,Accounts payable,E0059234,BERNARD RAIMO
,OFFICE OF THE MINORITY LEADER,2013Q3,OTHER SERVICES,09-19,CITI PCARD-CLASSICLEANERS-LONGWOR,07/29/13,08/28/13,LAUNDRY SERVICES,23.96,2013,AP,Accounts payable,00690112,CITI PCARD-CLASSICLEANERS-LONGWOR
,OFFICE OF THE MINORITY LEADER,2013Q3,OTHER SERVICES,09-25,BERNARD RAIMO,09/01/13,09/30/13,CONSULTANT CONTRACT SERVICE,"7,628.00",2013,AP,Accounts payable,E0068256,BERNARD RAIMO
,OFFICE OF THE MINORITY LEADER,2013Q3,SUPPLIES AND MATERIALS,07-10,CAPITOLHOST,06/19/13,06/19/13,FOOD & BEVERAGE,33.00,2013,AP,Accounts payable,00675677,CAPITOLHOST
,OFFICE OF THE MINORITY LEADER,2013Q3,SUPPLIES AND MATERIALS,07-10,CAPITOLHOST,06/19/13,06/19/13,FOOD & BEVERAGE,99.00,2013,AP,Accounts payable,E0037240,CAPITOLHOST
,OFFICE OF THE MINORITY LEADER,2013Q3,SUPPLIES AND MATERIALS,07-17,CRYSTAL SPRINGS,06/01/13,06/30/13,WATER,27.56,2013,AP,Accounts payable,00675678,CRYSTAL SPRINGS
,OFFICE OF THE MINORITY LEADER,2013Q3,SUPPLIES AND MATERIALS,07-22,CITI PCARD-COSI,05/29/13,06/28/13,FOOD & BEVERAGE,179.60,2013,AP,Accounts payable,00680125,CITI PCARD-COSI
,OFFICE OF THE MINORITY LEADER,2013Q3,SUPPLIES AND MATERIALS,07-22,CITI PCARD-COST PLUS WLD,05/29/13,06/28/13,FOOD & BEVERAGE,147.73,2013,AP,Accounts payable,00680125,CITI PCARD-COST PLUS WLD
,OFFICE OF THE MINORITY LEADER,2013Q3,SUPPLIES AND MATERIALS,07-22,CITI PCARD-DUNKIN,05/29/13,06/28/13,FOOD & BEVERAGE,127.77,2013,AP,Accounts payable,00680125,CITI PCARD-DUNKIN
,OFFICE OF THE MINORITY LEADER,2013Q3,SUPPLIES AND MATERIALS,07-22,CITI PCARD-HARRIS TEETER,05/29/13,06/28/13,FOOD & BEVERAGE,258.06,2013,AP,Accounts payable,00680125,CITI PCARD-HARRIS TEETER
,OFFICE OF THE MINORITY LEADER,2013Q3,SUPPLIES AND MATERIALS,07-22,CITI PCARD-TARGET,05/29/13,06/28/13,FOOD & BEVERAGE,500.52,2013,AP,Accounts payable,00680125,CITI PCARD-TARGET
,OFFICE OF THE MINORITY LEADER,2013Q3,SUPPLIES AND MATERIALS,07-22,CITI PCARD-TARGET,05/29/13,06/28/13,OFFICE SUPPLIES (OUTSIDE),91.37,2013,AP,Accounts payable,00680125,CITI PCARD-TARGET
,OFFICE OF THE MINORITY LEADER,2013Q3,SUPPLIES AND MATERIALS,07-22,CITI PCARD-WHOLEFDS PST,05/29/13,06/28/13,FOOD & BEVERAGE,98.05,2013,AP,Accounts payable,00680125,CITI PCARD-WHOLEFDS PST
,OFFICE OF THE MINORITY LEADER,2013Q3,SUPPLIES AND MATERIALS,07-25,CAPITOLHOST,07/10/13,07/10/13,FOOD & BEVERAGE,33.00,2013,AP,Accounts payable,E0044280,CAPITOLHOST
,OFFICE OF THE MINORITY LEADER,2013Q3,SUPPLIES AND MATERIALS,07-25,HAGUE QUALITY WATER OF MD INC,07/01/13,07/31/13,WATER,378.00,2013,AP,Accounts payable,E0044284,HAGUE QUALITY WATER OF MD INC
,OFFICE OF THE MINORITY LEADER,2013Q3,SUPPLIES AND MATERIALS,07-25,CAPITOLHOST,06/25/13,06/25/13,FOOD & BEVERAGE,66.00,2013,AP,Accounts payable,E0044374,CAPITOLHOST
,OFFICE OF THE MINORITY LEADER,2013Q3,SUPPLIES AND MATERIALS,07-25,HELEN OLIVIA FLOWERS,07/08/13,07/08/13,HABITATION EXPENSE,249.00,2013,AP,Accounts payable,E0044759,HELEN OLIVIA FLOWERS
,OFFICE OF THE MINORITY LEADER,2013Q3,SUPPLIES AND MATERIALS,07-26,HELEN OLIVIA FLOWERS,07/30/13,07/30/13,HABITATION EXPENSE,249.00,2013,AP,Accounts payable,E0044762,HELEN OLIVIA FLOWERS
,OFFICE OF THE MINORITY LEADER,2013Q3,SUPPLIES AND MATERIALS,07-26,CAPITOLHOST,07/10/13,07/10/13,FOOD & BEVERAGE,99.00,2013,AP,Accounts payable,E0044763,CAPITOLHOST
,OFFICE OF THE MINORITY LEADER,2013Q3,SUPPLIES AND MATERIALS,07-26,HELEN OLIVIA FLOWERS,07/22/13,07/22/13,HABITATION EXPENSE,249.00,2013,AP,Accounts payable,E0044764,HELEN OLIVIA FLOWERS
,OFFICE OF THE MINORITY LEADER,2013Q3,SUPPLIES AND MATERIALS,07-26,HELEN OLIVIA FLOWERS,06/25/13,06/25/13,HABITATION EXPENSE,249.00,2013,AP,Accounts payable,E0044765,HELEN OLIVIA FLOWERS
,OFFICE OF THE MINORITY LEADER,2013Q3,SUPPLIES AND MATERIALS,07-26,HELEN OLIVIA FLOWERS,07/16/13,07/16/13,HABITATION EXPENSE,249.00,2013,AP,Accounts payable,E0044814,HELEN OLIVIA FLOWERS
,OFFICE OF THE MINORITY LEADER,2013Q3,SUPPLIES AND MATERIALS,07-31,CITIBANK P CARD,05/29/13,06/28/13,OFFICE SUPPLIES (OUTSIDE),-91.37,2013,AP,Accounts payable,00680709,CITIBANK P CARD
,OFFICE OF THE MINORITY LEADER,2013Q3,SUPPLIES AND MATERIALS,08-02,CAPITOLHOST,07/16/13,07/16/13,FOOD & BEVERAGE,66.00,2013,AP,Accounts payable,E0047246,CAPITOLHOST
,OFFICE OF THE MINORITY LEADER,2013Q3,SUPPLIES AND MATERIALS,08-20,CITI PCARD-COSI,06/29/13,07/28/13,FOOD & BEVERAGE,237.28,2013,AP,Accounts payable,00682797,CITI PCARD-COSI
,OFFICE OF THE MINORITY LEADER,2013Q3,SUPPLIES AND MATERIALS,08-20,CITI PCARD-DUNKIN,06/29/13,07/28/13,FOOD & BEVERAGE,135.43,2013,AP,Accounts payable,00682797,CITI PCARD-DUNKIN
,OFFICE OF THE MINORITY LEADER,2013Q3,SUPPLIES AND MATERIALS,08-20,CITI PCARD-HARRIS TEETER,06/29/13,07/28/13,FOOD & BEVERAGE,153.75,2013,AP,Accounts payable,00682797,CITI PCARD-HARRIS TEETER
,OFFICE OF THE MINORITY LEADER,2013Q3,SUPPLIES AND MATERIALS,08-20,CITI PCARD-SWEETGREEN CAPITOL HIL,06/29/13,07/28/13,FOOD & BEVERAGE,91.91,2013,AP,Accounts payable,00682797,CITI PCARD-SWEETGREEN CAPITOL HIL
,OFFICE OF THE MINORITY LEADER,2013Q3,SUPPLIES AND MATERIALS,08-20,CITI PCARD-TARGET,06/29/13,07/28/13,FOOD & BEVERAGE,26.95,2013,AP,Accounts payable,00682797,CITI PCARD-TARGET
,OFFICE OF THE MINORITY LEADER,2013Q3,SUPPLIES AND MATERIALS,08-20,CITI PCARD-TRADER JOE'S,06/29/13,07/28/13,FOOD & BEVERAGE,1.94,2013,AP,Accounts payable,00682797,CITI PCARD-TRADER JOE'S
,OFFICE OF THE MINORITY LEADER,2013Q3,SUPPLIES AND MATERIALS,08-20,CITI PCARD-WHOLEFDS PST,06/29/13,07/28/13,FOOD & BEVERAGE,148.31,2013,AP,Accounts payable,00682797,CITI PCARD-WHOLEFDS PST
,OFFICE OF THE MINORITY LEADER,2013Q3,SUPPLIES AND MATERIALS,08-28,CAPITOLHOST,07/31/13,07/31/13,FOOD & BEVERAGE,30.00,2013,AP,Accounts payable,E0055022,CAPITOLHOST
,OFFICE OF THE MINORITY LEADER,2013Q3,SUPPLIES AND MATERIALS,08-28,CRYSTAL SPRINGS,07/01/13,07/31/13,FOOD & BEVERAGE,"1,244.16",2013,AP,Accounts payable,E0055143,CRYSTAL SPRINGS
,OFFICE OF THE MINORITY LEADER,2013Q3,SUPPLIES AND MATERIALS,08-28,SOUTHWEST DISTRIBUTION INC,10/01/13,12/31/13,PUBLICATIONS/REFERENCE MAT'L,"3,606.10",2013,AP,Accounts payable,E0055144,SOUTHWEST DISTRIBUTION INC
,OFFICE OF THE MINORITY LEADER,2013Q3,SUPPLIES AND MATERIALS,08-28,NATIONAL NEWS AGENCY INC,10/01/13,12/31/13,PUBLICATIONS/REFERENCE MAT'L,613.80,2013,AP,Accounts payable,E0055145,NATIONAL NEWS AGENCY INC
,OFFICE OF THE MINORITY LEADER,2013Q3,SUPPLIES AND MATERIALS,08-28,HAGUE QUALITY WATER OF MD INC,08/01/13,08/31/13,WATER,378.00,2013,AP,Accounts payable,E0055146,HAGUE QUALITY WATER OF MD INC
,OFFICE OF THE MINORITY LEADER,2013Q3,SUPPLIES AND MATERIALS,08-28,CAPITOLHOST,07/24/13,07/24/13,FOOD & BEVERAGE,33.00,2013,AP,Accounts payable,E0055207,CAPITOLHOST
,OFFICE OF THE MINORITY LEADER,2013Q3,SUPPLIES AND MATERIALS,08-28,OCCASIONS CATERERS,07/31/13,07/31/13,FOOD & BEVERAGE,100.00,2013,AP,Accounts payable,E0055208,OCCASIONS CATERERS
,OFFICE OF THE MINORITY LEADER,2013Q3,SUPPLIES AND MATERIALS,08-28,CAPITOLHOST,07/17/13,07/17/13,FOOD & BEVERAGE,33.00,2013,AP,Accounts payable,E0055209,CAPITOLHOST
,OFFICE OF THE MINORITY LEADER,2013Q3,SUPPLIES AND MATERIALS,08-28,CAPITOLHOST,07/22/13,07/22/13,FOOD & BEVERAGE,132.00,2013,AP,Accounts payable,E0055212,CAPITOLHOST
,OFFICE OF THE MINORITY LEADER,2013Q3,SUPPLIES AND MATERIALS,08-28,CAPITOLHOST,07/08/13,07/08/13,FOOD & BEVERAGE,66.00,2013,AP,Accounts payable,E0055214,CAPITOLHOST
,OFFICE OF THE MINORITY LEADER,2013Q3,SUPPLIES AND MATERIALS,08-28,CAPITOLHOST,07/26/13,07/26/13,FOOD & BEVERAGE,33.00,2013,AP,Accounts payable,E0055215,CAPITOLHOST
,OFFICE OF THE MINORITY LEADER,2013Q3,SUPPLIES AND MATERIALS,08-29,CAPITOLHOST,07/17/13,07/17/13,FOOD & BEVERAGE,99.00,2013,AP,Accounts payable,E0055279,CAPITOLHOST
,OFFICE OF THE MINORITY LEADER,2013Q3,SUPPLIES AND MATERIALS,08-30,CAPITOLHOST,07/30/13,07/30/13,FOOD & BEVERAGE,66.00,2013,AP,Accounts payable,E0055035,CAPITOLHOST
,OFFICE OF THE MINORITY LEADER,2013Q3,SUPPLIES AND MATERIALS,09-10,"MCCLELLAND, ETHAN L",08/23/13,08/23/13,HABITATION EXPENSE,180.18,2013,AP,Accounts payable,E0059229,"MCCLELLAND, ETHAN L"
,OFFICE OF THE MINORITY LEADER,2013Q3,SUPPLIES AND MATERIALS,09-10,CRYSTAL SPRINGS,08/01/13,08/31/13,FOOD & BEVERAGE,562.85,2013,AP,Accounts payable,E0059230,CRYSTAL SPRINGS
,OFFICE OF THE MINORITY LEADER,2013Q3,SUPPLIES AND MATERIALS,09-18,"MINOR, JAIME N",09/04/13,09/07/13,PUBLICATIONS/REFERENCE MAT'L,23.89,2013,AP,Accounts payable,E0063248,"MINOR, JAIME N"
,OFFICE OF THE MINORITY LEADER,2013Q3,SUPPLIES AND MATERIALS,09-18,HELEN OLIVIA FLOWERS,09/09/13,09/09/13,HABITATION EXPENSE,249.00,2013,AP,Accounts payable,E0063251,HELEN OLIVIA FLOWERS
,OFFICE OF THE MINORITY LEADER,2013Q3,SUPPLIES AND MATERIALS,09-18,HAGUE QUALITY WATER OF MD INC,09/01/13,09/30/13,WATER,378.00,2013,AP,Accounts payable,E0063253,HAGUE QUALITY WATER OF MD INC
,OFFICE OF THE MINORITY LEADER,2013Q3,SUPPLIES AND MATERIALS,09-19,CITI PCARD-HARRIS TEETER,07/29/13,08/28/13,FOOD & BEVERAGE,10.54,2013,AP,Accounts payable,00690112,CITI PCARD-HARRIS TEETER
,OFFICE OF THE MINORITY LEADER,2013Q3,SUPPLIES AND MATERIALS,09-19,CITI PCARD-PAUL BAKERY,07/29/13,08/28/13,FOOD & BEVERAGE,46.39,2013,AP,Accounts payable,00690112,CITI PCARD-PAUL BAKERY
,OFFICE OF THE MINORITY LEADER,2013Q3,SUPPLIES AND MATERIALS,09-19,CITI PCARD-TARGET,07/29/13,08/28/13,FOOD & BEVERAGE,159.31,2013,AP,Accounts payable,00690112,CITI PCARD-TARGET
,OFFICE OF THE MINORITY LEADER,2013Q3,SUPPLIES AND MATERIALS,09-19,CITI PCARD-WHOLEFDS PST,07/29/13,08/28/13,FOOD & BEVERAGE,108.72,2013,AP,Accounts payable,00690112,CITI PCARD-WHOLEFDS PST
,OFFICE OF THE MINORITY LEADER,2013Q3,SUPPLIES AND MATERIALS,09-19,LEADERSHIP DIRECTORIES INC,06/01/13,03/01/14,PUBLICATIONS/REFERENCE MAT'L,"1,042.00",2013,AP,Accounts payable,E0063554,LEADERSHIP DIRECTORIES INC
,OFFICE OF THE MINORITY LEADER,2013Q3,SUPPLIES AND MATERIALS,09-23,HELEN OLIVIA FLOWERS,09/17/13,09/17/13,HABITATION EXPENSE,249.00,2013,AP,Accounts payable,E0067154,HELEN OLIVIA FLOWERS
,OFFICE OF THE MINORITY LEADER,2013Q3,SUPPLIES AND MATERIALS,09-24,"KAPLAN, EMMA L",09/18/13,09/18/13,FOOD & BEVERAGE,23.27,2013,AP,Accounts payable,E0067152,"KAPLAN, EMMA L"
,OFFICE OF THE MINORITY LEADER,2013Q3,SUPPLIES AND MATERIALS,09-24,CAPITOLHOST,09/04/13,09/04/13,FOOD & BEVERAGE,49.50,2013,AP,Accounts payable,E0067353,CAPITOLHOST
,OFFICE OF THE MINORITY LEADER,2013Q3,SUPPLIES AND MATERIALS,09-25,CAPITOLHOST,09/10/13,09/10/13,FOOD & BEVERAGE,66.00,2013,AP,Accounts payable,E0068252,CAPITOLHOST
,OFFICE OF THE MINORITY LEADER,2013Q3,SUPPLIES AND MATERIALS,09-28,CRYSTAL SPRINGS,09/01/13,09/30/13,FOOD & BEVERAGE,"2,450.87",2013,AP,Accounts payable,E0069883,CRYSTAL SPRINGS
,OFFICE OF THE MINORITY LEADER,2013Q3,SUPPLIES AND MATERIALS,09-28,HELEN OLIVIA FLOWERS,09/24/13,09/24/13,HABITATION EXPENSE,249.00,2013,AP,Accounts payable,E0069885,HELEN OLIVIA FLOWERS
,OFFICE OF THE MINORITY LEADER,2013Q3,TRAVEL,08-28,"PRICE, REVA B",10/16/12,12/01/12,TAXI/PARKING/TOLLS,65.00,2012,AP,Accounts payable,E0055147,"PRICE, REVA B"
,OFFICE OF THE MINORITY LEADER,2013Q3,TRAVEL,09-03,"PRICE, REVA B",10/16/12,12/01/12,TAXI/PARKING/TOLLS,-65.00,2012,AP,Accounts payable,00685578,"PRICE, REVA B"
,OFFICE OF THE MAJORITY WHIP,2013Q3,PERSONNEL COMPENSATION,"","BERRY,TIMOTHY J",07/01/13,09/30/13,CHIEF OF STAFF,"43,125.00",2013,"","","","BERRY,TIMOTHY J"
,OFFICE OF THE MAJORITY WHIP,2013Q3,PERSONNEL COMPENSATION,"","BILMAN,JEFFREY R",07/08/13,09/30/13,SPEC ASST TO CHIEF DEPUTY WHIP,"5,533.33",2013,"","","","BILMAN,JEFFREY R"
,OFFICE OF THE MAJORITY WHIP,2013Q3,PERSONNEL COMPENSATION,"","BUCHANAN,NATALIE L",07/01/13,09/30/13,DIR OF MEMBER SERVICES,"23,500.00",2013,"","","","BUCHANAN,NATALIE L"
,OFFICE OF THE MAJORITY WHIP,2013Q3,PERSONNEL COMPENSATION,"","CAREY,BRITTANY M",07/01/13,09/30/13,COALITIONS ASST/ASST. TO COS,"11,500.00",2013,"","","","CAREY,BRITTANY M"
,OFFICE OF THE MAJORITY WHIP,2013Q3,PERSONNEL COMPENSATION,"","DIXON, KELLY A",07/01/13,09/30/13,DEPUTY DIRECTOR OF FLOOR OPERA,"26,500.00",2013,"","","","DIXON, KELLY A"
,OFFICE OF THE MAJORITY WHIP,2013Q3,PERSONNEL COMPENSATION,"","ELLIOTT,ERICA L",07/01/13,09/30/13,DIRECTOR OF COMMUNICATIONS,"32,250.00",2013,"","","","ELLIOTT,ERICA L"
,OFFICE OF THE MAJORITY WHIP,2013Q3,PERSONNEL COMPENSATION,"","FRANC,MICHAEL G",06/16/13,09/30/13,POLICY DIRECTOR AND COUNSEL,"48,125.00",2013,"","","","FRANC,MICHAEL G"
,OFFICE OF THE MAJORITY WHIP,2013Q3,PERSONNEL COMPENSATION,"","HENEHAN, EMILY A",07/01/13,09/30/13,POLICY ADVISOR,"23,500.00",2013,"","","","HENEHAN, EMILY A"
,OFFICE OF THE MAJORITY WHIP,2013Q3,PERSONNEL COMPENSATION,"","HOWARD,BENJAMIN R",07/01/13,09/30/13,FLOOR ASSISTANT,"16,000.00",2013,"","","","HOWARD,BENJAMIN R"
,OFFICE OF THE MAJORITY WHIP,2013Q3,PERSONNEL COMPENSATION,"","LEGANSKI,JOHN G",06/22/13,08/31/13,STAFF ASSISTANT,"6,250.00",2013,"","","","LEGANSKI,JOHN G"
,OFFICE OF THE MAJORITY WHIP,2013Q3,PERSONNEL COMPENSATION,"","LEGANSKI,JOHN G",09/01/13,09/30/13,FLOOR ASSISTANT,"2,750.00",2013,"","","","LEGANSKI,JOHN G"
,OFFICE OF THE MAJORITY WHIP,2013Q3,PERSONNEL COMPENSATION,"","LOMBARDI, KYLE",07/01/13,09/30/13,SHARED EMPLOYEE,"12,000.00",2013,"","","","LOMBARDI, KYLE"
,OFFICE OF THE MAJORITY WHIP,2013Q3,PERSONNEL COMPENSATION,"","LONG,MICHAEL P",07/01/13,09/30/13,PRESS SECRETARY,"18,250.00",2013,"","","","LONG,MICHAEL P"
,OFFICE OF THE MAJORITY WHIP,2013Q3,PERSONNEL COMPENSATION,"","MCCLELLAND, WESLEY R",07/01/13,09/30/13,POLICY ADVISOR,"23,500.00",2013,"","","","MCCLELLAND, WESLEY R"
,OFFICE OF THE MAJORITY WHIP,2013Q3,PERSONNEL COMPENSATION,"","METTLER,ASHLEY",07/01/13,07/31/13,MEMBER SERVICES ASSISTANT,"4,750.00",2013,"","","","METTLER,ASHLEY"
,OFFICE OF THE MAJORITY WHIP,2013Q3,PERSONNEL COMPENSATION,"","MIN, JAMES B",07/01/13,09/30/13,DEPUTY CHIEF OF STAFF,"37,500.00",2013,"","","","MIN, JAMES B"
,OFFICE OF THE MAJORITY WHIP,2013Q3,PERSONNEL COMPENSATION,"","MOORE,STEVEN E",07/01/13,07/07/13,CHIEF OF STAFF TO THE DEP WHIP,"1,166.67",2013,"","","","MOORE,STEVEN E"
,OFFICE OF THE MAJORITY WHIP,2013Q3,PERSONNEL COMPENSATION,"","MORK,DAVID I",07/01/13,07/07/13,SHARED EMPLOYEE,583.33,2013,"","","","MORK,DAVID I"
,OFFICE OF THE MAJORITY WHIP,2013Q3,PERSONNEL COMPENSATION,"","MORK,DAVID I",07/08/13,09/30/13,CH OF STAFF TO CHIEF DEP WHIP,"15,216.67",2013,"","","","MORK,DAVID I"
,OFFICE OF THE MAJORITY WHIP,2013Q3,PERSONNEL COMPENSATION,"","SPARKS, MATTHEW E",07/01/13,09/30/13,DEPUTY PRESS SECRETARY,"14,500.00",2013,"","","","SPARKS, MATTHEW E"
,OFFICE OF THE MAJORITY WHIP,2013Q3,PERSONNEL COMPENSATION,"","STIPICEVIC, JOHN A",07/01/13,09/30/13,DIRECTOR OF FLOOR OPERATIONS,"36,000.00",2013,"","","","STIPICEVIC, JOHN A"
,OFFICE OF THE MAJORITY WHIP,2013Q3,PERSONNEL COMPENSATION,"","THIELE,AARON J",09/01/13,09/30/13,SENIOR STAFF ASSISTANT,"3,000.00",2013,"","","","THIELE,AARON J"
,OFFICE OF THE MAJORITY WHIP,2013Q3,PERSONNEL COMPENSATION,"","THOMSON, KRISTIN",07/01/13,09/30/13,EXECUTIVE ASSISTANT,"20,500.00",2013,"","","","THOMSON, KRISTIN"
,OFFICE OF THE MAJORITY WHIP,2013Q3,PERSONNEL COMPENSATION,"","WORTH,BRIAN A",07/01/13,09/30/13,DIRECTOR OF COALITIONS,"9,000.00",2013,"","","","WORTH,BRIAN A"
,OFFICE OF THE MAJORITY WHIP,2013Q3,TRAVEL,09-18,"HENEHAN, EMILY A",05/15/13,05/15/13,TAXI/PARKING/TOLLS,8.00,2013,AP,Accounts payable,E0063284,"HENEHAN, EMILY A"
,OFFICE OF THE MAJORITY WHIP,2013Q3,TRAVEL,09-30,"HENEHAN, EMILY A",06/10/13,06/10/13,TAXI/PARKING/TOLLS,32.00,2013,AP,Accounts payable,00691337,"HENEHAN, EMILY A"
,OFFICE OF THE MAJORITY WHIP,2013Q3,PRINTING AND REPRODUCTION,07-17,SHARP ELECTRONICS CORPORATION,05/01/13,06/01/13,PRINTING & REPRODUCTION,243.72,2013,AP,Accounts payable,E0038161,SHARP ELECTRONICS CORPORATION
,OFFICE OF THE MAJORITY WHIP,2013Q3,PRINTING AND REPRODUCTION,07-26,"",07/01/13,07/31/13,PHOTOGRAPHIC (TRANSFER),19.80,2013,GL,General ledger,PIX0031312,""
,OFFICE OF THE MAJORITY WHIP,2013Q3,PRINTING AND REPRODUCTION,08-20,CITI PCARD-YAHOO FLICKR PRO US,06/29/13,07/28/13,PRINTING & REPRODUCTION,24.95,2013,AP,Accounts payable,00682797,CITI PCARD-YAHOO FLICKR PRO US
,OFFICE OF THE MAJORITY WHIP,2013Q3,SUPPLIES AND MATERIALS,07-03,"MIN, JAMES B",06/01/13,06/01/13,FOOD & BEVERAGE,618.37,2013,AP,Accounts payable,E0035906,"MIN, JAMES B"
,OFFICE OF THE MAJORITY WHIP,2013Q3,SUPPLIES AND MATERIALS,07-11,"METTLER, ASHLEY",06/06/13,06/06/13,FOOD & BEVERAGE,13.77,2013,AP,Accounts payable,E0038158,"METTLER, ASHLEY"
,OFFICE OF THE MAJORITY WHIP,2013Q3,SUPPLIES AND MATERIALS,07-11,"MIN, JAMES B",07/08/13,07/08/13,FOOD & BEVERAGE,491.56,2013,AP,Accounts payable,E0038160,"MIN, JAMES B"
,OFFICE OF THE MAJORITY WHIP,2013Q3,SUPPLIES AND MATERIALS,07-18,DEER PARK WATER,05/27/13,06/26/13,WATER,649.17,2013,AP,Accounts payable,E0042009,DEER PARK WATER
,OFFICE OF THE MAJORITY WHIP,2013Q3,SUPPLIES AND MATERIALS,07-22,CITI PCARD-BUCA DI BEPPO,05/29/13,06/28/13,FOOD & BEVERAGE,"1,604.67",2013,AP,Accounts payable,00680125,CITI PCARD-BUCA DI BEPPO
,OFFICE OF THE MAJORITY WHIP,2013Q3,SUPPLIES AND MATERIALS,07-22,CITI PCARD-CHICK-FIL-A,05/29/13,06/28/13,FOOD & BEVERAGE,201.80,2013,AP,Accounts payable,00680125,CITI PCARD-CHICK-FIL-A
,OFFICE OF THE MAJORITY WHIP,2013Q3,SUPPLIES AND MATERIALS,07-22,CITI PCARD-CORNER BAKERY,05/29/13,06/28/13,FOOD & BEVERAGE,"1,150.51",2013,AP,Accounts payable,00680125,CITI PCARD-CORNER BAKERY
,OFFICE OF THE MAJORITY WHIP,2013Q3,SUPPLIES AND MATERIALS,07-22,CITI PCARD-FIRST CHOICE JOE RAGAN,05/29/13,06/28/13,FOOD & BEVERAGE,967.64,2013,AP,Accounts payable,00680125,CITI PCARD-FIRST CHOICE JOE RAGAN
,OFFICE OF THE MAJORITY WHIP,2013Q3,SUPPLIES AND MATERIALS,07-22,CITI PCARD-MATCHBOX CAPITOL HILL,05/29/13,06/28/13,FOOD & BEVERAGE,208.00,2013,AP,Accounts payable,00680125,CITI PCARD-MATCHBOX CAPITOL HILL
,OFFICE OF THE MAJORITY WHIP,2013Q3,SUPPLIES AND MATERIALS,07-22,CITI PCARD-NEW YORK TIMES DIGITAL,05/29/13,06/28/13,PUBLICATIONS/REFERENCE MAT'L,37.10,2013,AP,Accounts payable,00680125,CITI PCARD-NEW YORK TIMES DIGITAL
,OFFICE OF THE MAJORITY WHIP,2013Q3,SUPPLIES AND MATERIALS,08-20,CITI PCARD-BUCA DI BEPPO,06/29/13,07/28/13,FOOD & BEVERAGE,"1,438.79",2013,AP,Accounts payable,00682797,CITI PCARD-BUCA DI BEPPO
,OFFICE OF THE MAJORITY WHIP,2013Q3,SUPPLIES AND MATERIALS,08-20,CITI PCARD-CORNER BAKERY,06/29/13,07/28/13,FOOD & BEVERAGE,635.60,2013,AP,Accounts payable,00682797,CITI PCARD-CORNER BAKERY
,OFFICE OF THE MAJORITY WHIP,2013Q3,SUPPLIES AND MATERIALS,08-20,CITI PCARD-D J WALL-ST-JOURNAL,06/29/13,07/28/13,PUBLICATIONS/REFERENCE MAT'L,24.37,2013,AP,Accounts payable,00682797,CITI PCARD-D J WALL-ST-JOURNAL
,OFFICE OF THE MAJORITY WHIP,2013Q3,SUPPLIES AND MATERIALS,08-20,CITI PCARD-FIRST CHOICE - JOE RAG,06/29/13,07/28/13,FOOD & BEVERAGE,399.09,2013,AP,Accounts payable,00682797,CITI PCARD-FIRST CHOICE - JOE RAG
,OFFICE OF THE MAJORITY WHIP,2013Q3,SUPPLIES AND MATERIALS,08-20,CITI PCARD-NEW YORK TIMES DIGITAL,06/29/13,07/28/13,PUBLICATIONS/REFERENCE MAT'L,37.10,2013,AP,Accounts payable,00682797,CITI PCARD-NEW YORK TIMES DIGITAL
,OFFICE OF THE MAJORITY WHIP,2013Q3,SUPPLIES AND MATERIALS,08-20,CITI PCARD-SAFEWAY STORE,06/29/13,07/28/13,FOOD & BEVERAGE,26.94,2013,AP,Accounts payable,00682797,CITI PCARD-SAFEWAY STORE
,OFFICE OF THE MAJORITY WHIP,2013Q3,SUPPLIES AND MATERIALS,09-18,DEER PARK WATER,07/27/13,08/26/13,WATER,312.27,2013,AP,Accounts payable,E0063277,DEER PARK WATER
,OFFICE OF THE MAJORITY WHIP,2013Q3,SUPPLIES AND MATERIALS,09-18,"THOMSON, KRISTIN",08/01/13,08/01/13,FOOD & BEVERAGE,13.52,2013,AP,Accounts payable,E0063279,"THOMSON, KRISTIN"
,OFFICE OF THE MAJORITY WHIP,2013Q3,SUPPLIES AND MATERIALS,09-18,"MIN, JAMES B",09/06/13,09/06/13,FOOD & BEVERAGE,313.77,2013,AP,Accounts payable,E0063286,"MIN, JAMES B"
,OFFICE OF THE MAJORITY WHIP,2013Q3,SUPPLIES AND MATERIALS,09-18,"MIN, JAMES B",08/23/13,08/23/13,FOOD & BEVERAGE,197.00,2013,AP,Accounts payable,E0064252,"MIN, JAMES B"
,OFFICE OF THE MAJORITY WHIP,2013Q3,SUPPLIES AND MATERIALS,09-19,CITI PCARD-BUCA DI BEPPO,07/29/13,08/28/13,FOOD & BEVERAGE,722.90,2013,AP,Accounts payable,00690112,CITI PCARD-BUCA DI BEPPO
,OFFICE OF THE MAJORITY WHIP,2013Q3,SUPPLIES AND MATERIALS,09-19,CITI PCARD-CORNER BAKERY,07/29/13,08/28/13,FOOD & BEVERAGE,139.15,2013,AP,Accounts payable,00690112,CITI PCARD-CORNER BAKERY
,OFFICE OF THE MAJORITY WHIP,2013Q3,SUPPLIES AND MATERIALS,09-19,CITI PCARD-FIRST CHOICE - JOE RAG,07/29/13,08/28/13,FOOD & BEVERAGE,121.94,2013,AP,Accounts payable,00690112,CITI PCARD-FIRST CHOICE - JOE RAG
,OFFICE OF THE MAJORITY WHIP,2013Q3,SUPPLIES AND MATERIALS,09-19,CITI PCARD-NEW YORK TIMES DIGITAL,07/29/13,08/28/13,PUBLICATIONS/REFERENCE MAT'L,37.10,2013,AP,Accounts payable,00690112,CITI PCARD-NEW YORK TIMES DIGITAL
,OFFICE OF THE MAJORITY WHIP,2013Q3,SUPPLIES AND MATERIALS,09-19,CITI PCARD-TAYLOR GOURMET,07/29/13,08/28/13,FOOD & BEVERAGE,490.50,2013,AP,Accounts payable,00690112,CITI PCARD-TAYLOR GOURMET
,OFFICE OF THE MAJORITY WHIP,2013Q3,SUPPLIES AND MATERIALS,09-26,"MIN, JAMES B",09/24/13,09/24/13,FOOD & BEVERAGE,829.83,2013,AP,Accounts payable,E0068409,"MIN, JAMES B"
,OFFICE OF THE MAJORITY WHIP,2013Q3,SUPPLIES AND MATERIALS,09-26,BLOOMBERG FINANCE LP,01/01/14,12/31/14,PUBLICATIONS/REFERENCE MAT'L,"8,775.00",2013,AP,Accounts payable,E0068410,BLOOMBERG FINANCE LP
,OFFICE OF THE MAJORITY WHIP,2013Q3,SUPPLIES AND MATERIALS,09-27,POLITICO,09/30/13,12/29/14,PUBLICATIONS/REFERENCE MAT'L,"11,237.50",2013,AP,Accounts payable,E0069089,POLITICO
,OFFICE OF THE MAJORITY WHIP,2013Q3,EQUIPMENT,09-20,"MIN, JAMES B",09/06/13,09/06/13,"COMPUTER HARDW PURCH LESS THAN $25,000","2,754.94",2013,AP,Accounts payable,E0066226,"MIN, JAMES B"
,OFFICE OF THE MAJORITY WHIP,2013Q3,EQUIPMENT,09-20,"MIN, JAMES B",09/06/13,09/06/13,WARRANTIES,253.34,2013,AP,Accounts payable,E0066226,"MIN, JAMES B"
,OFFICE OF THE MINORITY WHIP,2013Q3,PERSONNEL COMPENSATION,"","ABOUCHAR, KEITH S",07/01/13,09/30/13,SENIOR POLICY ADVISOR,"3,500.91",2013,"","","","ABOUCHAR, KEITH S"
,OFFICE OF THE MINORITY WHIP,2013Q3,PERSONNEL COMPENSATION,"","AVILES,DANIELLE R",07/01/13,09/30/13,EXECUTIVE ASST OFFICE MANAGER,"16,000.01",2013,"","","","AVILES,DANIELLE R"
,OFFICE OF THE MINORITY WHIP,2013Q3,PERSONNEL COMPENSATION,"","BOHANAN JR, JOHN L",07/01/13,09/30/13,CONSTITUENT LIAISON,"1,500.00",2013,"","","","BOHANAN JR, JOHN L"
,OFFICE OF THE MINORITY WHIP,2013Q3,PERSONNEL COMPENSATION,"","COBIA, LINDSEY G",07/01/13,09/30/13,STAFF ASSISTANT,"11,249.99",2013,"","","","COBIA, LINDSEY G"
,OFFICE OF THE MINORITY WHIP,2013Q3,PERSONNEL COMPENSATION,"","COBIA, LINDSEY G",06/01/13,08/31/13,STAFF ASSISTANT (OVERTIME),"3,173.05",2013,"","","","COBIA, LINDSEY G"
,OFFICE OF THE MINORITY WHIP,2013Q3,PERSONNEL COMPENSATION,"","COLLINS, MICHAEL E",07/01/13,09/30/13,CHIEF DEPUTY WHIP,"10,625.01",2013,"","","","COLLINS, MICHAEL E"
,OFFICE OF THE MINORITY WHIP,2013Q3,PERSONNEL COMPENSATION,"","COVEY-BRANDT, ALEXIS",07/01/13,09/30/13,CHIEF OF STAFF,300.00,2013,"","","","COVEY-BRANDT, ALEXIS"
,OFFICE OF THE MINORITY WHIP,2013Q3,PERSONNEL COMPENSATION,"","CULPEPPER,DIANE P",08/29/13,09/06/13,SPECIAL ASSISTANT,533.33,2013,"","","","CULPEPPER,DIANE P"
,OFFICE OF THE MINORITY WHIP,2013Q3,PERSONNEL COMPENSATION,"","DWYER, STEPHEN",07/01/13,09/30/13,DIGITAL DIR & POLICY ADV,"21,800.01",2013,"","","","DWYER, STEPHEN"
,OFFICE OF THE MINORITY WHIP,2013Q3,PERSONNEL COMPENSATION,"","DWYER, STEPHEN",09/01/13,09/30/13,DIGITAL DIR & POLICY ADV (OTHER COMPENSATION),"3,000.00",2013,"","","","DWYER, STEPHEN"
,OFFICE OF THE MINORITY WHIP,2013Q3,PERSONNEL COMPENSATION,"","FRY,COURTNEY",07/01/13,09/30/13,DEP OUTREACH DIR & MEM SER ADV,"22,500.00",2013,"","","","FRY,COURTNEY"
,OFFICE OF THE MINORITY WHIP,2013Q3,PERSONNEL COMPENSATION,"","GENSEMER,ELLIOT J",07/01/13,09/30/13,SPECIAL ASSIST & PROJECT COORD,"14,999.99",2013,"","","","GENSEMER,ELLIOT J"
,OFFICE OF THE MINORITY WHIP,2013Q3,PERSONNEL COMPENSATION,"","GOFF,SHUWANZA R",07/01/13,09/30/13,FLOOR DIRECTOR,"22,500.00",2013,"","","","GOFF,SHUWANZA R"
,OFFICE OF THE MINORITY WHIP,2013Q3,PERSONNEL COMPENSATION,"","GRANT,KATHRYN L",07/01/13,09/30/13,COMMUNICATIONS DIRECTOR,"27,500.01",2013,"","","","GRANT,KATHRYN L"
,OFFICE OF THE MINORITY WHIP,2013Q3,PERSONNEL COMPENSATION,"","GRANT,KATHRYN L",09/01/13,09/30/13,COMMUNICATIONS DIRECTOR (OTHER COMPENSATION),"5,000.00",2013,"","","","GRANT,KATHRYN L"
,OFFICE OF THE MINORITY WHIP,2013Q3,PERSONNEL COMPENSATION,"","LEUSCHEN, JAMES P",07/01/13,09/30/13,SENIOR POLICY ADVISOR,"33,249.99",2013,"","","","LEUSCHEN, JAMES P"
,OFFICE OF THE MINORITY WHIP,2013Q3,PERSONNEL COMPENSATION,"","LEUSCHEN, JAMES P",09/01/13,09/30/13,SENIOR POLICY ADVISOR (OTHER COMPENSATION),"2,950.92",2013,"","","","LEUSCHEN, JAMES P"
,OFFICE OF THE MINORITY WHIP,2013Q3,PERSONNEL COMPENSATION,"","MAHR,THOMAS",07/01/13,09/30/13,POLICY DIRECTOR,"10,299.99",2013,"","","","MAHR,THOMAS"
,OFFICE OF THE MINORITY WHIP,2013Q3,PERSONNEL COMPENSATION,"","MARTINEZ, JAVIER D",07/01/13,09/30/13,DEP DIR OF MBR SERV & OUTR ADV,"18,750.00",2013,"","","","MARTINEZ, JAVIER D"
,OFFICE OF THE MINORITY WHIP,2013Q3,PERSONNEL COMPENSATION,"","MARTINEZ, JAVIER D",09/01/13,09/30/13,DEP DIR OF MBR SERV & OUTR ADV (OTHER COMPENSATION),"5,000.00",2013,"","","","MARTINEZ, JAVIER D"
,OFFICE OF THE MINORITY WHIP,2013Q3,PERSONNEL COMPENSATION,"","MEDLEY, ANNA E",07/01/13,08/31/13,DIR OF SCHEDLNG & SPEC EVENTS,"11,666.66",2013,"","","","MEDLEY, ANNA E"
,OFFICE OF THE MINORITY WHIP,2013Q3,PERSONNEL COMPENSATION,"","MURRAY, ELIZABETH M",07/01/13,09/30/13,SENIOR POLICY ADVISOR,"4,000.92",2013,"","","","MURRAY, ELIZABETH M"
,OFFICE OF THE MINORITY WHIP,2013Q3,PERSONNEL COMPENSATION,"","OTT,AMANDA M",07/01/13,08/31/13,MIN STAFF CONS/SPECIAL PROJ (P,"6,666.66",2013,"","","","OTT,AMANDA M"
,OFFICE OF THE MINORITY WHIP,2013Q3,PERSONNEL COMPENSATION,"","OTT,AMANDA M",09/01/13,09/30/13,PRESS AND RESEARCH ASSISTANT,"8,333.33",2013,"","","","OTT,AMANDA M"
,OFFICE OF THE MINORITY WHIP,2013Q3,PERSONNEL COMPENSATION,"","REPKO,MARY F",07/01/13,09/30/13,SENIOR POLICY ADVISOR,"3,250.92",2013,"","","","REPKO,MARY F"
,OFFICE OF THE MINORITY WHIP,2013Q3,PERSONNEL COMPENSATION,"","RODRIGUEZ,FEDERICO J",07/01/13,09/30/13,STAFF ASSISTANT,"6,249.99",2013,"","","","RODRIGUEZ,FEDERICO J"
,OFFICE OF THE MINORITY WHIP,2013Q3,PERSONNEL COMPENSATION,"","RODRIGUEZ,FEDERICO J",06/01/13,07/31/13,STAFF ASSISTANT (OVERTIME),"1,730.76",2013,"","","","RODRIGUEZ,FEDERICO J"
,OFFICE OF THE MINORITY WHIP,2013Q3,PERSONNEL COMPENSATION,"","ROMICK, BRIAN",06/01/13,09/30/13,WHIP DIR AND SENIOR ADVISOR,"5,300.00",2013,"","","","ROMICK, BRIAN"
,OFFICE OF THE MINORITY WHIP,2013Q3,PERSONNEL COMPENSATION,"","SAEZ,MARIEL S",07/01/13,09/30/13,DEPUTY PRESS SECRETARY,"10,550.00",2013,"","","","SAEZ,MARIEL S"
,OFFICE OF THE MINORITY WHIP,2013Q3,PERSONNEL COMPENSATION,"","SAEZ,MARIEL S",09/01/13,09/30/13,DEPUTY PRESS SECRETARY (OTHER COMPENSATION),"3,000.00",2013,"","","","SAEZ,MARIEL S"
,OFFICE OF THE MINORITY WHIP,2013Q3,PERSONNEL COMPENSATION,"","SHOTT,DANIEL",07/01/13,09/30/13,FLOOR ASSISTANT,"17,500.01",2013,"","","","SHOTT,DANIEL"
,OFFICE OF THE MINORITY WHIP,2013Q3,PERSONNEL COMPENSATION,"","SIXKILLER, MARIAH S",07/01/13,09/30/13,SENIOR POLICY ADVISOR,"26,799.99",2013,"","","","SIXKILLER, MARIAH S"
,OFFICE OF THE MINORITY WHIP,2013Q3,PERSONNEL COMPENSATION,"","SIXKILLER, MARIAH S",09/01/13,09/30/13,SENIOR POLICY ADVISOR (OTHER COMPENSATION),"2,950.92",2013,"","","","SIXKILLER, MARIAH S"
,OFFICE OF THE MINORITY WHIP,2013Q3,PERSONNEL COMPENSATION,"","WEISSMANN, ADAM",07/01/13,09/30/13,SPEECHWRITER,"18,749.99",2013,"","","","WEISSMANN, ADAM"
,OFFICE OF THE MINORITY WHIP,2013Q3,TRAVEL,07-23,"AVILES,DANIELLE R",06/20/13,06/20/13,TAXI/PARKING/TOLLS,25.00,2013,AP,Accounts payable,E0043498,"AVILES,DANIELLE R"
,OFFICE OF THE MINORITY WHIP,2013Q3,TRAVEL,07-23,"GENSEMER, ELLIOT J",06/05/13,06/05/13,TAXI/PARKING/TOLLS,17.00,2013,AP,Accounts payable,E0043506,"GENSEMER, ELLIOT J"
,OFFICE OF THE MINORITY WHIP,2013Q3,TRAVEL,07-23,"COBIA, LINDSEY G",07/10/13,07/10/13,TAXI/PARKING/TOLLS,9.00,2013,AP,Accounts payable,E0043507,"COBIA, LINDSEY G"
,OFFICE OF THE MINORITY WHIP,2013Q3,TRAVEL,07-23,"GENSEMER, ELLIOT J",06/06/13,06/06/13,TAXI/PARKING/TOLLS,13.00,2013,AP,Accounts payable,E0043508,"GENSEMER, ELLIOT J"
,OFFICE OF THE MINORITY WHIP,2013Q3,TRAVEL,07-23,"COBIA, LINDSEY G",07/18/13,07/18/13,TAXI/PARKING/TOLLS,9.49,2013,AP,Accounts payable,E0043509,"COBIA, LINDSEY G"
,OFFICE OF THE MINORITY WHIP,2013Q3,TRAVEL,07-23,"COBIA, LINDSEY G",07/04/13,07/04/13,TAXI/PARKING/TOLLS,10.00,2013,AP,Accounts payable,E0043510,"COBIA, LINDSEY G"
,OFFICE OF THE MINORITY WHIP,2013Q3,TRAVEL,07-23,"AVILES,DANIELLE R",07/11/13,07/11/13,TAXI/PARKING/TOLLS,24.00,2013,AP,Accounts payable,E0043511,"AVILES,DANIELLE R"
,OFFICE OF THE MINORITY WHIP,2013Q3,TRAVEL,07-23,"AVILES,DANIELLE R",07/18/13,07/18/13,TAXI/PARKING/TOLLS,26.00,2013,AP,Accounts payable,E0043512,"AVILES,DANIELLE R"
,OFFICE OF THE MINORITY WHIP,2013Q3,TRAVEL,07-23,"COBIA, LINDSEY G",07/08/13,07/08/13,TAXI/PARKING/TOLLS,20.00,2013,AP,Accounts payable,E0043514,"COBIA, LINDSEY G"
,OFFICE OF THE MINORITY WHIP,2013Q3,TRAVEL,07-23,"GENSEMER, ELLIOT J",06/17/13,06/17/13,TAXI/PARKING/TOLLS,17.00,2013,AP,Accounts payable,E0043516,"GENSEMER, ELLIOT J"
,OFFICE OF THE MINORITY WHIP,2013Q3,TRAVEL,07-23,"GENSEMER, ELLIOT J",07/04/13,07/04/13,TAXI/PARKING/TOLLS,21.00,2013,AP,Accounts payable,E0043520,"GENSEMER, ELLIOT J"
,OFFICE OF THE MINORITY WHIP,2013Q3,TRAVEL,07-23,"AVILES,DANIELLE R",06/27/13,06/27/13,TAXI/PARKING/TOLLS,26.00,2013,AP,Accounts payable,E0043521,"AVILES,DANIELLE R"
,OFFICE OF THE MINORITY WHIP,2013Q3,TRAVEL,07-24,"COBIA, LINDSEY G",07/11/13,07/11/13,TAXI/PARKING/TOLLS,9.00,2013,AP,Accounts payable,E0043513,"COBIA, LINDSEY G"
,OFFICE OF THE MINORITY WHIP,2013Q3,TRAVEL,07-24,"COBIA, LINDSEY G",07/09/13,07/09/13,TAXI/PARKING/TOLLS,9.00,2013,AP,Accounts payable,E0043517,"COBIA, LINDSEY G"
,OFFICE OF THE MINORITY WHIP,2013Q3,TRAVEL,07-24,"COBIA, LINDSEY G",07/16/13,07/16/13,TAXI/PARKING/TOLLS,9.88,2013,AP,Accounts payable,E0043518,"COBIA, LINDSEY G"
,OFFICE OF THE MINORITY WHIP,2013Q3,TRAVEL,07-31,"AVILES,DANIELLE R",07/10/13,07/10/13,TAXI/PARKING/TOLLS,22.00,2013,AP,Accounts payable,00680769,"AVILES,DANIELLE R"
,OFFICE OF THE MINORITY WHIP,2013Q3,TRAVEL,08-29,"AVILES,DANIELLE R",07/19/13,07/19/13,TAXI/PARKING/TOLLS,25.00,2013,AP,Accounts payable,E0055994,"AVILES,DANIELLE R"
,OFFICE OF THE MINORITY WHIP,2013Q3,TRAVEL,08-29,"AVILES,DANIELLE R",08/01/13,08/01/13,TAXI/PARKING/TOLLS,25.00,2013,AP,Accounts payable,E0055996,"AVILES,DANIELLE R"
,OFFICE OF THE MINORITY WHIP,2013Q3,TRAVEL,08-29,"COBIA, LINDSEY G",07/25/13,07/25/13,TAXI/PARKING/TOLLS,13.00,2013,AP,Accounts payable,E0055997,"COBIA, LINDSEY G"
,OFFICE OF THE MINORITY WHIP,2013Q3,TRAVEL,08-29,"GENSEMER, ELLIOT J",07/10/13,07/10/13,TAXI/PARKING/TOLLS,18.00,2013,AP,Accounts payable,E0055999,"GENSEMER, ELLIOT J"
,OFFICE OF THE MINORITY WHIP,2013Q3,TRAVEL,08-29,"COBIA, LINDSEY G",07/30/13,07/30/13,TAXI/PARKING/TOLLS,8.52,2013,AP,Accounts payable,E0056000,"COBIA, LINDSEY G"
,OFFICE OF THE MINORITY WHIP,2013Q3,TRAVEL,08-29,"AVILES,DANIELLE R",07/23/13,07/23/13,TAXI/PARKING/TOLLS,26.00,2013,AP,Accounts payable,E0056001,"AVILES,DANIELLE R"
,OFFICE OF THE MINORITY WHIP,2013Q3,TRAVEL,08-29,"COBIA, LINDSEY G",07/24/13,07/24/13,TAXI/PARKING/TOLLS,8.84,2013,AP,Accounts payable,E0056002,"COBIA, LINDSEY G"
,OFFICE OF THE MINORITY WHIP,2013Q3,TRAVEL,08-29,"AVILES,DANIELLE R",07/25/13,07/25/13,TAXI/PARKING/TOLLS,27.00,2013,AP,Accounts payable,E0056005,"AVILES,DANIELLE R"
,OFFICE OF THE MINORITY WHIP,2013Q3,TRAVEL,08-29,"COBIA, LINDSEY G",08/01/13,08/01/13,TAXI/PARKING/TOLLS,9.76,2013,AP,Accounts payable,E0056006,"COBIA, LINDSEY G"
,OFFICE OF THE MINORITY WHIP,2013Q3,TRAVEL,08-29,"COBIA, LINDSEY G",07/19/13,07/19/13,TAXI/PARKING/TOLLS,6.00,2013,AP,Accounts payable,E0056007,"COBIA, LINDSEY G"
,OFFICE OF THE MINORITY WHIP,2013Q3,TRAVEL,08-30,"GENSEMER, ELLIOT J",07/21/13,07/21/13,TAXI/PARKING/TOLLS,16.00,2013,AP,Accounts payable,00685624,"GENSEMER, ELLIOT J"
,OFFICE OF THE MINORITY WHIP,2013Q3,TRAVEL,08-30,"AVILES,DANIELLE R",07/21/13,07/21/13,TAXI/PARKING/TOLLS,25.00,2013,AP,Accounts payable,E0056003,"AVILES,DANIELLE R"
,OFFICE OF THE MINORITY WHIP,2013Q3,TRAVEL,09-04,"GENSEMER, ELLIOT J",07/04/13,07/04/13,TAXI/PARKING/TOLLS,17.00,2013,AP,Accounts payable,E0055995,"GENSEMER, ELLIOT J"
,OFFICE OF THE MINORITY WHIP,2013Q3,TRAVEL,09-25,"RODRIGUEZ, FEDERICO J",09/20/13,09/20/13,TAXI/PARKING/TOLLS,17.00,2013,AP,Accounts payable,E0068077,"RODRIGUEZ, FEDERICO J"
,OFFICE OF THE MINORITY WHIP,2013Q3,TRAVEL,09-25,"GENSEMER, ELLIOT J",09/20/13,09/20/13,TAXI/PARKING/TOLLS,13.00,2013,AP,Accounts payable,E0068086,"GENSEMER, ELLIOT J"
,OFFICE OF THE MINORITY WHIP,2013Q3,TRAVEL,09-25,"COBIA, LINDSEY G",09/16/13,09/16/13,TAXI/PARKING/TOLLS,20.00,2013,AP,Accounts payable,E0068087,"COBIA, LINDSEY G"
,OFFICE OF THE MINORITY WHIP,2013Q3,TRAVEL,09-25,"AVILES,DANIELLE R",09/12/13,09/12/13,TAXI/PARKING/TOLLS,25.00,2013,AP,Accounts payable,E0068097,"AVILES,DANIELLE R"
,OFFICE OF THE MINORITY WHIP,2013Q3,TRAVEL,09-25,"AVILES,DANIELLE R",09/19/13,09/19/13,TAXI/PARKING/TOLLS,28.00,2013,AP,Accounts payable,E0068099,"AVILES,DANIELLE R"
,OFFICE OF THE MINORITY WHIP,2013Q3,TRAVEL,09-25,"GOFF,SHUWANZA R",08/28/13,08/28/13,TAXI/PARKING/TOLLS,34.00,2013,AP,Accounts payable,E0068100,"GOFF,SHUWANZA R"
,OFFICE OF THE MINORITY WHIP,2013Q3,TRAVEL,09-25,"GENSEMER, ELLIOT J",09/10/13,09/10/13,TAXI/PARKING/TOLLS,16.00,2013,AP,Accounts payable,E0068101,"GENSEMER, ELLIOT J"
,OFFICE OF THE MINORITY WHIP,2013Q3,TRAVEL,09-25,"COBIA, LINDSEY G",09/12/13,09/12/13,TAXI/PARKING/TOLLS,11.01,2013,AP,Accounts payable,E0068102,"COBIA, LINDSEY G"
,OFFICE OF THE MINORITY WHIP,2013Q3,TRAVEL,09-25,"COBIA, LINDSEY G",09/19/13,09/19/13,TAXI/PARKING/TOLLS,10.00,2013,AP,Accounts payable,E0068103,"COBIA, LINDSEY G"
,OFFICE OF THE MINORITY WHIP,2013Q3,TRAVEL,09-25,"GENSEMER, ELLIOT J",09/16/13,09/16/13,TAXI/PARKING/TOLLS,13.00,2013,AP,Accounts payable,E0068105,"GENSEMER, ELLIOT J"
,OFFICE OF THE MINORITY WHIP,2013Q3,TRAVEL,09-25,"RODRIGUEZ, FEDERICO J",09/10/13,09/10/13,TAXI/PARKING/TOLLS,13.00,2013,AP,Accounts payable,E0068162,"RODRIGUEZ, FEDERICO J"
,OFFICE OF THE MINORITY WHIP,2013Q3,TRAVEL,09-26,"GOFF,SHUWANZA R",09/19/13,09/19/13,TAXI/PARKING/TOLLS,17.00,2013,AP,Accounts payable,E0068079,"GOFF,SHUWANZA R"
,OFFICE OF THE MINORITY WHIP,2013Q3,TRAVEL,09-26,"GOFF,SHUWANZA R",09/19/13,09/19/13,TAXI/PARKING/TOLLS,18.00,2013,AP,Accounts payable,E0068092,"GOFF,SHUWANZA R"
,OFFICE OF THE MINORITY WHIP,2013Q3,TRAVEL,09-26,"GOFF,SHUWANZA R",09/19/13,09/19/13,TAXI/PARKING/TOLLS,34.00,2013,AP,Accounts payable,E0068098,"GOFF,SHUWANZA R"
,OFFICE OF THE MINORITY WHIP,2013Q3,"RENT, COMMUNICATION, UTILITIES",08-20,CITI PCARD-METROCAST MARYLAND VIR,06/29/13,07/28/13,UTILITIES,48.95,2013,AP,Accounts payable,00682797,CITI PCARD-METROCAST MARYLAND VIR
,OFFICE OF THE MINORITY WHIP,2013Q3,"RENT, COMMUNICATION, UTILITIES",09-25,"",09/01/13,09/30/13,HIR GRAPHICS (TRANSFER),70.00,2013,GL,General ledger,GRP0032947,""
,OFFICE OF THE MINORITY WHIP,2013Q3,SUPPLIES AND MATERIALS,07-22,CITI PCARD-NEW YORK TIMES DIGITAL,05/29/13,06/28/13,PUBLICATIONS/REFERENCE MAT'L,37.10,2013,AP,Accounts payable,00680125,CITI PCARD-NEW YORK TIMES DIGITAL
,OFFICE OF THE MINORITY WHIP,2013Q3,SUPPLIES AND MATERIALS,07-22,CITI PCARD-RA CAPITAL M,05/29/13,06/28/13,FOOD & BEVERAGE,53.61,2013,AP,Accounts payable,00680125,CITI PCARD-RA CAPITAL M
,OFFICE OF THE MINORITY WHIP,2013Q3,SUPPLIES AND MATERIALS,08-20,CITI PCARD-INT COLUMBIA BOOKS INC,06/29/13,07/28/13,PUBLICATIONS/REFERENCE MAT'L,284.00,2013,AP,Accounts payable,00682797,CITI PCARD-INT COLUMBIA BOOKS INC
,OFFICE OF THE MINORITY WHIP,2013Q3,SUPPLIES AND MATERIALS,08-20,CITI PCARD-NEW YORK TIMES DIGITAL,06/29/13,07/28/13,PUBLICATIONS/REFERENCE MAT'L,37.10,2013,AP,Accounts payable,00682797,CITI PCARD-NEW YORK TIMES DIGITAL
,OFFICE OF THE MINORITY WHIP,2013Q3,SUPPLIES AND MATERIALS,08-20,CITI PCARD-RA CAPITAL M,06/29/13,07/28/13,FOOD & BEVERAGE,25.51,2013,AP,Accounts payable,00682797,CITI PCARD-RA CAPITAL M
,OFFICE OF THE MINORITY WHIP,2013Q3,SUPPLIES AND MATERIALS,08-20,CITI PCARD-THE CHRONICLE,06/29/13,07/28/13,PUBLICATIONS/REFERENCE MAT'L,76.00,2013,AP,Accounts payable,00682797,CITI PCARD-THE CHRONICLE
,OFFICE OF THE MINORITY WHIP,2013Q3,SUPPLIES AND MATERIALS,09-19,CITI PCARD-NEW YORK TIMES DIGITAL,07/29/13,08/28/13,PUBLICATIONS/REFERENCE MAT'L,37.10,2013,AP,Accounts payable,00690112,CITI PCARD-NEW YORK TIMES DIGITAL
,OFFICE OF THE MINORITY WHIP,2013Q3,SUPPLIES AND MATERIALS,09-19,CITI PCARD-RA CAPITAL M,07/29/13,08/28/13,FOOD & BEVERAGE,28.05,2013,AP,Accounts payable,00690112,CITI PCARD-RA CAPITAL M
,OFFICE OF THE MINORITY WHIP,2013Q3,SUPPLIES AND MATERIALS,09-19,CITI PCARD-THEECONOMIST NEWSPAPER,07/29/13,08/28/13,PUBLICATIONS/REFERENCE MAT'L,136.74,2013,AP,Accounts payable,00690112,CITI PCARD-THEECONOMIST NEWSPAPER
,OFFICE OF THE MINORITY WHIP,2013Q3,SUPPLIES AND MATERIALS,09-19,TV EYES INC,07/01/13,06/30/14,PUBLICATIONS/REFERENCE MAT'L,"1,200.00",2013,AP,Accounts payable,E0065255,TV EYES INC
,OFFICE OF THE MINORITY WHIP,2013Q3,SUPPLIES AND MATERIALS,09-25,LEXIS-NEXIS,01/01/15,12/31/15,PUBLICATIONS/REFERENCE MAT'L,"5,460.00",2013,AP,Accounts payable,E0068078,LEXIS-NEXIS
,OFFICE OF THE MINORITY WHIP,2013Q3,SUPPLIES AND MATERIALS,09-25,CQ ROLL CALL,05/01/14,04/30/15,PUBLICATIONS/REFERENCE MAT'L,"53,883.00",2013,AP,Accounts payable,E0068083,CQ ROLL CALL
,OFFICE OF THE MINORITY WHIP,2013Q3,SUPPLIES AND MATERIALS,09-03,PANERA BREAD COMPANY,12/12/12,12/12/12,FOOD & BEVERAGE,-132.93,2012,AP,Accounts payable,00685579,PANERA BREAD COMPANY
,DEMOCRATIC CAUCUS,2013Q3,PERSONNEL COMPENSATION,"","ALVI,HINA R",07/01/13,09/30/13,SHARED EMPLOYEE,"7,500.00",2013,"","","","ALVI,HINA R"
,DEMOCRATIC CAUCUS,2013Q3,PERSONNEL COMPENSATION,"","ATTAPIT,SIRAT",07/01/13,09/30/13,SENIOR POLICY COUNSEL,"15,249.99",2013,"","","","ATTAPIT,SIRAT"
,DEMOCRATIC CAUCUS,2013Q3,PERSONNEL COMPENSATION,"","AVERY,SAMUEL R",07/01/13,09/30/13,PRESS ASSISTANT,"9,500.01",2013,"","","","AVERY,SAMUEL R"
,DEMOCRATIC CAUCUS,2013Q3,PERSONNEL COMPENSATION,"","BACKEMEYER,COURTNEY G",07/01/13,09/30/13,COMMUNICTNS DIR TO VICE CHRMN,"8,275.01",2013,"","","","BACKEMEYER,COURTNEY G"
,DEMOCRATIC CAUCUS,2013Q3,PERSONNEL COMPENSATION,"","CASEY, KEVIN",07/01/13,09/30/13,POLICY DIRECTOR / VICE CHAIR,"24,083.33",2013,"","","","CASEY, KEVIN"
,DEMOCRATIC CAUCUS,2013Q3,PERSONNEL COMPENSATION,"","DAVALOS,LETICIA M",07/01/13,09/30/13,STAFF ASSISTANT,"6,500.01",2013,"","","","DAVALOS,LETICIA M"
,DEMOCRATIC CAUCUS,2013Q3,PERSONNEL COMPENSATION,"","DAVALOS,LETICIA M",06/01/13,07/31/13,STAFF ASSISTANT (OVERTIME),782.81,2013,"","","","DAVALOS,LETICIA M"
,DEMOCRATIC CAUCUS,2013Q3,PERSONNEL COMPENSATION,"","DELANEY, ERIC L",07/01/13,09/30/13,SR MBR OUTREACH ASST,"12,500.01",2013,"","","","DELANEY, ERIC L"
,DEMOCRATIC CAUCUS,2013Q3,PERSONNEL COMPENSATION,"","DIXON, DEBRA A",07/01/13,09/30/13,CHIEF OF STAFF,"41,802.75",2013,"","","","DIXON, DEBRA A"
,DEMOCRATIC CAUCUS,2013Q3,PERSONNEL COMPENSATION,"","ESTRADA,ANDREW M",07/01/13,09/30/13,STAFF ASSISTANT,"6,500.01",2013,"","","","ESTRADA,ANDREW M"
,DEMOCRATIC CAUCUS,2013Q3,PERSONNEL COMPENSATION,"","ESTRADA,ANDREW M",06/01/13,08/31/13,STAFF ASSISTANT (OVERTIME),604.69,2013,"","","","ESTRADA,ANDREW M"
,DEMOCRATIC CAUCUS,2013Q3,PERSONNEL COMPENSATION,"","GLEESON,JAMES M",07/01/13,09/30/13,COMMUNICATIONS DIRECTOR,"23,000.01",2013,"","","","GLEESON,JAMES M"
,DEMOCRATIC CAUCUS,2013Q3,PERSONNEL COMPENSATION,"","HERRERA,DANIEL",07/01/13,09/30/13,PRESS SECRETARY,"12,750.00",2013,"","","","HERRERA,DANIEL"
,DEMOCRATIC CAUCUS,2013Q3,PERSONNEL COMPENSATION,"","JONES II,MERVYN L",07/01/13,09/30/13,"SPECIAL ASSISTANT,VICE CHAIR","10,950.00",2013,"","","","JONES II,MERVYN L"
,DEMOCRATIC CAUCUS,2013Q3,PERSONNEL COMPENSATION,"","MARTINEZ,GRISELLA M",07/01/13,09/30/13,SR LEGISLATIVE ASSISTANT,"14,949.99",2013,"","","","MARTINEZ,GRISELLA M"
,DEMOCRATIC CAUCUS,2013Q3,PERSONNEL COMPENSATION,"","MCCLUSKIE,SEAN E",07/01/13,09/30/13,POLICY DIRECTOR,"42,102.75",2013,"","","","MCCLUSKIE,SEAN E"
,DEMOCRATIC CAUCUS,2013Q3,PERSONNEL COMPENSATION,"","PEREZ-SANCHEZ,NOEL",07/01/13,09/30/13,MEMBER OUTREACH ASSISTANT,"11,250.00",2013,"","","","PEREZ-SANCHEZ,NOEL"
,DEMOCRATIC CAUCUS,2013Q3,PERSONNEL COMPENSATION,"","RODRIGUEZ-CIAMPOLI,FABIOLA",07/01/13,09/30/13,EXECUTIVE DIRECTOR,"36,249.99",2013,"","","","RODRIGUEZ-CIAMPOLI,FABIOLA"
,DEMOCRATIC CAUCUS,2013Q3,PERSONNEL COMPENSATION,"","SACHSE,ANDREW M",07/01/13,09/30/13,STAFF ASSISTANT,"7,500.00",2013,"","","","SACHSE,ANDREW M"
,DEMOCRATIC CAUCUS,2013Q3,PERSONNEL COMPENSATION,"","SALDANA,AMANDA M",07/01/13,09/30/13,MEMBER OUTREACH ASSISTANT,"11,250.00",2013,"","","","SALDANA,AMANDA M"
,DEMOCRATIC CAUCUS,2013Q3,PERSONNEL COMPENSATION,"","SHARMA,MOH R",07/01/13,09/30/13,POLICY ADVISOR,"11,250.00",2013,"","","","SHARMA,MOH R"
,DEMOCRATIC CAUCUS,2013Q3,PERSONNEL COMPENSATION,"","SKILES, KATHLEE",07/01/13,09/30/13,PRESS SEC& DIR OF ONLINE STRAT,"13,749.99",2013,"","","","SKILES, KATHLEE"
,DEMOCRATIC CAUCUS,2013Q3,PERSONNEL COMPENSATION,"","VENEGAS,STEPHANIE A",07/01/13,09/30/13,DEPUTY DIR OF OPERATIONS,"15,500.01",2013,"","","","VENEGAS,STEPHANIE A"
,DEMOCRATIC CAUCUS,2013Q3,PERSONNEL COMPENSATION,"","WINKLER, KATHERINE E",07/01/13,09/30/13,SHARED EMPLOYEE,"28,625.01",2013,"","","","WINKLER, KATHERINE E"
,DEMOCRATIC CAUCUS,2013Q3,PERSONNEL COMPENSATION,"","YOUNG, STEPHANIE L",08/01/13,09/30/13,PRESS SECRETARY,"12,300.00",2013,"","","","YOUNG, STEPHANIE L"
,DEMOCRATIC CAUCUS,2013Q3,TRAVEL,08-09,"VENEGAS, STEPHANIE A",05/30/13,05/31/13,TRAVEL SUBSISTENCE,413.80,2013,AP,Accounts payable,E0049435,"VENEGAS, STEPHANIE A"
,DEMOCRATIC CAUCUS,2013Q3,TRAVEL,08-09,"GLEESON,JAMES M",05/30/13,06/01/13,TRAVEL SUBSISTENCE,434.01,2013,AP,Accounts payable,E0049436,"GLEESON,JAMES M"
,DEMOCRATIC CAUCUS,2013Q3,TRAVEL,08-09,"RODRIGUEZ-CIAMPOLI,FABIOLA",05/30/13,05/31/13,TRAVEL SUBSISTENCE,327.80,2013,AP,Accounts payable,E0049437,"RODRIGUEZ-CIAMPOLI,FABIOLA"
,DEMOCRATIC CAUCUS,2013Q3,TRAVEL,08-09,"ATTAPIT, SIRAT",05/30/13,05/31/13,TRAVEL SUBSISTENCE,474.22,2013,AP,Accounts payable,E0049439,"ATTAPIT, SIRAT"
,DEMOCRATIC CAUCUS,2013Q3,TRAVEL,08-19,"DELANEY, ERIC",05/30/13,06/01/13,TRAVEL SUBSISTENCE,325.45,2013,AP,Accounts payable,E0052699,"DELANEY, ERIC"
,DEMOCRATIC CAUCUS,2013Q3,TRAVEL,09-09,"DIXON, DEBRA A",02/04/13,02/08/13,CAR RENTAL,"1,299.64",2013,AP,Accounts payable,E0058817,"DIXON, DEBRA A"
,DEMOCRATIC CAUCUS,2013Q3,TRAVEL,09-12,"VENEGAS, STEPHANIE A",08/28/13,08/29/13,TRAVEL SUBSISTENCE,230.56,2013,AP,Accounts payable,E0060096,"VENEGAS, STEPHANIE A"
,DEMOCRATIC CAUCUS,2013Q3,TRAVEL,09-23,"DELANEY, ERIC",09/04/13,09/06/13,TRAVEL SUBSISTENCE,361.48,2013,AP,Accounts payable,E0067056,"DELANEY, ERIC"
,DEMOCRATIC CAUCUS,2013Q3,TRAVEL,09-23,"ATTAPIT, SIRAT",08/28/13,08/29/13,TRAVEL SUBSISTENCE,288.90,2013,AP,Accounts payable,E0067058,"ATTAPIT, SIRAT"
,DEMOCRATIC CAUCUS,2013Q3,TRAVEL,09-27,"AVERY, SAMUEL R",08/28/13,08/29/13,TRAVEL SUBSISTENCE,230.56,2013,AP,Accounts payable,E0069207,"AVERY, SAMUEL R"
,DEMOCRATIC CAUCUS,2013Q3,TRAVEL,09-28,"HERRERA, DANIEL",09/04/13,09/05/13,TRAVEL SUBSISTENCE,153.74,2013,AP,Accounts payable,E0070053,"HERRERA, DANIEL"
,DEMOCRATIC CAUCUS,2013Q3,"RENT, COMMUNICATION, UTILITIES",07-22,CITI PCARD-BOX BOX.NET BUS SRVCS,05/29/13,06/28/13,TELECOMSRV/EQ/TOLL CHARGE,600.00,2013,AP,Accounts payable,00680125,CITI PCARD-BOX BOX.NET BUS SRVCS
,DEMOCRATIC CAUCUS,2013Q3,"RENT, COMMUNICATION, UTILITIES",07-22,CITI PCARD-CTO GOTOWEBINAR.COM,05/29/13,06/28/13,TELECOMSRV/EQ/TOLL CHARGE,99.00,2013,AP,Accounts payable,00680125,CITI PCARD-CTO GOTOWEBINAR.COM
,DEMOCRATIC CAUCUS,2013Q3,"RENT, COMMUNICATION, UTILITIES",07-22,CITI PCARD-USTREAM TV,05/29/13,06/28/13,TELECOMSRV/EQ/TOLL CHARGE,99.00,2013,AP,Accounts payable,00680125,CITI PCARD-USTREAM TV
,DEMOCRATIC CAUCUS,2013Q3,"RENT, COMMUNICATION, UTILITIES",08-20,CITI PCARD-USTREAM TV,06/29/13,07/28/13,UTILITIES,137.78,2013,AP,Accounts payable,00682797,CITI PCARD-USTREAM TV
,DEMOCRATIC CAUCUS,2013Q3,"RENT, COMMUNICATION, UTILITIES",09-19,CITI PCARD-BOX BOX.NET BUS SRVCS,07/29/13,08/28/13,TELECOMSRV/EQ/TOLL CHARGE,100.00,2013,AP,Accounts payable,00690112,CITI PCARD-BOX BOX.NET BUS SRVCS
,DEMOCRATIC CAUCUS,2013Q3,"RENT, COMMUNICATION, UTILITIES",09-19,CITI PCARD-CTO GOTOWEBINAR.COM,07/29/13,08/28/13,TELECOMSRV/EQ/TOLL CHARGE,99.00,2013,AP,Accounts payable,00690112,CITI PCARD-CTO GOTOWEBINAR.COM
,DEMOCRATIC CAUCUS,2013Q3,"RENT, COMMUNICATION, UTILITIES",09-19,CITI PCARD-USPS,07/29/13,08/28/13,POSTAGE / COURIER / BOX RENTAL,9.20,2013,AP,Accounts payable,00690112,CITI PCARD-USPS
,DEMOCRATIC CAUCUS,2013Q3,"RENT, COMMUNICATION, UTILITIES",09-19,CITI PCARD-USTREAM TV,07/29/13,08/28/13,TELECOMSRV/EQ/TOLL CHARGE,154.88,2013,AP,Accounts payable,00690112,CITI PCARD-USTREAM TV
,DEMOCRATIC CAUCUS,2013Q3,PRINTING AND REPRODUCTION,08-09,"SKILES, KATHLEEN J",07/04/13,07/04/13,ADVERTISEMENTS,66.86,2013,AP,Accounts payable,E0049400,"SKILES, KATHLEEN J"
,DEMOCRATIC CAUCUS,2013Q3,PRINTING AND REPRODUCTION,08-20,CITI PCARD-FACEBOOK.COM,06/29/13,07/28/13,ADVERTISEMENTS,"1,932.98",2013,AP,Accounts payable,00682797,CITI PCARD-FACEBOOK.COM
,DEMOCRATIC CAUCUS,2013Q3,PRINTING AND REPRODUCTION,08-27,"",08/01/13,08/31/13,PHOTOGRAPHIC (TRANSFER),159.50,2013,GL,General ledger,PIX0032157,""
,DEMOCRATIC CAUCUS,2013Q3,OTHER SERVICES,07-22,CITI PCARD-CLASSICLEANERS-LONGWOR,05/29/13,06/28/13,LAUNDRY SERVICES,57.29,2013,AP,Accounts payable,00680125,CITI PCARD-CLASSICLEANERS-LONGWOR
,DEMOCRATIC CAUCUS,2013Q3,OTHER SERVICES,08-20,CITI PCARD-CLASSICLEANERS-LONGWOR,06/29/13,07/28/13,LAUNDRY SERVICES,81.00,2013,AP,Accounts payable,00682797,CITI PCARD-CLASSICLEANERS-LONGWOR
,DEMOCRATIC CAUCUS,2013Q3,OTHER SERVICES,09-19,CITI PCARD-CLASSICLEANERS-LONGWOR,07/29/13,08/28/13,LAUNDRY SERVICES,81.00,2013,AP,Accounts payable,00690112,CITI PCARD-CLASSICLEANERS-LONGWOR
,DEMOCRATIC CAUCUS,2013Q3,SUPPLIES AND MATERIALS,07-22,"CITI PCARD-CATERING BY AVALON, IN",05/29/13,06/28/13,FOOD & BEVERAGE,"1,837.03",2013,AP,Accounts payable,00680125,"CITI PCARD-CATERING BY AVALON, IN"
,DEMOCRATIC CAUCUS,2013Q3,SUPPLIES AND MATERIALS,07-22,CITI PCARD-COSI,05/29/13,06/28/13,FOOD & BEVERAGE,633.77,2013,AP,Accounts payable,00680125,CITI PCARD-COSI
,DEMOCRATIC CAUCUS,2013Q3,SUPPLIES AND MATERIALS,07-22,CITI PCARD-DREAMZ CATERING,05/29/13,06/28/13,FOOD & BEVERAGE,165.00,2013,AP,Accounts payable,00680125,CITI PCARD-DREAMZ CATERING
,DEMOCRATIC CAUCUS,2013Q3,SUPPLIES AND MATERIALS,07-22,CITI PCARD-FIREHOOK,05/29/13,06/28/13,FOOD & BEVERAGE,267.40,2013,AP,Accounts payable,00680125,CITI PCARD-FIREHOOK
,DEMOCRATIC CAUCUS,2013Q3,SUPPLIES AND MATERIALS,07-22,CITI PCARD-HARRIS TEETER,05/29/13,06/28/13,FOOD & BEVERAGE,"1,160.93",2013,AP,Accounts payable,00680125,CITI PCARD-HARRIS TEETER
,DEMOCRATIC CAUCUS,2013Q3,SUPPLIES AND MATERIALS,07-22,CITI PCARD-SAINT GERMAIN CATERING,05/29/13,06/28/13,FOOD & BEVERAGE,"5,575.41",2013,AP,Accounts payable,00680125,CITI PCARD-SAINT GERMAIN CATERING
,DEMOCRATIC CAUCUS,2013Q3,SUPPLIES AND MATERIALS,07-22,CITI PCARD-WHOLEFDS PST,05/29/13,06/28/13,FOOD & BEVERAGE,115.01,2013,AP,Accounts payable,00680125,CITI PCARD-WHOLEFDS PST
,DEMOCRATIC CAUCUS,2013Q3,SUPPLIES AND MATERIALS,08-19,SULLY FRAMING AND ART,08/08/13,08/08/13,HABITATION EXPENSE,131.50,2013,AP,Accounts payable,E0052889,SULLY FRAMING AND ART
,DEMOCRATIC CAUCUS,2013Q3,SUPPLIES AND MATERIALS,08-19,SULLY FRAMING AND ART,06/30/13,06/30/13,HABITATION EXPENSE,349.49,2013,AP,Accounts payable,E0052890,SULLY FRAMING AND ART
,DEMOCRATIC CAUCUS,2013Q3,SUPPLIES AND MATERIALS,08-20,CITI PCARD-BORINQUEN LUNCHBOX,06/29/13,07/28/13,FOOD & BEVERAGE,"1,060.45",2013,AP,Accounts payable,00682797,CITI PCARD-BORINQUEN LUNCHBOX
,DEMOCRATIC CAUCUS,2013Q3,SUPPLIES AND MATERIALS,08-20,CITI PCARD-CAPITOL HOST (RIDGEWEL,06/29/13,07/28/13,FOOD & BEVERAGE,337.50,2013,AP,Accounts payable,00682797,CITI PCARD-CAPITOL HOST (RIDGEWEL
,DEMOCRATIC CAUCUS,2013Q3,SUPPLIES AND MATERIALS,08-20,"CITI PCARD-CATERING BY AVALON, IN",06/29/13,07/28/13,FOOD & BEVERAGE,"1,143.92",2013,AP,Accounts payable,00682797,"CITI PCARD-CATERING BY AVALON, IN"
,DEMOCRATIC CAUCUS,2013Q3,SUPPLIES AND MATERIALS,08-20,CITI PCARD-CAVA CATERING,06/29/13,07/28/13,FOOD & BEVERAGE,994.60,2013,AP,Accounts payable,00682797,CITI PCARD-CAVA CATERING
,DEMOCRATIC CAUCUS,2013Q3,SUPPLIES AND MATERIALS,08-20,CITI PCARD-COSI,06/29/13,07/28/13,FOOD & BEVERAGE,302.32,2013,AP,Accounts payable,00682797,CITI PCARD-COSI
,DEMOCRATIC CAUCUS,2013Q3,SUPPLIES AND MATERIALS,08-20,CITI PCARD-HARRIS TEETER,06/29/13,07/28/13,FOOD & BEVERAGE,805.55,2013,AP,Accounts payable,00682797,CITI PCARD-HARRIS TEETER
,DEMOCRATIC CAUCUS,2013Q3,SUPPLIES AND MATERIALS,08-20,CITI PCARD-SAINT GERMAIN CATERING,06/29/13,07/28/13,FOOD & BEVERAGE,"1,851.99",2013,AP,Accounts payable,00682797,CITI PCARD-SAINT GERMAIN CATERING
,DEMOCRATIC CAUCUS,2013Q3,SUPPLIES AND MATERIALS,08-20,CITI PCARD-VOC VOCUS SUBSCRPT,06/29/13,07/28/13,PUBLICATIONS/REFERENCE MAT'L,"3,108.60",2013,AP,Accounts payable,00682797,CITI PCARD-VOC VOCUS SUBSCRPT
,DEMOCRATIC CAUCUS,2013Q3,SUPPLIES AND MATERIALS,08-20,CITI PCARD-WHOLEFDS PST,06/29/13,07/28/13,FOOD & BEVERAGE,96.77,2013,AP,Accounts payable,00682797,CITI PCARD-WHOLEFDS PST
,DEMOCRATIC CAUCUS,2013Q3,SUPPLIES AND MATERIALS,09-19,CITI PCARD-CTO GOTOWEBINAR.COM,07/29/13,08/28/13,PUBLICATIONS/REFERENCE MAT'L,99.00,2013,AP,Accounts payable,00690112,CITI PCARD-CTO GOTOWEBINAR.COM
,DEMOCRATIC CAUCUS,2013Q3,SUPPLIES AND MATERIALS,09-19,CITI PCARD-HARRIS TEETER,07/29/13,08/28/13,FOOD & BEVERAGE,303.55,2013,AP,Accounts payable,00690112,CITI PCARD-HARRIS TEETER
,DEMOCRATIC CAUCUS,2013Q3,SUPPLIES AND MATERIALS,09-19,CITI PCARD-IPN/PAYMENTNETWORK,07/29/13,08/28/13,FOOD & BEVERAGE,31.50,2013,AP,Accounts payable,00690112,CITI PCARD-IPN/PAYMENTNETWORK
,DEMOCRATIC CAUCUS,2013Q3,SUPPLIES AND MATERIALS,09-19,CITI PCARD-PANERA BREAD,07/29/13,08/28/13,FOOD & BEVERAGE,15.39,2013,AP,Accounts payable,00690112,CITI PCARD-PANERA BREAD
,DEMOCRATIC CAUCUS,2013Q3,SUPPLIES AND MATERIALS,09-19,CITI PCARD-SAINT GERMAIN CATERING,07/29/13,08/28/13,FOOD & BEVERAGE,570.63,2013,AP,Accounts payable,00690112,CITI PCARD-SAINT GERMAIN CATERING
,REPUBLICAN CONFERENCE,2013Q3,PERSONNEL COMPENSATION,"","BETZ, KIMBERLY S",07/01/13,09/30/13,POLICY DIRECTOR,"37,500.00",2013,"","","","BETZ, KIMBERLY S"
,REPUBLICAN CONFERENCE,2013Q3,PERSONNEL COMPENSATION,"","CAMERON,TIMOTHY M",07/01/13,09/30/13,DIRECTOR OF DIGITAL MEDIA,"20,499.99",2013,"","","","CAMERON,TIMOTHY M"
,REPUBLICAN CONFERENCE,2013Q3,PERSONNEL COMPENSATION,"","COLLIGAN,DYLAN H",07/01/13,09/30/13,DEPUTY PRESS SECRETARY,"9,805.55",2013,"","","","COLLIGAN,DYLAN H"
,REPUBLICAN CONFERENCE,2013Q3,PERSONNEL COMPENSATION,"","CONNELL, MARJORIE F",07/01/13,09/30/13,DIRECTOR OF OPERATIONS,"20,000.01",2013,"","","","CONNELL, MARJORIE F"
,REPUBLICAN CONFERENCE,2013Q3,PERSONNEL COMPENSATION,"","DEUTSCH,JEREMY",07/01/13,09/30/13,CHIEF OF STAFF,"27,625.00",2013,"","","","DEUTSCH,JEREMY"
,REPUBLICAN CONFERENCE,2013Q3,PERSONNEL COMPENSATION,"","GAITAN,WADI",07/01/13,09/30/13,DEP PRESS SECY HISPANIC MEDIA,"12,000.00",2013,"","","","GAITAN,WADI"
,REPUBLICAN CONFERENCE,2013Q3,PERSONNEL COMPENSATION,"","GRAVES,JOEL D",07/01/13,09/30/13,STAFF ASSISTANT,"8,000.01",2013,"","","","GRAVES,JOEL D"
,REPUBLICAN CONFERENCE,2013Q3,PERSONNEL COMPENSATION,"","HODSON,NATHAN M",07/01/13,09/30/13,DIRECTOR OF COMMUNICATIONS,"28,749.99",2013,"","","","HODSON,NATHAN M"
,REPUBLICAN CONFERENCE,2013Q3,PERSONNEL COMPENSATION,"","LEVINER,EMILY E",07/01/13,09/30/13,POLICY ADVISOR,"12,500.01",2013,"","","","LEVINER,EMILY E"
,REPUBLICAN CONFERENCE,2013Q3,PERSONNEL COMPENSATION,"","LITMAN,RIVA",07/01/13,09/30/13,PRESS SECRETARY,"16,749.99",2013,"","","","LITMAN,RIVA"
,REPUBLICAN CONFERENCE,2013Q3,PERSONNEL COMPENSATION,"","MURPHY,SHAUGHNESSY P",07/01/13,07/14/13,SENIOR ADVISOR,"4,649.16",2013,"","","","MURPHY,SHAUGHNESSY P"
,REPUBLICAN CONFERENCE,2013Q3,PERSONNEL COMPENSATION,"","MURPHY,SHAUGHNESSY P",07/15/13,09/30/13,DIRECTOR OF MEMBER SERVICES,"25,755.56",2013,"","","","MURPHY,SHAUGHNESSY P"
,REPUBLICAN CONFERENCE,2013Q3,PERSONNEL COMPENSATION,"","MUZIN,NICOLAS D",07/01/13,09/30/13,DIRECTOR OF OUTREACH,"33,750.00",2013,"","","","MUZIN,NICOLAS D"
,REPUBLICAN CONFERENCE,2013Q3,PERSONNEL COMPENSATION,"","PINEGAR,PHILLIP",07/01/13,09/30/13,STAFF ASSISTANT,"8,750.01",2013,"","","","PINEGAR,PHILLIP"
,REPUBLICAN CONFERENCE,2013Q3,PERSONNEL COMPENSATION,"","REAGAN,AMANDA M",09/11/13,09/30/13,STAFF ASSISTANT,"1,666.67",2013,"","","","REAGAN,AMANDA M"
,REPUBLICAN CONFERENCE,2013Q3,PERSONNEL COMPENSATION,"","RUHLEN, MARY E",09/01/13,09/30/13,FINANCIAL ADMINISTRATOR,"1,350.00",2013,"","","","RUHLEN, MARY E"
,REPUBLICAN CONFERENCE,2013Q3,PERSONNEL COMPENSATION,"","SMENTEK,DAVID",07/01/13,09/30/13,POLICY COORDINATOR,"6,999.99",2013,"","","","SMENTEK,DAVID"
,REPUBLICAN CONFERENCE,2013Q3,PERSONNEL COMPENSATION,"","STEVENS,PAMELA R",07/01/13,09/30/13,DIRECTOR OF MEDIA AFFAIRS,"31,250.01",2013,"","","","STEVENS,PAMELA R"
,REPUBLICAN CONFERENCE,2013Q3,PERSONNEL COMPENSATION,"","WHITTMAN,JOHN L",07/01/13,09/30/13,RAPID RESPONSE COORDINATOR,"11,250.00",2013,"","","","WHITTMAN,JOHN L"
,REPUBLICAN CONFERENCE,2013Q3,TRAVEL,07-10,"HODSON, NATHAN",07/02/13,07/02/13,TAXI/PARKING/TOLLS,14.88,2013,AP,Accounts payable,E0037658,"HODSON, NATHAN"
,REPUBLICAN CONFERENCE,2013Q3,TRAVEL,07-10,"COLLIGAN, DYLAN H",07/02/13,07/02/13,TAXI/PARKING/TOLLS,20.00,2013,AP,Accounts payable,E0037659,"COLLIGAN, DYLAN H"
,REPUBLICAN CONFERENCE,2013Q3,TRAVEL,08-05,"GRAVES, JOEL D",07/31/13,07/31/13,TAXI/PARKING/TOLLS,18.88,2013,AP,Accounts payable,E0048721,"GRAVES, JOEL D"
,REPUBLICAN CONFERENCE,2013Q3,TRAVEL,08-05,"HODSON, NATHAN",07/31/13,07/31/13,TAXI/PARKING/TOLLS,20.00,2013,AP,Accounts payable,E0048726,"HODSON, NATHAN"
,REPUBLICAN CONFERENCE,2013Q3,TRAVEL,09-05,"MUZIN, NICOLAS D",08/13/13,08/14/13,LODGING,428.42,2013,AP,Accounts payable,E0057601,"MUZIN, NICOLAS D"
,REPUBLICAN CONFERENCE,2013Q3,TRAVEL,09-05,"MUZIN, NICOLAS D",08/14/13,08/15/13,LODGING,376.93,2013,AP,Accounts payable,E0057601,"MUZIN, NICOLAS D"
,REPUBLICAN CONFERENCE,2013Q3,TRAVEL,09-05,"MUZIN, NICOLAS D",08/13/13,08/13/13,MEALS,8.11,2013,AP,Accounts payable,E0057601,"MUZIN, NICOLAS D"
,REPUBLICAN CONFERENCE,2013Q3,TRAVEL,09-05,"MUZIN, NICOLAS D",08/15/13,08/15/13,MEALS,74.20,2013,AP,Accounts payable,E0057601,"MUZIN, NICOLAS D"
,REPUBLICAN CONFERENCE,2013Q3,TRAVEL,09-05,"MUZIN, NICOLAS D",08/18/13,08/18/13,MEALS,11.13,2013,AP,Accounts payable,E0057601,"MUZIN, NICOLAS D"
,REPUBLICAN CONFERENCE,2013Q3,TRAVEL,09-05,"MUZIN, NICOLAS D",08/13/13,08/17/13,CAR RENTAL,785.23,2013,AP,Accounts payable,E0057601,"MUZIN, NICOLAS D"
,REPUBLICAN CONFERENCE,2013Q3,TRAVEL,09-05,"MUZIN, NICOLAS D",08/17/13,08/17/13,GASOLINE,75.95,2013,AP,Accounts payable,E0057601,"MUZIN, NICOLAS D"
,REPUBLICAN CONFERENCE,2013Q3,TRAVEL,09-05,"MUZIN, NICOLAS D",08/14/13,08/14/13,TAXI/PARKING/TOLLS,10.00,2013,AP,Accounts payable,E0057601,"MUZIN, NICOLAS D"
,REPUBLICAN CONFERENCE,2013Q3,TRAVEL,09-05,"MUZIN, NICOLAS D",08/15/13,08/15/13,TAXI/PARKING/TOLLS,6.80,2013,AP,Accounts payable,E0057601,"MUZIN, NICOLAS D"
,REPUBLICAN CONFERENCE,2013Q3,TRAVEL,09-19,"MUZIN, NICOLAS D",08/11/13,08/11/13,COMMERCIAL TRANSPORTATION,264.00,2013,AP,Accounts payable,E0064498,"MUZIN, NICOLAS D"
,REPUBLICAN CONFERENCE,2013Q3,TRAVEL,09-19,"MUZIN, NICOLAS D",08/13/13,08/13/13,COMMERCIAL TRANSPORTATION,509.30,2013,AP,Accounts payable,E0064498,"MUZIN, NICOLAS D"
,REPUBLICAN CONFERENCE,2013Q3,TRAVEL,09-19,"MUZIN, NICOLAS D",08/13/13,08/13/13,LODGING,6.53,2013,AP,Accounts payable,E0064498,"MUZIN, NICOLAS D"
,REPUBLICAN CONFERENCE,2013Q3,TRAVEL,09-19,"MUZIN, NICOLAS D",08/14/13,08/14/13,LODGING,6.53,2013,AP,Accounts payable,E0064498,"MUZIN, NICOLAS D"
,REPUBLICAN CONFERENCE,2013Q3,TRAVEL,09-19,"MUZIN, NICOLAS D",08/15/13,08/15/13,GASOLINE,35.97,2013,AP,Accounts payable,E0064498,"MUZIN, NICOLAS D"
,REPUBLICAN CONFERENCE,2013Q3,TRAVEL,09-19,"MUZIN, NICOLAS D",08/14/13,08/14/13,TAXI/PARKING/TOLLS,2.00,2013,AP,Accounts payable,E0064498,"MUZIN, NICOLAS D"
,REPUBLICAN CONFERENCE,2013Q3,TRAVEL,09-19,"MUZIN, NICOLAS D",08/16/13,08/16/13,TAXI/PARKING/TOLLS,4.00,2013,AP,Accounts payable,E0064498,"MUZIN, NICOLAS D"
,REPUBLICAN CONFERENCE,2013Q3,"RENT, COMMUNICATION, UTILITIES",09-18,VIDEOLINK LLC,08/29/13,08/29/13,RECORDING (OUTSIDE),"1,000.00",2013,AP,Accounts payable,E0063616,VIDEOLINK LLC
,REPUBLICAN CONFERENCE,2013Q3,"RENT, COMMUNICATION, UTILITIES",09-24,MOTION MASTERS INC,08/14/13,08/14/13,RECORDING (OUTSIDE),"1,170.19",2013,AP,Accounts payable,E0067375,MOTION MASTERS INC
,REPUBLICAN CONFERENCE,2013Q3,PRINTING AND REPRODUCTION,08-20,CITI PCARD-MYBINDING COM,06/29/13,07/28/13,PRINTING & REPRODUCTION,293.69,2013,AP,Accounts payable,00682797,CITI PCARD-MYBINDING COM
,REPUBLICAN CONFERENCE,2013Q3,PRINTING AND REPRODUCTION,09-19,CITI PCARD-PAYPAL ENVATO AUDIOJU,07/29/13,08/28/13,ADVERTISEMENTS,100.00,2013,AP,Accounts payable,00690112,CITI PCARD-PAYPAL ENVATO AUDIOJU
,REPUBLICAN CONFERENCE,2013Q3,PRINTING AND REPRODUCTION,09-24,"",09/01/13,09/30/13,PHOTOGRAPHIC (TRANSFER),21.50,2013,GL,General ledger,PIX0032892,""
,REPUBLICAN CONFERENCE,2013Q3,OTHER SERVICES,07-19,O'DONNELL & ASSOC LTD,06/01/13,06/30/13,TRAINING,"2,800.00",2013,AP,Accounts payable,E0039788,O'DONNELL & ASSOC LTD
,REPUBLICAN CONFERENCE,2013Q3,OTHER SERVICES,07-22,CITI PCARD-ECSUITE.COM,05/29/13,06/28/13,NON-TECHNOLOGY SERVICE CONTR,5.95,2013,AP,Accounts payable,00680125,CITI PCARD-ECSUITE.COM
,REPUBLICAN CONFERENCE,2013Q3,OTHER SERVICES,08-07,O'DONNELL & ASSOC LTD,07/01/13,07/31/13,NON-TECHNOLOGY SERVICE CONTR,"2,500.00",2013,AP,Accounts payable,E0048723,O'DONNELL & ASSOC LTD
,REPUBLICAN CONFERENCE,2013Q3,OTHER SERVICES,08-20,CITI PCARD-AVANGATECOM,06/29/13,07/28/13,NON-TECHNOLOGY SERVICE CONTR,298.00,2013,AP,Accounts payable,00682797,CITI PCARD-AVANGATECOM
,REPUBLICAN CONFERENCE,2013Q3,OTHER SERVICES,08-20,CITI PCARD-VSN DOTGOVREGISTRATION,06/29/13,07/28/13,NON-TECHNOLOGY SERVICE CONTR,125.00,2013,AP,Accounts payable,00682797,CITI PCARD-VSN DOTGOVREGISTRATION
,REPUBLICAN CONFERENCE,2013Q3,OTHER SERVICES,09-17,O'DONNELL & ASSOC LTD,08/01/13,08/31/13,NON-TECHNOLOGY SERVICE CONTR,"2,500.00",2013,AP,Accounts payable,E0063613,O'DONNELL & ASSOC LTD
,REPUBLICAN CONFERENCE,2013Q3,OTHER SERVICES,09-19,CITI PCARD-ECSUITE.COM PREMIERE,07/29/13,08/28/13,NON-TECHNOLOGY SERVICE CONTR,5.95,2013,AP,Accounts payable,00690112,CITI PCARD-ECSUITE.COM PREMIERE
,REPUBLICAN CONFERENCE,2013Q3,SUPPLIES AND MATERIALS,07-03,DORNETTE MARJORIE F,06/14/13,06/14/13,FOOD & BEVERAGE,344.76,2013,AP,Accounts payable,E0034580,DORNETTE MARJORIE F
,REPUBLICAN CONFERENCE,2013Q3,SUPPLIES AND MATERIALS,07-03,DORNETTE MARJORIE F,06/17/13,06/17/13,FOOD & BEVERAGE,23.95,2013,AP,Accounts payable,E0034580,DORNETTE MARJORIE F
,REPUBLICAN CONFERENCE,2013Q3,SUPPLIES AND MATERIALS,07-03,DORNETTE MARJORIE F,06/18/13,06/18/13,FOOD & BEVERAGE,23.47,2013,AP,Accounts payable,E0034580,DORNETTE MARJORIE F
,REPUBLICAN CONFERENCE,2013Q3,SUPPLIES AND MATERIALS,07-03,DORNETTE MARJORIE F,06/20/13,06/20/13,FOOD & BEVERAGE,520.15,2013,AP,Accounts payable,E0034580,DORNETTE MARJORIE F
,REPUBLICAN CONFERENCE,2013Q3,SUPPLIES AND MATERIALS,07-03,DORNETTE MARJORIE F,06/17/13,06/17/13,OFFICE SUPPLIES (OUTSIDE),115.97,2013,AP,Accounts payable,E0034580,DORNETTE MARJORIE F
,REPUBLICAN CONFERENCE,2013Q3,SUPPLIES AND MATERIALS,07-03,DORNETTE MARJORIE F,06/19/13,06/19/13,OFFICE SUPPLIES (OUTSIDE),66.73,2013,AP,Accounts payable,E0034580,DORNETTE MARJORIE F
,REPUBLICAN CONFERENCE,2013Q3,SUPPLIES AND MATERIALS,07-03,ARAMARK REFRESHMENT SERVICES,07/01/13,07/31/13,FOOD & BEVERAGE,106.00,2013,AP,Accounts payable,E0034581,ARAMARK REFRESHMENT SERVICES
,REPUBLICAN CONFERENCE,2013Q3,SUPPLIES AND MATERIALS,07-03,ARAMARK REFRESHMENT SERVICES,06/19/13,06/19/13,FOOD & BEVERAGE,161.00,2013,AP,Accounts payable,E0034582,ARAMARK REFRESHMENT SERVICES
,REPUBLICAN CONFERENCE,2013Q3,SUPPLIES AND MATERIALS,07-03,CAPITOLHOST,06/12/13,06/12/13,FOOD & BEVERAGE,618.00,2013,AP,Accounts payable,E0034590,CAPITOLHOST
,REPUBLICAN CONFERENCE,2013Q3,SUPPLIES AND MATERIALS,07-03,CAPITOLHOST,06/04/13,06/04/13,FOOD & BEVERAGE,618.00,2013,AP,Accounts payable,E0034591,CAPITOLHOST
,REPUBLICAN CONFERENCE,2013Q3,SUPPLIES AND MATERIALS,07-08,"HODSON, NATHAN",06/28/13,06/28/13,FOOD & BEVERAGE,294.49,2013,AP,Accounts payable,E0036388,"HODSON, NATHAN"
,REPUBLICAN CONFERENCE,2013Q3,SUPPLIES AND MATERIALS,07-08,DORNETTE MARJORIE F,06/27/13,06/27/13,FOOD & BEVERAGE,30.72,2013,AP,Accounts payable,E0036394,DORNETTE MARJORIE F
,REPUBLICAN CONFERENCE,2013Q3,SUPPLIES AND MATERIALS,07-08,DORNETTE MARJORIE F,06/17/13,06/17/13,OFFICE SUPPLIES (OUTSIDE),115.97,2013,AP,Accounts payable,E0036394,DORNETTE MARJORIE F
,REPUBLICAN CONFERENCE,2013Q3,SUPPLIES AND MATERIALS,07-08,CAPITOLHOST,06/18/13,06/18/13,FOOD & BEVERAGE,666.40,2013,AP,Accounts payable,E0036395,CAPITOLHOST
,REPUBLICAN CONFERENCE,2013Q3,SUPPLIES AND MATERIALS,07-10,"JIRIK, MONICA",06/05/13,06/05/13,FOOD & BEVERAGE,39.61,2013,AP,Accounts payable,E0037660,"JIRIK, MONICA"
,REPUBLICAN CONFERENCE,2013Q3,SUPPLIES AND MATERIALS,07-10,"JIRIK, MONICA",06/13/13,08/13/13,FOOD & BEVERAGE,22.76,2013,AP,Accounts payable,E0037660,"JIRIK, MONICA"
,REPUBLICAN CONFERENCE,2013Q3,SUPPLIES AND MATERIALS,07-10,"JIRIK, MONICA",06/13/13,08/19/13,FOOD & BEVERAGE,11.99,2013,AP,Accounts payable,E0037660,"JIRIK, MONICA"
,REPUBLICAN CONFERENCE,2013Q3,SUPPLIES AND MATERIALS,07-10,"JIRIK, MONICA",06/28/13,06/28/13,FOOD & BEVERAGE,39.34,2013,AP,Accounts payable,E0037660,"JIRIK, MONICA"
,REPUBLICAN CONFERENCE,2013Q3,SUPPLIES AND MATERIALS,07-10,"JIRIK, MONICA",08/20/13,08/20/13,FOOD & BEVERAGE,17.37,2013,AP,Accounts payable,E0037660,"JIRIK, MONICA"
,REPUBLICAN CONFERENCE,2013Q3,SUPPLIES AND MATERIALS,07-12,DORNETTE MARJORIE F,07/11/13,07/11/13,FOOD & BEVERAGE,270.88,2013,AP,Accounts payable,E0039783,DORNETTE MARJORIE F
,REPUBLICAN CONFERENCE,2013Q3,SUPPLIES AND MATERIALS,07-12,CAPITOLHOST,06/26/13,06/26/13,FOOD & BEVERAGE,618.00,2013,AP,Accounts payable,E0039786,CAPITOLHOST
,REPUBLICAN CONFERENCE,2013Q3,SUPPLIES AND MATERIALS,07-12,"MURPHY, SHAUGHNESSY",07/10/13,07/10/13,FOOD & BEVERAGE,65.78,2013,AP,Accounts payable,E0039789,"MURPHY, SHAUGHNESSY"
,REPUBLICAN CONFERENCE,2013Q3,SUPPLIES AND MATERIALS,07-17,"HODSON, NATHAN",06/21/13,06/21/13,FOOD & BEVERAGE,287.52,2013,AP,Accounts payable,E0040671,"HODSON, NATHAN"
,REPUBLICAN CONFERENCE,2013Q3,SUPPLIES AND MATERIALS,07-18,DORNETTE MARJORIE F,07/11/13,07/11/13,FOOD & BEVERAGE,34.76,2013,AP,Accounts payable,E0040161,DORNETTE MARJORIE F
,REPUBLICAN CONFERENCE,2013Q3,SUPPLIES AND MATERIALS,07-19,ARAMARK REFRESHMENT SERVICES,07/17/13,07/17/13,FOOD & BEVERAGE,60.00,2013,AP,Accounts payable,E0042598,ARAMARK REFRESHMENT SERVICES
,REPUBLICAN CONFERENCE,2013Q3,SUPPLIES AND MATERIALS,07-19,DORNETTE MARJORIE F,07/17/13,07/17/13,FOOD & BEVERAGE,395.13,2013,AP,Accounts payable,E0042602,DORNETTE MARJORIE F
,REPUBLICAN CONFERENCE,2013Q3,SUPPLIES AND MATERIALS,07-22,"CITI PCARD-ADOBE SYSTEMS, INC",05/29/13,06/28/13,OFFICE SUPPLIES (OUTSIDE),84.78,2013,AP,Accounts payable,00680125,"CITI PCARD-ADOBE SYSTEMS, INC"
,REPUBLICAN CONFERENCE,2013Q3,SUPPLIES AND MATERIALS,07-22,CITI PCARD-B & H PHOTO-VIDEO.COM,05/29/13,06/28/13,OFFICE SUPPLIES (OUTSIDE),599.99,2013,AP,Accounts payable,00680125,CITI PCARD-B & H PHOTO-VIDEO.COM
,REPUBLICAN CONFERENCE,2013Q3,SUPPLIES AND MATERIALS,07-22,CITI PCARD-COSI,05/29/13,06/28/13,FOOD & BEVERAGE,428.48,2013,AP,Accounts payable,00680125,CITI PCARD-COSI
,REPUBLICAN CONFERENCE,2013Q3,SUPPLIES AND MATERIALS,07-22,CITI PCARD-HOUSE INDUSTRIES,05/29/13,06/28/13,OFFICE SUPPLIES (OUTSIDE),280.00,2013,AP,Accounts payable,00680125,CITI PCARD-HOUSE INDUSTRIES
,REPUBLICAN CONFERENCE,2013Q3,SUPPLIES AND MATERIALS,07-22,CITI PCARD-HTTP://WEBEX.COM,05/29/13,06/28/13,OFFICE SUPPLIES (OUTSIDE),89.00,2013,AP,Accounts payable,00680125,CITI PCARD-HTTP://WEBEX.COM
,REPUBLICAN CONFERENCE,2013Q3,SUPPLIES AND MATERIALS,07-22,CITI PCARD-SCHOOLSIN.COM,05/29/13,06/28/13,OFFICE SUPPLIES (OUTSIDE),34.59,2013,AP,Accounts payable,00680125,CITI PCARD-SCHOOLSIN.COM
,REPUBLICAN CONFERENCE,2013Q3,SUPPLIES AND MATERIALS,07-22,CITI PCARD-WWW.NEWEGG.COM,05/29/13,06/28/13,OFFICE SUPPLIES (OUTSIDE),339.96,2013,AP,Accounts payable,00680125,CITI PCARD-WWW.NEWEGG.COM
,REPUBLICAN CONFERENCE,2013Q3,SUPPLIES AND MATERIALS,07-22,ARAMARK REFRESHMENT SERVICES,07/17/13,07/17/13,FOOD & BEVERAGE,251.54,2013,AP,Accounts payable,E0042597,ARAMARK REFRESHMENT SERVICES
,REPUBLICAN CONFERENCE,2013Q3,SUPPLIES AND MATERIALS,07-25,"MURPHY, SHAUGHNESSY",07/24/13,07/24/13,FOOD & BEVERAGE,57.75,2013,AP,Accounts payable,E0044937,"MURPHY, SHAUGHNESSY"
,REPUBLICAN CONFERENCE,2013Q3,SUPPLIES AND MATERIALS,07-26,ARAMARK REFRESHMENT SERVICES,08/01/13,08/31/13,FOOD & BEVERAGE,106.00,2013,AP,Accounts payable,E0044935,ARAMARK REFRESHMENT SERVICES
,REPUBLICAN CONFERENCE,2013Q3,SUPPLIES AND MATERIALS,07-30,"HODSON, NATHAN",07/26/13,07/26/13,FOOD & BEVERAGE,249.25,2013,AP,Accounts payable,E0046454,"HODSON, NATHAN"
,REPUBLICAN CONFERENCE,2013Q3,SUPPLIES AND MATERIALS,07-30,DORNETTE MARJORIE F,07/26/13,07/26/13,FOOD & BEVERAGE,580.67,2013,AP,Accounts payable,E0046455,DORNETTE MARJORIE F
,REPUBLICAN CONFERENCE,2013Q3,SUPPLIES AND MATERIALS,08-05,DORNETTE MARJORIE F,07/31/13,07/31/13,FOOD & BEVERAGE,52.80,2013,AP,Accounts payable,E0048725,DORNETTE MARJORIE F
,REPUBLICAN CONFERENCE,2013Q3,SUPPLIES AND MATERIALS,08-05,"HODSON, NATHAN",07/31/13,07/31/13,FOOD & BEVERAGE,17.40,2013,AP,Accounts payable,E0048726,"HODSON, NATHAN"
,REPUBLICAN CONFERENCE,2013Q3,SUPPLIES AND MATERIALS,08-05,"HODSON, NATHAN",08/01/13,08/01/13,PUBLICATIONS/REFERENCE MAT'L,9.06,2013,AP,Accounts payable,E0048726,"HODSON, NATHAN"
,REPUBLICAN CONFERENCE,2013Q3,SUPPLIES AND MATERIALS,08-14,HAUTE CATERING,07/31/13,07/31/13,FOOD & BEVERAGE,588.00,2013,AP,Accounts payable,E0051658,HAUTE CATERING
,REPUBLICAN CONFERENCE,2013Q3,SUPPLIES AND MATERIALS,08-14,"JIRIK, MONICA",07/08/13,07/08/13,FOOD & BEVERAGE,34.80,2013,AP,Accounts payable,E0051688,"JIRIK, MONICA"
,REPUBLICAN CONFERENCE,2013Q3,SUPPLIES AND MATERIALS,08-14,"JIRIK, MONICA",07/17/13,07/17/13,FOOD & BEVERAGE,50.16,2013,AP,Accounts payable,E0051688,"JIRIK, MONICA"
,REPUBLICAN CONFERENCE,2013Q3,SUPPLIES AND MATERIALS,08-14,"JIRIK, MONICA",07/24/13,07/24/13,FOOD & BEVERAGE,30.31,2013,AP,Accounts payable,E0051688,"JIRIK, MONICA"
,REPUBLICAN CONFERENCE,2013Q3,SUPPLIES AND MATERIALS,08-15,DORNETTE MARJORIE F,08/02/13,08/02/13,FOOD & BEVERAGE,53.53,2013,AP,Accounts payable,E0052109,DORNETTE MARJORIE F
,REPUBLICAN CONFERENCE,2013Q3,SUPPLIES AND MATERIALS,08-19,ARAMARK REFRESHMENT SERVICES,08/14/13,08/14/13,FOOD & BEVERAGE,176.23,2013,AP,Accounts payable,E0052888,ARAMARK REFRESHMENT SERVICES
,REPUBLICAN CONFERENCE,2013Q3,SUPPLIES AND MATERIALS,08-20,CITI PCARD-AMAZON MKTPLACE PMTS,06/29/13,07/28/13,PUBLICATIONS/REFERENCE MAT'L,39.22,2013,AP,Accounts payable,00682797,CITI PCARD-AMAZON MKTPLACE PMTS
,REPUBLICAN CONFERENCE,2013Q3,SUPPLIES AND MATERIALS,08-20,CITI PCARD-COSI,06/29/13,07/28/13,FOOD & BEVERAGE,272.85,2013,AP,Accounts payable,00682797,CITI PCARD-COSI
,REPUBLICAN CONFERENCE,2013Q3,SUPPLIES AND MATERIALS,08-20,CITI PCARD-DGS DELICATESSEN,06/29/13,07/28/13,FOOD & BEVERAGE,154.00,2013,AP,Accounts payable,00682797,CITI PCARD-DGS DELICATESSEN
,REPUBLICAN CONFERENCE,2013Q3,SUPPLIES AND MATERIALS,09-04,ARAMARK REFRESHMENT SERVICES,09/01/13,09/30/13,FOOD & BEVERAGE,106.00,2013,AP,Accounts payable,E0056976,ARAMARK REFRESHMENT SERVICES
,REPUBLICAN CONFERENCE,2013Q3,SUPPLIES AND MATERIALS,09-17,"HODSON, NATHAN",09/06/13,09/06/13,FOOD & BEVERAGE,287.52,2013,AP,Accounts payable,E0063621,"HODSON, NATHAN"
,REPUBLICAN CONFERENCE,2013Q3,SUPPLIES AND MATERIALS,09-18,BUSINESS ROUNDTABLE,07/10/13,07/10/13,FOOD & BEVERAGE,45.40,2013,AP,Accounts payable,E0063610,BUSINESS ROUNDTABLE
,REPUBLICAN CONFERENCE,2013Q3,SUPPLIES AND MATERIALS,09-19,CITI PCARD-COSI,07/29/13,08/28/13,FOOD & BEVERAGE,173.58,2013,AP,Accounts payable,00690112,CITI PCARD-COSI
,REPUBLICAN CONFERENCE,2013Q3,SUPPLIES AND MATERIALS,09-19,CITI PCARD-DOMINO'S,07/29/13,08/28/13,FOOD & BEVERAGE,149.55,2013,AP,Accounts payable,00690112,CITI PCARD-DOMINO'S
,REPUBLICAN CONFERENCE,2013Q3,SUPPLIES AND MATERIALS,09-19,CITI PCARD-EINSTEIN BROS,07/29/13,08/28/13,FOOD & BEVERAGE,108.09,2013,AP,Accounts payable,00690112,CITI PCARD-EINSTEIN BROS
,REPUBLICAN CONFERENCE,2013Q3,SUPPLIES AND MATERIALS,09-19,CITI PCARD-NEW YORK TIMES DIGITAL,07/29/13,08/28/13,PUBLICATIONS/REFERENCE MAT'L,16.95,2013,AP,Accounts payable,00690112,CITI PCARD-NEW YORK TIMES DIGITAL
,REPUBLICAN CONFERENCE,2013Q3,SUPPLIES AND MATERIALS,09-19,ARAMARK REFRESHMENT SERVICES,10/01/13,10/31/13,FOOD & BEVERAGE,106.00,2013,AP,Accounts payable,E0065225,ARAMARK REFRESHMENT SERVICES
,REPUBLICAN CONFERENCE,2013Q3,SUPPLIES AND MATERIALS,09-19,"HODSON, NATHAN",09/13/13,09/13/13,FOOD & BEVERAGE,231.85,2013,AP,Accounts payable,E0065226,"HODSON, NATHAN"
,REPUBLICAN CONFERENCE,2013Q3,SUPPLIES AND MATERIALS,09-24,ARAMARK REFRESHMENT SERVICES,09/18/13,09/18/13,FOOD & BEVERAGE,167.70,2013,AP,Accounts payable,E0067377,ARAMARK REFRESHMENT SERVICES
,REPUBLICAN CONFERENCE,2013Q3,SUPPLIES AND MATERIALS,09-24,"HODSON, NATHAN",09/20/13,09/20/13,FOOD & BEVERAGE,273.85,2013,AP,Accounts payable,E0067383,"HODSON, NATHAN"
,REPUBLICAN CONFERENCE,2013Q3,SUPPLIES AND MATERIALS,09-26,"MURPHY, SHAUGHNESSY",09/25/13,09/25/13,FOOD & BEVERAGE,760.15,2013,AP,Accounts payable,E0068545,"MURPHY, SHAUGHNESSY"
,REPUBLICAN CONFERENCE,2013Q3,SUPPLIES AND MATERIALS,09-26,"GRAVES, JOEL D",09/25/13,09/25/13,FOOD & BEVERAGE,55.00,2013,AP,Accounts payable,E0068546,"GRAVES, JOEL D"
,OFFICE OF THE MAJORITY LEADER,2013Q3,TRAVEL,08-05,"CUMMINGS, TIMOTHY P",11/14/12,11/15/12,PRIVATE AUTO MILEAGE,22.22,2013,AP,Accounts payable,E0047742,"CUMMINGS, TIMOTHY P"
,OFFICE OF THE MAJORITY LEADER,2013Q3,TRAVEL,08-30,"CUMMINGS, TIMOTHY P",11/14/12,11/15/12,PRIVATE AUTO MILEAGE,-22.22,2013,AP,Accounts payable,00685623,"CUMMINGS, TIMOTHY P"
,OFFICE OF THE MAJORITY LEADER,2013Q3,TRAVEL,09-03,"CUMMINGS, TIMOTHY P",11/14/12,11/15/12,PRIVATE AUTO MILEAGE,-22.22,2013,AP,Accounts payable,00685577,"CUMMINGS, TIMOTHY P"
,OFFICE OF THE MAJORITY LEADER,2013Q3,TRAVEL,09-27,"CUMMINGS, TIMOTHY P",11/14/12,11/14/12,PRIVATE AUTO MILEAGE,22.22,2013,AP,Accounts payable,00690568,"CUMMINGS, TIMOTHY P"
,OFFICE OF THE MAJORITY LEADER,2013Q3,TRAVEL,08-30,"CUMMINGS, TIMOTHY P",11/14/12,11/15/12,PRIVATE AUTO MILEAGE,22.22,2012,AP,Accounts payable,00685623,"CUMMINGS, TIMOTHY P"
,OFFICE OF THE MAJORITY LEADER,2013Q3,TRAVEL,09-03,"CUMMINGS, TIMOTHY P",11/14/12,11/15/12,PRIVATE AUTO MILEAGE,22.22,2012,AP,Accounts payable,00685577,"CUMMINGS, TIMOTHY P"
,OFFICE OF THE MAJORITY LEADER,2013Q3,TRAVEL,09-27,"CUMMINGS, TIMOTHY P",11/14/12,11/15/12,PRIVATE AUTO MILEAGE,-22.22,2012,AP,Accounts payable,00690568,"CUMMINGS, TIMOTHY P"
,OFFICE OF THE MINORITY LEADER,2013Q3,TRAVEL,09-03,"PRICE, REVA B",10/16/12,12/01/12,TAXI/PARKING/TOLLS,65.00,2012,AP,Accounts payable,00685578,"PRICE, REVA B"
,OFFICE OF THE DEMOCRATIC WHIP,2013Q3,SUPPLIES AND MATERIALS,09-03,PANERA BREAD COMPANY,12/12/12,12/12/12,FOOD & BEVERAGE,132.93,2012,AP,Accounts payable,00685579,PANERA BREAD COMPANY
,DEMOCRATIC CAUCUS,2013Q3,SUPPLIES AND MATERIALS,09-03,"BRACHMAN, ELLIS A",01/01/13,01/01/13,FOOD & BEVERAGE,-186.56,2013,AP,Accounts payable,00685574,"BRACHMAN, ELLIS A"
,DEMOCRATIC CAUCUS,2013Q3,SUPPLIES AND MATERIALS,09-03,"BRACHMAN, ELLIS A",01/01/13,01/01/13,FOOD & BEVERAGE,186.56,2012,AP,Accounts payable,00685574,"BRACHMAN, ELLIS A"
,CHIEF ADMIN OFCR OF THE HOUSE,2013Q3,TRAVEL,07-10,"HARRIS, DONALD",06/22/13,06/28/13,COMMERCIAL TRANSPORTATION,392.80,FISCAL YEAR 2013,AP,Accounts payable,E0038667,"HARRIS, DONALD"
,CHIEF ADMIN OFCR OF THE HOUSE,2013Q3,TRAVEL,07-10,"HARRIS, DONALD",06/22/13,06/27/13,LODGING,545.65,FISCAL YEAR 2013,AP,Accounts payable,E0038667,"HARRIS, DONALD"
,CHIEF ADMIN OFCR OF THE HOUSE,2013Q3,TRAVEL,07-10,"HARRIS, DONALD",06/22/13,06/28/13,MEALS,364.00,FISCAL YEAR 2013,AP,Accounts payable,E0038667,"HARRIS, DONALD"
,CHIEF ADMIN OFCR OF THE HOUSE,2013Q3,TRAVEL,07-10,"HARRIS, DONALD",06/22/13,06/28/13,PRIVATE AUTO MILEAGE,54.52,FISCAL YEAR 2013,AP,Accounts payable,E0038667,"HARRIS, DONALD"
,CHIEF ADMIN OFCR OF THE HOUSE,2013Q3,TRAVEL,07-10,"HARRIS, DONALD",06/22/13,06/28/13,MISCELLANEOUS TRAVEL,50.00,FISCAL YEAR 2013,AP,Accounts payable,E0038667,"HARRIS, DONALD"
,CHIEF ADMIN OFCR OF THE HOUSE,2013Q3,TRAVEL,07-11,"STOUGHTON, MARIA R",06/22/13,06/28/13,TAXI/PARKING/TOLLS,76.00,FISCAL YEAR 2013,AP,Accounts payable,E0039100,"STOUGHTON, MARIA R"
,CHIEF ADMIN OFCR OF THE HOUSE,2013Q3,TRAVEL,07-26,"HARRELL, VICKIE",07/15/13,07/19/13,PRIVATE AUTO MILEAGE,45.20,FISCAL YEAR 2013,AP,Accounts payable,E0045176,"HARRELL, VICKIE"
,CHIEF ADMIN OFCR OF THE HOUSE,2013Q3,TRAVEL,07-26,"HARRELL, VICKIE",07/15/13,07/19/13,TAXI/PARKING/TOLLS,37.00,FISCAL YEAR 2013,AP,Accounts payable,E0045176,"HARRELL, VICKIE"
,CHIEF ADMIN OFCR OF THE HOUSE,2013Q3,TRAVEL,07-29,"HARRELL, VICKIE",07/15/13,07/19/13,PRIVATE AUTO MILEAGE,-45.20,FISCAL YEAR 2013,AP,Accounts payable,00680491,"HARRELL, VICKIE"
,CHIEF ADMIN OFCR OF THE HOUSE,2013Q3,TRAVEL,07-29,"HARRELL, VICKIE",07/15/13,07/19/13,TAXI/PARKING/TOLLS,-37.00,FISCAL YEAR 2013,AP,Accounts payable,00680491,"HARRELL, VICKIE"
,CHIEF ADMIN OFCR OF THE HOUSE,2013Q3,"RENT, COMMUNICATION, UTILITIES",07-05,VERIZON,05/01/13,05/31/13,TELECOMSRV/EQ/TOLL CHARGE,525.10,FISCAL YEAR 2013,AP,Accounts payable,E0035461,VERIZON
,CHIEF ADMIN OFCR OF THE HOUSE,2013Q3,"RENT, COMMUNICATION, UTILITIES",07-05,VERIZON CABS,05/01/13,05/31/13,TELECOMSRV/EQ/TOLL CHARGE,876.51,FISCAL YEAR 2013,AP,Accounts payable,E0035522,VERIZON CABS
,CHIEF ADMIN OFCR OF THE HOUSE,2013Q3,"RENT, COMMUNICATION, UTILITIES",07-08,VERIZON CABS,05/01/13,05/31/13,TELECOMSRV/EQ/TOLL CHARGE,-876.51,FISCAL YEAR 2013,AP,Accounts payable,00675631,VERIZON CABS
,CHIEF ADMIN OFCR OF THE HOUSE,2013Q3,PERSONNEL COMPENSATION,"","ABBOTT, JESSICA A",07/01/13,09/30/13,FINANCIAL ANALYST,"31,512.51",FISCAL YEAR 2013,"","","","ABBOTT, JESSICA A"
,CHIEF ADMIN OFCR OF THE HOUSE,2013Q3,PERSONNEL COMPENSATION,"","ABEL, TIMOTHY",07/01/13,09/30/13,SR TECHNICAL SUPPORT REP (A),"23,888.25",FISCAL YEAR 2013,"","","","ABEL, TIMOTHY"
,CHIEF ADMIN OFCR OF THE HOUSE,2013Q3,PERSONNEL COMPENSATION,"","ACUESTA,JULY J",07/01/13,09/30/13,SENIOR SYSTEMS ENGINEER,"26,928.51",FISCAL YEAR 2013,"","","","ACUESTA,JULY J"
,CHIEF ADMIN OFCR OF THE HOUSE,2013Q3,PERSONNEL COMPENSATION,"","ADDISON, TRACY",07/01/13,09/30/13,LOGISTICS & DIST SPEC (A),"11,567.49",FISCAL YEAR 2013,"","","","ADDISON, TRACY"
,CHIEF ADMIN OFCR OF THE HOUSE,2013Q3,PERSONNEL COMPENSATION,"","ADELAKUN, DEEN A",07/01/13,09/30/13,SR TECH SOLUTIONS ENGINEER,"22,107.00",FISCAL YEAR 2013,"","","","ADELAKUN, DEEN A"
,CHIEF ADMIN OFCR OF THE HOUSE,2013Q3,PERSONNEL COMPENSATION,"","AGEE, MATTHEW P",07/01/13,09/30/13,RESOURCE MANAGER,"30,405.24",FISCAL YEAR 2013,"","","","AGEE, MATTHEW P"
,CHIEF ADMIN OFCR OF THE HOUSE,2013Q3,PERSONNEL COMPENSATION,"","AGEE, TINA M",07/01/13,09/30/13,DIRECTOR PHOTOGRAPHY,"26,928.51",FISCAL YEAR 2013,"","","","AGEE, TINA M"
,CHIEF ADMIN OFCR OF THE HOUSE,2013Q3,PERSONNEL COMPENSATION,"","AGNEW, ROSE M",07/01/13,09/30/13,PAYROLL & BENEFITS GENERALIST,"18,329.01",FISCAL YEAR 2013,"","","","AGNEW, ROSE M"
,CHIEF ADMIN OFCR OF THE HOUSE,2013Q3,PERSONNEL COMPENSATION,"","AGNEW, ROSE M",06/01/13,07/31/13,PAYROLL & BENEFITS GENERALIST (OVERTIME),819.50,FISCAL YEAR 2013,"","","","AGNEW, ROSE M"
,CHIEF ADMIN OFCR OF THE HOUSE,2013Q3,PERSONNEL COMPENSATION,"","AKINSEGUN, PATRICIA A",07/01/13,09/30/13,TELEPHONE SYSTEMS CONSULTANT,"22,107.00",FISCAL YEAR 2013,"","","","AKINSEGUN, PATRICIA A"
,CHIEF ADMIN OFCR OF THE HOUSE,2013Q3,PERSONNEL COMPENSATION,"","ALEXANDER, GORDON",07/01/13,09/30/13,TECH SOLUTIONS ENGINEER,"17,735.76",FISCAL YEAR 2013,"","","","ALEXANDER, GORDON"
,CHIEF ADMIN OFCR OF THE HOUSE,2013Q3,PERSONNEL COMPENSATION,"","ALEXANDER, SHARYN B",07/01/13,09/01/13,SPECIAL ASSISTANT,"18,490.12",FISCAL YEAR 2013,"","","","ALEXANDER, SHARYN B"
,CHIEF ADMIN OFCR OF THE HOUSE,2013Q3,PERSONNEL COMPENSATION,"","ALEXANDER, SHARYN B",09/01/13,09/01/13,SPECIAL ASSISTANT (OTHER COMPENSATION),"9,093.50",FISCAL YEAR 2013,"","","","ALEXANDER, SHARYN B"
,CHIEF ADMIN OFCR OF THE HOUSE,2013Q3,PERSONNEL COMPENSATION,"","ALEXANDER, SHARYN B",09/01/13,09/01/13,SPECIAL ASSISTANT (OTHER COMPENSATION),"25,000.00",FISCAL YEAR 2013,"","","","ALEXANDER, SHARYN B"
,CHIEF ADMIN OFCR OF THE HOUSE,2013Q3,PERSONNEL COMPENSATION,"","ALLARD,KENNETH V",06/01/13,06/30/13,ADA AIDE (OTHER COMPENSATION),"4,939.75",FISCAL YEAR 2013,"","","","ALLARD,KENNETH V"
,CHIEF ADMIN OFCR OF THE HOUSE,2013Q3,PERSONNEL COMPENSATION,"","ALLISON, KEVIN M",07/01/13,09/30/13,LOGISTICS & DIST SPEC (A),"13,503.51",FISCAL YEAR 2013,"","","","ALLISON, KEVIN M"
,CHIEF ADMIN OFCR OF THE HOUSE,2013Q3,PERSONNEL COMPENSATION,"","ALSTON,MARK A",07/01/13,09/30/13,TECH SOLUTIONS ENGINEER,"17,344.26",FISCAL YEAR 2013,"","","","ALSTON,MARK A"
,CHIEF ADMIN OFCR OF THE HOUSE,2013Q3,PERSONNEL COMPENSATION,"","ALVEY, LISA M",07/01/13,09/30/13,FINANCIAL COUNSELOR,"20,286.24",FISCAL YEAR 2013,"","","","ALVEY, LISA M"
,CHIEF ADMIN OFCR OF THE HOUSE,2013Q3,PERSONNEL COMPENSATION,"","ANDERSEN, FREDERIC E",07/01/13,09/30/13,2ND ASST SUPERINTENDENT,"22,255.00",FISCAL YEAR 2013,"","","","ANDERSEN, FREDERIC E"
,CHIEF ADMIN OFCR OF THE HOUSE,2013Q3,PERSONNEL COMPENSATION,"","ANDERSON, DONTRELL",07/01/13,09/30/13,FINANCIAL COUNSELOR,"15,789.00",FISCAL YEAR 2013,"","","","ANDERSON, DONTRELL"
,CHIEF ADMIN OFCR OF THE HOUSE,2013Q3,PERSONNEL COMPENSATION,"","ANDREWS,THOMAS",07/01/13,09/30/13,VOICE & VIDEO BRANCH MGR (A),"33,323.25",FISCAL YEAR 2013,"","","","ANDREWS,THOMAS"
,CHIEF ADMIN OFCR OF THE HOUSE,2013Q3,PERSONNEL COMPENSATION,"","ANDREWS-MOBLEY, RACHELLE G",07/01/13,09/30/13,PRINCIPAL TECHNICAL TRAINER,"24,447.17",FISCAL YEAR 2013,"","","","ANDREWS-MOBLEY, RACHELLE G"
,CHIEF ADMIN OFCR OF THE HOUSE,2013Q3,PERSONNEL COMPENSATION,"","ARMAS, KENTON A",07/01/13,08/31/13,JOURNEYMAN TEXTILE SPEC,"12,602.16",FISCAL YEAR 2013,"","","","ARMAS, KENTON A"
,CHIEF ADMIN OFCR OF THE HOUSE,2013Q3,PERSONNEL COMPENSATION,"","ARMAS, KENTON A",08/01/13,08/30/13,JOURNEYMAN TEXTILE SPEC (OTHER COMPENSATION),"6,301.08",FISCAL YEAR 2013,"","","","ARMAS, KENTON A"
,CHIEF ADMIN OFCR OF THE HOUSE,2013Q3,PERSONNEL COMPENSATION,"","ARMAS, KENTON A",08/01/13,08/31/13,JOURNEYMAN TEXTILE SPEC (OTHER COMPENSATION),"25,000.00",FISCAL YEAR 2013,"","","","ARMAS, KENTON A"
,CHIEF ADMIN OFCR OF THE HOUSE,2013Q3,PERSONNEL COMPENSATION,"","ARMSTRONG,JANCIERA C",07/01/13,09/30/13,"MANAGER, ACCOUNTING","25,912.74",FISCAL YEAR 2013,"","","","ARMSTRONG,JANCIERA C"
,CHIEF ADMIN OFCR OF THE HOUSE,2013Q3,PERSONNEL COMPENSATION,"","ARTHUR, CAMILLA S",07/01/13,09/30/13,ASSISTANT CAO,"39,794.25",FISCAL YEAR 2013,"","","","ARTHUR, CAMILLA S"
,CHIEF ADMIN OFCR OF THE HOUSE,2013Q3,PERSONNEL COMPENSATION,"","ATCHISON, DARRYL A",07/01/13,09/30/13,DEPUTY CHIEF ENGINEER,"30,590.24",FISCAL YEAR 2013,"","","","ATCHISON, DARRYL A"
,CHIEF ADMIN OFCR OF THE HOUSE,2013Q3,PERSONNEL COMPENSATION,"","AWAN, OMAR",07/01/13,09/30/13,SR BUSINESS PROCESS APPL SPEC,"35,160.75",FISCAL YEAR 2013,"","","","AWAN, OMAR"
,CHIEF ADMIN OFCR OF THE HOUSE,2013Q3,PERSONNEL COMPENSATION,"","BABCOCK, TIMOTHY W",07/01/13,07/01/13,JOURNEYMAN TEXTILE SPEC,389.03,FISCAL YEAR 2013,"","","","BABCOCK, TIMOTHY W"
,CHIEF ADMIN OFCR OF THE HOUSE,2013Q3,PERSONNEL COMPENSATION,"","BABCOCK, TIMOTHY W",07/01/13,07/01/13,JOURNEYMAN TEXTILE SPEC (OTHER COMPENSATION),740.36,FISCAL YEAR 2013,"","","","BABCOCK, TIMOTHY W"
,CHIEF ADMIN OFCR OF THE HOUSE,2013Q3,PERSONNEL COMPENSATION,"","BABCOCK, TIMOTHY W",07/01/13,07/01/13,JOURNEYMAN TEXTILE SPEC (OTHER COMPENSATION),"25,000.00",FISCAL YEAR 2013,"","","","BABCOCK, TIMOTHY W"
,CHIEF ADMIN OFCR OF THE HOUSE,2013Q3,PERSONNEL COMPENSATION,"","BAER, PETER L",07/01/13,09/30/13,BUSINESS PROC APPLIC SPEC,"32,010.99",FISCAL YEAR 2013,"","","","BAER, PETER L"
,CHIEF ADMIN OFCR OF THE HOUSE,2013Q3,PERSONNEL COMPENSATION,"","BAHAM,TODD",07/01/13,09/30/13,BROADCAST PRODUCTION TECHNICIA,"18,719.25",FISCAL YEAR 2013,"","","","BAHAM,TODD"
,CHIEF ADMIN OFCR OF THE HOUSE,2013Q3,PERSONNEL COMPENSATION,"","BAHAM,TODD",06/01/13,08/31/13,BROADCAST PRODUCTION TECHNICIA (OVERTIME),"1,997.90",FISCAL YEAR 2013,"","","","BAHAM,TODD"
,CHIEF ADMIN OFCR OF THE HOUSE,2013Q3,PERSONNEL COMPENSATION,"","BAILEY, DAVID E",07/01/13,09/30/13,SR TECHNICAL SUPPORT REP (A),"23,888.25",FISCAL YEAR 2013,"","","","BAILEY, DAVID E"
,CHIEF ADMIN OFCR OF THE HOUSE,2013Q3,PERSONNEL COMPENSATION,"","BAKER, DARRELL F",07/01/13,09/30/13,SENIOR NETWORK TECHNICIAN,"24,595.50",FISCAL YEAR 2013,"","","","BAKER, DARRELL F"
,CHIEF ADMIN OFCR OF THE HOUSE,2013Q3,PERSONNEL COMPENSATION,"","BANFIELD,KELLI C",07/01/13,09/30/13,BROADCAST ENGINEER/PROD SPEC,"21,214.74",FISCAL YEAR 2013,"","","","BANFIELD,KELLI C"
,CHIEF ADMIN OFCR OF THE HOUSE,2013Q3,PERSONNEL COMPENSATION,"","BANKS,BIANCA N",07/01/13,09/30/13,RETAIL INVENTORY SPECIALIST,"16,569.24",FISCAL YEAR 2013,"","","","BANKS,BIANCA N"
,CHIEF ADMIN OFCR OF THE HOUSE,2013Q3,PERSONNEL COMPENSATION,"","BARBEE, GLENN",07/01/13,09/30/13,NETWORK TECHNICIAN,"21,663.00",FISCAL YEAR 2013,"","","","BARBEE, GLENN"
,CHIEF ADMIN OFCR OF THE HOUSE,2013Q3,PERSONNEL COMPENSATION,"","BARBEE,DONELL G",07/01/13,09/30/13,RETAIL INVENTORY SPECIALIST,"10,095.75",FISCAL YEAR 2013,"","","","BARBEE,DONELL G"
,CHIEF ADMIN OFCR OF THE HOUSE,2013Q3,PERSONNEL COMPENSATION,"","BARBEE,DONELL G",08/01/13,08/31/13,RETAIL INVENTORY SPECIALIST (OVERTIME),72.81,FISCAL YEAR 2013,"","","","BARBEE,DONELL G"
,CHIEF ADMIN OFCR OF THE HOUSE,2013Q3,PERSONNEL COMPENSATION,"","BARBOUR, JUNE M",07/01/13,09/30/13,BROADCAST PRODUCTION TECHNICIA,"18,719.25",FISCAL YEAR 2013,"","","","BARBOUR, JUNE M"
,CHIEF ADMIN OFCR OF THE HOUSE,2013Q3,PERSONNEL COMPENSATION,"","BARBOUR, JUNE M",06/01/13,07/31/13,BROADCAST PRODUCTION TECHNICIA (OVERTIME),512.98,FISCAL YEAR 2013,"","","","BARBOUR, JUNE M"
,CHIEF ADMIN OFCR OF THE HOUSE,2013Q3,PERSONNEL COMPENSATION,"","BARCINIAK, DANA L",07/01/13,09/30/13,SENIOR PHOTOGRAPHER,"21,069.99",FISCAL YEAR 2013,"","","","BARCINIAK, DANA L"
,CHIEF ADMIN OFCR OF THE HOUSE,2013Q3,PERSONNEL COMPENSATION,"","BARCINIAK, DANA L",07/01/13,07/31/13,SENIOR PHOTOGRAPHER (OVERTIME),577.39,FISCAL YEAR 2013,"","","","BARCINIAK, DANA L"
,CHIEF ADMIN OFCR OF THE HOUSE,2013Q3,PERSONNEL COMPENSATION,"","BAREFOOT,JEFFREY",07/01/13,09/30/13,PRODUCTION/ENGINEER SPEC (TEMP,"8,039.55",FISCAL YEAR 2013,"","","","BAREFOOT,JEFFREY"
,CHIEF ADMIN OFCR OF THE HOUSE,2013Q3,PERSONNEL COMPENSATION,"","BARNABAE, MONICA M",07/01/13,09/30/13,DIRECTOR-HOUSE CHILD CARE CNTR,"26,759.92",FISCAL YEAR 2013,"","","","BARNABAE, MONICA M"
,CHIEF ADMIN OFCR OF THE HOUSE,2013Q3,PERSONNEL COMPENSATION,"","BARRETT, ROBERT R",07/01/13,09/30/13,"MANAGER, SUPPORT SYSTEMS","33,938.25",FISCAL YEAR 2013,"","","","BARRETT, ROBERT R"
,CHIEF ADMIN OFCR OF THE HOUSE,2013Q3,PERSONNEL COMPENSATION,"","BARTHOLOMEW, DEBORAH",07/01/13,09/30/13,ADMIN-FINANCE & PAYROLL,"22,809.00",FISCAL YEAR 2013,"","","","BARTHOLOMEW, DEBORAH"
,CHIEF ADMIN OFCR OF THE HOUSE,2013Q3,PERSONNEL COMPENSATION,"","BASILIO, TYRONE A",07/01/13,09/30/13,TECHNICAL SUPPORT REP,"19,371.91",FISCAL YEAR 2013,"","","","BASILIO, TYRONE A"
,CHIEF ADMIN OFCR OF THE HOUSE,2013Q3,PERSONNEL COMPENSATION,"","BATES, DEBORAH A",07/01/13,09/30/13,PRODUCTION/ENGINEER SPEC (TEMP,"5,728.19",FISCAL YEAR 2013,"","","","BATES, DEBORAH A"
,CHIEF ADMIN OFCR OF THE HOUSE,2013Q3,PERSONNEL COMPENSATION,"","BATH,GEORGE J",07/15/13,09/30/13,SENIOR ADVISOR,"35,553.43",FISCAL YEAR 2013,"","","","BATH,GEORGE J"
,CHIEF ADMIN OFCR OF THE HOUSE,2013Q3,PERSONNEL COMPENSATION,"","BAULEY, PATRICK J",07/01/13,09/30/13,TECHNICAL DIRECTOR (A),"28,962.75",FISCAL YEAR 2013,"","","","BAULEY, PATRICK J"
,CHIEF ADMIN OFCR OF THE HOUSE,2013Q3,PERSONNEL COMPENSATION,"","BAULEY, PATRICK J",07/01/13,08/31/13,TECHNICAL DIRECTOR (A) (OVERTIME),543.04,FISCAL YEAR 2013,"","","","BAULEY, PATRICK J"
,CHIEF ADMIN OFCR OF THE HOUSE,2013Q3,PERSONNEL COMPENSATION,"","BEAUBIAN, TRACI R",07/01/13,09/30/13,CHIEF FINANCIAL OFFICER,"42,102.75",FISCAL YEAR 2013,"","","","BEAUBIAN, TRACI R"
,CHIEF ADMIN OFCR OF THE HOUSE,2013Q3,PERSONNEL COMPENSATION,"","BEIDEL, BERNARD E",07/01/13,09/30/13,"DIR, OFFICE OF EMPLOYEE ASSIST","42,102.75",FISCAL YEAR 2013,"","","","BEIDEL, BERNARD E"
,CHIEF ADMIN OFCR OF THE HOUSE,2013Q3,PERSONNEL COMPENSATION,"","BELL,FRANK E",07/01/13,09/30/13,SENIOR TECHNICAL ADVISOR,"32,096.01",FISCAL YEAR 2013,"","","","BELL,FRANK E"
,CHIEF ADMIN OFCR OF THE HOUSE,2013Q3,PERSONNEL COMPENSATION,"","BENAVIDEZ, OSCAR",07/01/13,09/30/13,LOGISTICS & DIST SPEC (A),"12,325.26",FISCAL YEAR 2013,"","","","BENAVIDEZ, OSCAR"
,CHIEF ADMIN OFCR OF THE HOUSE,2013Q3,PERSONNEL COMPENSATION,"","BENN, PHILLIP F",07/01/13,09/30/13,ELECTRONICS TECHNICIAN (A),"22,551.00",FISCAL YEAR 2013,"","","","BENN, PHILLIP F"
,CHIEF ADMIN OFCR OF THE HOUSE,2013Q3,PERSONNEL COMPENSATION,"","BENNETT, GERALD E",07/01/13,09/01/13,CHIEF LOGISTICS OFFICER,"28,536.31",FISCAL YEAR 2013,"","","","BENNETT, GERALD E"
,CHIEF ADMIN OFCR OF THE HOUSE,2013Q3,PERSONNEL COMPENSATION,"","BENNETT, GERALD E",09/01/13,09/01/13,CHIEF LOGISTICS OFFICER (OTHER COMPENSATION),"14,034.25",FISCAL YEAR 2013,"","","","BENNETT, GERALD E"
,CHIEF ADMIN OFCR OF THE HOUSE,2013Q3,PERSONNEL COMPENSATION,"","BENNETT, GERALD E",09/01/13,09/01/13,CHIEF LOGISTICS OFFICER (OTHER COMPENSATION),"25,000.00",FISCAL YEAR 2013,"","","","BENNETT, GERALD E"
,CHIEF ADMIN OFCR OF THE HOUSE,2013Q3,PERSONNEL COMPENSATION,"","BERGER, DONALD W",07/01/13,09/30/13,BROADCAST PRODUCTION TECHNICIA,"20,771.49",FISCAL YEAR 2013,"","","","BERGER, DONALD W"
,CHIEF ADMIN OFCR OF THE HOUSE,2013Q3,PERSONNEL COMPENSATION,"","BERGER, DONALD W",06/01/13,08/31/13,BROADCAST PRODUCTION TECHNICIA (OVERTIME),69.90,FISCAL YEAR 2013,"","","","BERGER, DONALD W"
,CHIEF ADMIN OFCR OF THE HOUSE,2013Q3,PERSONNEL COMPENSATION,"","BERRY,JOSEPH B",09/03/13,09/30/13,SYSTEMS ENGINEER,"6,739.60",FISCAL YEAR 2013,"","","","BERRY,JOSEPH B"
,CHIEF ADMIN OFCR OF THE HOUSE,2013Q3,PERSONNEL COMPENSATION,"","BEST, CHARLENE",07/01/13,09/30/13,MANAGER,"23,256.00",FISCAL YEAR 2013,"","","","BEST, CHARLENE"
,CHIEF ADMIN OFCR OF THE HOUSE,2013Q3,PERSONNEL COMPENSATION,"","BETHEA,LASHON L",07/01/13,09/30/13,TECHNICAL TRAINER,"25,044.51",FISCAL YEAR 2013,"","","","BETHEA,LASHON L"
,CHIEF ADMIN OFCR OF THE HOUSE,2013Q3,PERSONNEL COMPENSATION,"","BILLARD, MICHAEL A",07/01/13,09/30/13,COMMUNICATIONS SPEC,"24,595.50",FISCAL YEAR 2013,"","","","BILLARD, MICHAEL A"
,CHIEF ADMIN OFCR OF THE HOUSE,2013Q3,PERSONNEL COMPENSATION,"","BILLUPS, BRIAN E",07/01/13,09/30/13,NETWORK TECHNICIAN (A),"19,110.75",FISCAL YEAR 2013,"","","","BILLUPS, BRIAN E"
,CHIEF ADMIN OFCR OF THE HOUSE,2013Q3,PERSONNEL COMPENSATION,"","BLAKNEY, HAROLD",07/01/13,09/30/13,SENIOR SYSTEMS ENGINEER,"37,001.25",FISCAL YEAR 2013,"","","","BLAKNEY, HAROLD"
,CHIEF ADMIN OFCR OF THE HOUSE,2013Q3,PERSONNEL COMPENSATION,"","BOGAN, DAVID S",07/01/13,09/30/13,"SUPERVISOR, RETAIL INVENTORY","19,110.75",FISCAL YEAR 2013,"","","","BOGAN, DAVID S"
,CHIEF ADMIN OFCR OF THE HOUSE,2013Q3,PERSONNEL COMPENSATION,"","BOGER, KELLY M",07/01/13,09/30/13,ACCOUNT MANAGEMENT COUNSELOR,"19,502.49",FISCAL YEAR 2013,"","","","BOGER, KELLY M"
,CHIEF ADMIN OFCR OF THE HOUSE,2013Q3,PERSONNEL COMPENSATION,"","BOOKER, CARLOS",07/01/13,09/30/13,SALES SPECIALIST,"10,095.75",FISCAL YEAR 2013,"","","","BOOKER, CARLOS"
,CHIEF ADMIN OFCR OF THE HOUSE,2013Q3,PERSONNEL COMPENSATION,"","BOOKER, CARLOS",08/01/13,08/31/13,SALES SPECIALIST (OVERTIME),72.81,FISCAL YEAR 2013,"","","","BOOKER, CARLOS"
,CHIEF ADMIN OFCR OF THE HOUSE,2013Q3,PERSONNEL COMPENSATION,"","BOONE, RUSSELL",07/01/13,09/30/13,TECHNICAL SUPPORT REP,"21,854.01",FISCAL YEAR 2013,"","","","BOONE, RUSSELL"
,CHIEF ADMIN OFCR OF THE HOUSE,2013Q3,PERSONNEL COMPENSATION,"","BOWERS,KAREN L",07/01/13,09/30/13,FINANCIAL COUNSELOR,"18,719.25",FISCAL YEAR 2013,"","","","BOWERS,KAREN L"
,CHIEF ADMIN OFCR OF THE HOUSE,2013Q3,PERSONNEL COMPENSATION,"","BOWLDING, SONIA R",07/01/13,09/30/13,REC/WAREHOUSE SPEC (A),"10,980.00",FISCAL YEAR 2013,"","","","BOWLDING, SONIA R"
,CHIEF ADMIN OFCR OF THE HOUSE,2013Q3,PERSONNEL COMPENSATION,"","BOWLES JR, FREDERICK H",07/01/13,09/01/13,"SUPERVISOR-LOGISTICS, SUPP EQU","16,190.93",FISCAL YEAR 2013,"","","","BOWLES JR, FREDERICK H"
,CHIEF ADMIN OFCR OF THE HOUSE,2013Q3,PERSONNEL COMPENSATION,"","BOWLES JR, FREDERICK H",09/01/13,09/01/13,"SUPERVISOR-LOGISTICS, SUPP EQU (OTHER COMPENSATION)","7,962.75",FISCAL YEAR 2013,"","","","BOWLES JR, FREDERICK H"
,CHIEF ADMIN OFCR OF THE HOUSE,2013Q3,PERSONNEL COMPENSATION,"","BOWLES JR, FREDERICK H",09/01/13,09/01/13,"SUPERVISOR-LOGISTICS, SUPP EQU (OTHER COMPENSATION)","25,000.00",FISCAL YEAR 2013,"","","","BOWLES JR, FREDERICK H"
,CHIEF ADMIN OFCR OF THE HOUSE,2013Q3,PERSONNEL COMPENSATION,"","BOWLES, JAMES A",07/01/13,09/30/13,JOURNEYMAN FURNITURE SPEC,"18,903.24",FISCAL YEAR 2013,"","","","BOWLES, JAMES A"
,CHIEF ADMIN OFCR OF THE HOUSE,2013Q3,PERSONNEL COMPENSATION,"","BOWLING-STOKES,CHAUNETTE L",07/01/13,09/30/13,SUPERVISOR,"23,107.00",FISCAL YEAR 2013,"","","","BOWLING-STOKES,CHAUNETTE L"
,CHIEF ADMIN OFCR OF THE HOUSE,2013Q3,PERSONNEL COMPENSATION,"","BOWMAN,SHELIA",07/01/13,09/30/13,FINANCIAL COUNSELOR,"16,179.24",FISCAL YEAR 2013,"","","","BOWMAN,SHELIA"
,CHIEF ADMIN OFCR OF THE HOUSE,2013Q3,PERSONNEL COMPENSATION,"","BOYD, KRISTIE N",08/01/13,08/22/13,PHOTOGRAPHER/LAB TECH (TEMP),"1,607.91",FISCAL YEAR 2013,"","","","BOYD, KRISTIE N"
,CHIEF ADMIN OFCR OF THE HOUSE,2013Q3,PERSONNEL COMPENSATION,"","BOYD, PETRINA",07/01/13,09/30/13,SALES SPECIALIST,"11,439.75",FISCAL YEAR 2013,"","","","BOYD, PETRINA"
,CHIEF ADMIN OFCR OF THE HOUSE,2013Q3,PERSONNEL COMPENSATION,"","BOYD, PETRINA",08/01/13,08/31/13,SALES SPECIALIST (OVERTIME),44.00,FISCAL YEAR 2013,"","","","BOYD, PETRINA"
,CHIEF ADMIN OFCR OF THE HOUSE,2013Q3,PERSONNEL COMPENSATION,"","BOYLE, KEVIN J",07/01/13,09/30/13,SR BUSINESS PROCESS APPL SPEC,"37,613.25",FISCAL YEAR 2013,"","","","BOYLE, KEVIN J"
,CHIEF ADMIN OFCR OF THE HOUSE,2013Q3,PERSONNEL COMPENSATION,"","BRACKENS, ROBERT",07/01/13,09/30/13,BROADCAST PRODUCTION TECHNICIA,"21,214.74",FISCAL YEAR 2013,"","","","BRACKENS, ROBERT"
,CHIEF ADMIN OFCR OF THE HOUSE,2013Q3,PERSONNEL COMPENSATION,"","BRACKENS, ROBERT",06/01/13,08/31/13,BROADCAST PRODUCTION TECHNICIA (OVERTIME),336.58,FISCAL YEAR 2013,"","","","BRACKENS, ROBERT"
,CHIEF ADMIN OFCR OF THE HOUSE,2013Q3,PERSONNEL COMPENSATION,"","BRANCH,PAMELA J",07/01/13,09/30/13,"MANAGER, PAYROLL & BENEFITS","28,454.01",FISCAL YEAR 2013,"","","","BRANCH,PAMELA J"
,CHIEF ADMIN OFCR OF THE HOUSE,2013Q3,PERSONNEL COMPENSATION,"","BRAXTON, BRANDON A",07/01/13,09/30/13,LOGISTICS & DIST SPEC (A),"10,980.00",FISCAL YEAR 2013,"","","","BRAXTON, BRANDON A"
,CHIEF ADMIN OFCR OF THE HOUSE,2013Q3,PERSONNEL COMPENSATION,"","BRAYE, LORENZO",07/01/13,08/31/13,SR BROADCAST ENG/PROD SPECLST,"15,951.67",FISCAL YEAR 2013,"","","","BRAYE, LORENZO"
,CHIEF ADMIN OFCR OF THE HOUSE,2013Q3,PERSONNEL COMPENSATION,"","BRAYE, LORENZO",06/01/13,07/31/13,SR BROADCAST ENG/PROD SPECLST (OVERTIME),535.62,FISCAL YEAR 2013,"","","","BRAYE, LORENZO"
,CHIEF ADMIN OFCR OF THE HOUSE,2013Q3,PERSONNEL COMPENSATION,"","BRAYE, LORENZO",08/01/13,08/30/13,SR BROADCAST ENG/PROD SPECLST (OTHER COMPENSATION),"6,909.73",FISCAL YEAR 2013,"","","","BRAYE, LORENZO"
,CHIEF ADMIN OFCR OF THE HOUSE,2013Q3,PERSONNEL COMPENSATION,"","BRAYE, LORENZO",08/01/13,08/31/13,SR BROADCAST ENG/PROD SPECLST (OTHER COMPENSATION),"25,000.00",FISCAL YEAR 2013,"","","","BRAYE, LORENZO"
,CHIEF ADMIN OFCR OF THE HOUSE,2013Q3,PERSONNEL COMPENSATION,"","BREWSTER III,JAMES E",07/01/13,09/30/13,LOGISTICS & DIST SPEC (A),"9,086.74",FISCAL YEAR 2013,"","","","BREWSTER III,JAMES E"
,CHIEF ADMIN OFCR OF THE HOUSE,2013Q3,PERSONNEL COMPENSATION,"","BREWSTER,CHRISTOPHER A",07/01/13,09/30/13,ADMINISTRATIVE COUNSEL,"42,102.75",FISCAL YEAR 2013,"","","","BREWSTER,CHRISTOPHER A"
,CHIEF ADMIN OFCR OF THE HOUSE,2013Q3,PERSONNEL COMPENSATION,"","BRIDGEFORTH, TOINETTA A",07/01/13,09/30/13,CONTRACTS SPECIALIST,"22,107.00",FISCAL YEAR 2013,"","","","BRIDGEFORTH, TOINETTA A"
,CHIEF ADMIN OFCR OF THE HOUSE,2013Q3,PERSONNEL COMPENSATION,"","BRISCOE, KEVIN",07/01/13,09/30/13,LOGISTICS & DIST SPEC (A),"10,980.00",FISCAL YEAR 2013,"","","","BRISCOE, KEVIN"
,CHIEF ADMIN OFCR OF THE HOUSE,2013Q3,PERSONNEL COMPENSATION,"","BRITT,SHANNON W",07/01/13,09/30/13,SR HUMAN RESOURCES GENERALIST,"17,806.67",FISCAL YEAR 2013,"","","","BRITT,SHANNON W"
,CHIEF ADMIN OFCR OF THE HOUSE,2013Q3,PERSONNEL COMPENSATION,"","BROBBEY-MENSAH, KWAME",07/01/13,09/30/13,SR INFO SYST. SECURITY ANALYST,"28,454.01",FISCAL YEAR 2013,"","","","BROBBEY-MENSAH, KWAME"
,CHIEF ADMIN OFCR OF THE HOUSE,2013Q3,PERSONNEL COMPENSATION,"","BROWN SR, DEMETRICE T",07/01/13,09/30/13,SUPERVISOR,"25,912.74",FISCAL YEAR 2013,"","","","BROWN SR, DEMETRICE T"
,CHIEF ADMIN OFCR OF THE HOUSE,2013Q3,PERSONNEL COMPENSATION,"","BROWN, ANNETTE G",07/01/13,09/30/13,SR SOFTWARE ENGINEER,"26,384.49",FISCAL YEAR 2013,"","","","BROWN, ANNETTE G"
,CHIEF ADMIN OFCR OF THE HOUSE,2013Q3,PERSONNEL COMPENSATION,"","BROWN, KEITH S",07/01/13,09/30/13,REC/WAREHOUSE SPEC (A),"13,798.50",FISCAL YEAR 2013,"","","","BROWN, KEITH S"
,CHIEF ADMIN OFCR OF THE HOUSE,2013Q3,PERSONNEL COMPENSATION,"","BROWN, PAMELA L",07/01/13,09/30/13,CUSTOMER SOLUTIONS REP,"18,123.51",FISCAL YEAR 2013,"","","","BROWN, PAMELA L"
,CHIEF ADMIN OFCR OF THE HOUSE,2013Q3,PERSONNEL COMPENSATION,"","BROWN,DAVID D",07/01/13,09/30/13,FINANCIAL COUNSELOR,"15,789.00",FISCAL YEAR 2013,"","","","BROWN,DAVID D"
,CHIEF ADMIN OFCR OF THE HOUSE,2013Q3,PERSONNEL COMPENSATION,"","BROWN,JASON",07/01/13,09/30/13,BROADCAST PRODUCTION TECHNICIA,"18,719.25",FISCAL YEAR 2013,"","","","BROWN,JASON"
,CHIEF ADMIN OFCR OF THE HOUSE,2013Q3,PERSONNEL COMPENSATION,"","BROWN,JASON",07/01/13,07/31/13,BROADCAST PRODUCTION TECHNICIA (OVERTIME),485.98,FISCAL YEAR 2013,"","","","BROWN,JASON"
,CHIEF ADMIN OFCR OF THE HOUSE,2013Q3,PERSONNEL COMPENSATION,"","BROWN,KIMBERLY K",07/01/13,09/30/13,RESOURCE ANALYST,"16,569.24",FISCAL YEAR 2013,"","","","BROWN,KIMBERLY K"
,CHIEF ADMIN OFCR OF THE HOUSE,2013Q3,PERSONNEL COMPENSATION,"","BROWN,LAWRENCE",07/01/13,09/30/13,BROADCAST ENGINEER/PROD SPEC,"21,663.00",FISCAL YEAR 2013,"","","","BROWN,LAWRENCE"
,CHIEF ADMIN OFCR OF THE HOUSE,2013Q3,PERSONNEL COMPENSATION,"","BROWN,LAWRENCE",06/01/13,06/30/13,BROADCAST ENGINEER/PROD SPEC. (OVERTIME),124.98,FISCAL YEAR 2013,"","","","BROWN,LAWRENCE"
,CHIEF ADMIN OFCR OF THE HOUSE,2013Q3,PERSONNEL COMPENSATION,"","BRUMMELL,JENELLE L",07/01/13,09/30/13,PARALEGAL,"16,894.33",FISCAL YEAR 2013,"","","","BRUMMELL,JENELLE L"
,CHIEF ADMIN OFCR OF THE HOUSE,2013Q3,PERSONNEL COMPENSATION,"","BUCKLER, RICKY L",07/01/13,09/30/13,PURCHASING AGENT,"18,719.25",FISCAL YEAR 2013,"","","","BUCKLER, RICKY L"
,CHIEF ADMIN OFCR OF THE HOUSE,2013Q3,PERSONNEL COMPENSATION,"","BUCKLER, TROY D",07/01/13,09/30/13,PURCHASING AGENT,"16,167.00",FISCAL YEAR 2013,"","","","BUCKLER, TROY D"
,CHIEF ADMIN OFCR OF THE HOUSE,2013Q3,PERSONNEL COMPENSATION,"","BUFORD, MARCIA L",07/01/13,09/30/13,COMPUTER FAC OP SUPERVISOR,"26,384.49",FISCAL YEAR 2013,"","","","BUFORD, MARCIA L"
,CHIEF ADMIN OFCR OF THE HOUSE,2013Q3,PERSONNEL COMPENSATION,"","BURCH, KENNETH J",07/01/13,09/30/13,BUSINESS PROC APPLIC SPEC,"29,470.74",FISCAL YEAR 2013,"","","","BURCH, KENNETH J"
,CHIEF ADMIN OFCR OF THE HOUSE,2013Q3,PERSONNEL COMPENSATION,"","BURNHAM, ELIZABETH",07/01/13,09/01/13,PAYROLL & BENEFITS MANAGER,"18,251.55",FISCAL YEAR 2013,"","","","BURNHAM, ELIZABETH"
,CHIEF ADMIN OFCR OF THE HOUSE,2013Q3,PERSONNEL COMPENSATION,"","BURNHAM, ELIZABETH",09/01/13,09/01/13,PAYROLL & BENEFITS MANAGER (OTHER COMPENSATION),"3,945.77",FISCAL YEAR 2013,"","","","BURNHAM, ELIZABETH"
,CHIEF ADMIN OFCR OF THE HOUSE,2013Q3,PERSONNEL COMPENSATION,"","BURNHAM, ELIZABETH",09/01/13,09/01/13,PAYROLL & BENEFITS MANAGER (OTHER COMPENSATION),"25,000.00",FISCAL YEAR 2013,"","","","BURNHAM, ELIZABETH"
,CHIEF ADMIN OFCR OF THE HOUSE,2013Q3,PERSONNEL COMPENSATION,"","BUTLER, CLARENCE G",07/01/13,09/30/13,JOURNEYMAN FURNITURE SPEC,"15,155.76",FISCAL YEAR 2013,"","","","BUTLER, CLARENCE G"
,CHIEF ADMIN OFCR OF THE HOUSE,2013Q3,PERSONNEL COMPENSATION,"","BUTLER, JAMES F",07/01/13,09/30/13,PAYROLL & BENEFITS MANAGER,"25,491.51",FISCAL YEAR 2013,"","","","BUTLER, JAMES F"
,CHIEF ADMIN OFCR OF THE HOUSE,2013Q3,PERSONNEL COMPENSATION,"","CAIN, MOLLY J",07/01/13,09/30/13,5TH ASST SUPERINTENDENT,"15,155.76",FISCAL YEAR 2013,"","","","CAIN, MOLLY J"
,CHIEF ADMIN OFCR OF THE HOUSE,2013Q3,PERSONNEL COMPENSATION,"","CALLAWAY, ROBERT M",07/01/13,09/30/13,SR BROADCAST ENG./PROD SPEC,"23,704.50",FISCAL YEAR 2013,"","","","CALLAWAY, ROBERT M"
,CHIEF ADMIN OFCR OF THE HOUSE,2013Q3,PERSONNEL COMPENSATION,"","CANNON, DREW",07/01/13,09/30/13,4TH ASST SUPERINTENDENT,"17,474.76",FISCAL YEAR 2013,"","","","CANNON, DREW"
,CHIEF ADMIN OFCR OF THE HOUSE,2013Q3,PERSONNEL COMPENSATION,"","CANNON,SUSANNAH",07/01/13,09/30/13,CUSTOMER SOLUTIONS REP,"13,460.01",FISCAL YEAR 2013,"","","","CANNON,SUSANNAH"
,CHIEF ADMIN OFCR OF THE HOUSE,2013Q3,PERSONNEL COMPENSATION,"","CARCAMO, ALICIA L",07/01/13,09/30/13,ACCOUNTING TECHNICIAN,"18,903.24",FISCAL YEAR 2013,"","","","CARCAMO, ALICIA L"
,CHIEF ADMIN OFCR OF THE HOUSE,2013Q3,PERSONNEL COMPENSATION,"","CARLSON,STACY",07/01/13,09/30/13,DEPUTY CAO,"42,674.01",FISCAL YEAR 2013,"","","","CARLSON,STACY"
,CHIEF ADMIN OFCR OF THE HOUSE,2013Q3,PERSONNEL COMPENSATION,"","CARNNIA,CASEY",07/01/13,09/30/13,INTERNET SYSTEMS SPECIALIST,"19,110.75",FISCAL YEAR 2013,"","","","CARNNIA,CASEY"
,CHIEF ADMIN OFCR OF THE HOUSE,2013Q3,PERSONNEL COMPENSATION,"","CARR, JOSH D",07/01/13,09/30/13,SENIOR SYSTEMS ENGINEER,"24,595.50",FISCAL YEAR 2013,"","","","CARR, JOSH D"
,CHIEF ADMIN OFCR OF THE HOUSE,2013Q3,PERSONNEL COMPENSATION,"","CARRICO, RONALD",07/01/13,09/30/13,SR BUSINESS PROCESS APPL SPEC,"35,980.01",FISCAL YEAR 2013,"","","","CARRICO, RONALD"
,CHIEF ADMIN OFCR OF THE HOUSE,2013Q3,PERSONNEL COMPENSATION,"","CARSON,LAWRENCE T",07/01/13,09/30/13,SALES SPECIALIST,"9,801.00",FISCAL YEAR 2013,"","","","CARSON,LAWRENCE T"
,CHIEF ADMIN OFCR OF THE HOUSE,2013Q3,PERSONNEL COMPENSATION,"","CARSON,LAWRENCE T",08/01/13,08/31/13,SALES SPECIALIST (OVERTIME),47.12,FISCAL YEAR 2013,"","","","CARSON,LAWRENCE T"
,CHIEF ADMIN OFCR OF THE HOUSE,2013Q3,PERSONNEL COMPENSATION,"","CARTER JR, JOHN L",07/01/13,09/30/13,"MANAGER, FINISHING","24,777.24",FISCAL YEAR 2013,"","","","CARTER JR, JOHN L"
,CHIEF ADMIN OFCR OF THE HOUSE,2013Q3,PERSONNEL COMPENSATION,"","CARTER,DELISA D",07/01/13,09/30/13,SR. SOFTWARE SPECIALIST,"34,547.25",FISCAL YEAR 2013,"","","","CARTER,DELISA D"
,CHIEF ADMIN OFCR OF THE HOUSE,2013Q3,PERSONNEL COMPENSATION,"","CAULK, ANDREW T",07/01/13,09/30/13,SUPERVISOR,"24,001.84",FISCAL YEAR 2013,"","","","CAULK, ANDREW T"
,CHIEF ADMIN OFCR OF THE HOUSE,2013Q3,PERSONNEL COMPENSATION,"","CHABOT, ELLIOT C",07/01/13,09/30/13,SR SYSTEMS ANALYST,"32,010.99",FISCAL YEAR 2013,"","","","CHABOT, ELLIOT C"
,CHIEF ADMIN OFCR OF THE HOUSE,2013Q3,PERSONNEL COMPENSATION,"","CHAMBERS, KEVIN N",07/01/13,09/30/13,SR CUSTOMER SOLUTIONS REP,"19,894.74",FISCAL YEAR 2013,"","","","CHAMBERS, KEVIN N"
,CHIEF ADMIN OFCR OF THE HOUSE,2013Q3,PERSONNEL COMPENSATION,"","CHAMBERS,KEVINA D",07/01/13,09/30/13,ACCOUNTING TECHNICIAN,"12,115.50",FISCAL YEAR 2013,"","","","CHAMBERS,KEVINA D"
,CHIEF ADMIN OFCR OF THE HOUSE,2013Q3,PERSONNEL COMPENSATION,"","CHANG, SU-HWA",07/01/13,09/30/13,SENIOR SYSTEMS ENGINEER,"29,978.76",FISCAL YEAR 2013,"","","","CHANG, SU-HWA"
,CHIEF ADMIN OFCR OF THE HOUSE,2013Q3,PERSONNEL COMPENSATION,"","CHEN, SUSAN",07/01/13,09/30/13,FINANCIAL COUNSELOR,"15,789.00",FISCAL YEAR 2013,"","","","CHEN, SUSAN"
,CHIEF ADMIN OFCR OF THE HOUSE,2013Q3,PERSONNEL COMPENSATION,"","CHILDRESS, J T",07/01/13,08/31/13,JOURNEYMAN FURNITURE SPEC,"13,120.34",FISCAL YEAR 2013,"","","","CHILDRESS, J T"
,CHIEF ADMIN OFCR OF THE HOUSE,2013Q3,PERSONNEL COMPENSATION,"","CHILDRESS, J T",08/01/13,08/31/13,JOURNEYMAN FURNITURE SPEC. (OTHER COMPENSATION),"6,560.17",FISCAL YEAR 2013,"","","","CHILDRESS, J T"
,CHIEF ADMIN OFCR OF THE HOUSE,2013Q3,PERSONNEL COMPENSATION,"","CHILDRESS, J T",09/01/13,09/01/13,JOURNEYMAN FURNITURE SPEC. (OTHER COMPENSATION),"25,000.00",FISCAL YEAR 2013,"","","","CHILDRESS, J T"
,CHIEF ADMIN OFCR OF THE HOUSE,2013Q3,PERSONNEL COMPENSATION,"","CICALE, MICHAEL P",07/01/13,09/30/13,SR CUSTOMER SOLUTIONS REP,"18,903.24",FISCAL YEAR 2013,"","","","CICALE, MICHAEL P"
,CHIEF ADMIN OFCR OF THE HOUSE,2013Q3,PERSONNEL COMPENSATION,"","CLAGGETT, TIMOTHY A",07/01/13,09/30/13,JOURNEYMAN TEXTILE SPEC,"18,903.24",FISCAL YEAR 2013,"","","","CLAGGETT, TIMOTHY A"
,CHIEF ADMIN OFCR OF THE HOUSE,2013Q3,PERSONNEL COMPENSATION,"","CLARK, MARION",07/01/13,09/30/13,SR TELECOMMUNICATIONS ADMIN,"17,735.76",FISCAL YEAR 2013,"","","","CLARK, MARION"
,CHIEF ADMIN OFCR OF THE HOUSE,2013Q3,PERSONNEL COMPENSATION,"","CLARKE, JOHN P",07/01/13,09/30/13,SUPERVISOR,"21,364.16",FISCAL YEAR 2013,"","","","CLARKE, JOHN P"
,CHIEF ADMIN OFCR OF THE HOUSE,2013Q3,PERSONNEL COMPENSATION,"","CLOCKER, JOHN C",07/01/13,08/11/13,DIRECTOR WEB SYSTEMS,"18,128.49",FISCAL YEAR 2013,"","","","CLOCKER, JOHN C"
,CHIEF ADMIN OFCR OF THE HOUSE,2013Q3,PERSONNEL COMPENSATION,"","COAKLEY,KRISTEN J",07/01/13,09/30/13,SR TELECOMMUNICATIONS ADMIN,"16,569.24",FISCAL YEAR 2013,"","","","COAKLEY,KRISTEN J"
,CHIEF ADMIN OFCR OF THE HOUSE,2013Q3,PERSONNEL COMPENSATION,"","COBB, FAYE C",07/01/13,09/30/13,"DIR, BUDGET, POLICY & PLANNING","37,384.26",FISCAL YEAR 2013,"","","","COBB, FAYE C"
,CHIEF ADMIN OFCR OF THE HOUSE,2013Q3,PERSONNEL COMPENSATION,"","COLBERT, RAY C",07/01/13,09/30/13,SR BROADCAST ENG/PROD SPECLST,"22,809.00",FISCAL YEAR 2013,"","","","COLBERT, RAY C"
,CHIEF ADMIN OFCR OF THE HOUSE,2013Q3,PERSONNEL COMPENSATION,"","COLBERT, RAY C",07/01/13,08/31/13,SR BROADCAST ENG/PROD SPECLST (OVERTIME),263.17,FISCAL YEAR 2013,"","","","COLBERT, RAY C"
,CHIEF ADMIN OFCR OF THE HOUSE,2013Q3,PERSONNEL COMPENSATION,"","COLLINS, JOHN B",07/01/13,09/30/13,BROADCAST PRODUCTION TECHNICIA,"22,998.51",FISCAL YEAR 2013,"","","","COLLINS, JOHN B"
,CHIEF ADMIN OFCR OF THE HOUSE,2013Q3,PERSONNEL COMPENSATION,"","COLLINS,JOEL",07/01/13,09/30/13,SR INTERNET SYSTEMS SPECIALIST,"29,298.99",FISCAL YEAR 2013,"","","","COLLINS,JOEL"
,CHIEF ADMIN OFCR OF THE HOUSE,2013Q3,PERSONNEL COMPENSATION,"","CONNOLLY,ERIC",07/01/13,09/30/13,PHOTOGRAPHER,"14,481.75",FISCAL YEAR 2013,"","","","CONNOLLY,ERIC"
,CHIEF ADMIN OFCR OF THE HOUSE,2013Q3,PERSONNEL COMPENSATION,"","CONNOLLY,ERIC",07/01/13,07/31/13,PHOTOGRAPHER (OVERTIME),637.05,FISCAL YEAR 2013,"","","","CONNOLLY,ERIC"
,CHIEF ADMIN OFCR OF THE HOUSE,2013Q3,PERSONNEL COMPENSATION,"","COOK, ERIC H",07/01/13,09/30/13,NETWORK TECHNICIAN,"19,894.74",FISCAL YEAR 2013,"","","","COOK, ERIC H"
,CHIEF ADMIN OFCR OF THE HOUSE,2013Q3,PERSONNEL COMPENSATION,"","COOPER, RICHARD S",07/01/13,09/30/13,STAFF ACCOUNTANT (A),"25,044.51",FISCAL YEAR 2013,"","","","COOPER, RICHARD S"
,CHIEF ADMIN OFCR OF THE HOUSE,2013Q3,PERSONNEL COMPENSATION,"","CORNEJO, LUIS E",07/01/13,09/30/13,SENIOR SYSTEMS ENGINEER,"25,491.51",FISCAL YEAR 2013,"","","","CORNEJO, LUIS E"
,CHIEF ADMIN OFCR OF THE HOUSE,2013Q3,PERSONNEL COMPENSATION,"","COX, BRIDGET A",07/01/13,09/30/13,SENIOR SYSTEMS ANALYST,"29,470.74",FISCAL YEAR 2013,"","","","COX, BRIDGET A"
,CHIEF ADMIN OFCR OF THE HOUSE,2013Q3,PERSONNEL COMPENSATION,"","COYNE III, THOMAS E",07/01/13,09/30/13,ASSISTANT CAO,"42,102.75",FISCAL YEAR 2013,"","","","COYNE III, THOMAS E"
,CHIEF ADMIN OFCR OF THE HOUSE,2013Q3,PERSONNEL COMPENSATION,"","CRUDUP III, WILLIAM D",07/01/13,09/30/13,LOGISTICS & DIST SPEC (A),"12,325.26",FISCAL YEAR 2013,"","","","CRUDUP III, WILLIAM D"
,CHIEF ADMIN OFCR OF THE HOUSE,2013Q3,PERSONNEL COMPENSATION,"","CUFF,LOREN D",07/01/13,09/30/13,INTERNET SYSTEMS SPECIALIST,"19,502.49",FISCAL YEAR 2013,"","","","CUFF,LOREN D"
,CHIEF ADMIN OFCR OF THE HOUSE,2013Q3,PERSONNEL COMPENSATION,"","CUFFEY, LAWRENCE",07/01/13,09/30/13,SR RECVNG AND WAREHOUSING SPEC,"17,848.50",FISCAL YEAR 2013,"","","","CUFFEY, LAWRENCE"
,CHIEF ADMIN OFCR OF THE HOUSE,2013Q3,PERSONNEL COMPENSATION,"","CUPRILL, CARLOS",07/01/13,09/30/13,SR TECHNICAL SUPPORT REP,"22,551.00",FISCAL YEAR 2013,"","","","CUPRILL, CARLOS"
,CHIEF ADMIN OFCR OF THE HOUSE,2013Q3,PERSONNEL COMPENSATION,"","CUSATI, ALESSANDRO",07/01/13,09/01/13,CHIEF ENGINEER,"25,493.43",FISCAL YEAR 2013,"","","","CUSATI, ALESSANDRO"
,CHIEF ADMIN OFCR OF THE HOUSE,2013Q3,PERSONNEL COMPENSATION,"","CUSATI, ALESSANDRO",09/01/13,09/01/13,CHIEF ENGINEER (OTHER COMPENSATION),"12,537.75",FISCAL YEAR 2013,"","","","CUSATI, ALESSANDRO"
,CHIEF ADMIN OFCR OF THE HOUSE,2013Q3,PERSONNEL COMPENSATION,"","CUSATI, ALESSANDRO",09/01/13,09/01/13,CHIEF ENGINEER (OTHER COMPENSATION),"25,000.00",FISCAL YEAR 2013,"","","","CUSATI, ALESSANDRO"
,CHIEF ADMIN OFCR OF THE HOUSE,2013Q3,PERSONNEL COMPENSATION,"","CUTLER JR, BENJAMIN S",07/01/13,09/30/13,PAYROLL & BENEFITS ASSISTANT,"15,267.51",FISCAL YEAR 2013,"","","","CUTLER JR, BENJAMIN S"
,CHIEF ADMIN OFCR OF THE HOUSE,2013Q3,PERSONNEL COMPENSATION,"","CUTLER JR, BENJAMIN S",07/01/13,07/31/13,PAYROLL & BENEFITS ASSISTANT (OVERTIME),21.86,FISCAL YEAR 2013,"","","","CUTLER JR, BENJAMIN S"
,CHIEF ADMIN OFCR OF THE HOUSE,2013Q3,PERSONNEL COMPENSATION,"","D'AMICO, THOMAS A",07/01/13,07/31/13,LOCKSMITH,"6,301.08",FISCAL YEAR 2013,"","","","D'AMICO, THOMAS A"
,CHIEF ADMIN OFCR OF THE HOUSE,2013Q3,PERSONNEL COMPENSATION,"","D'AMICO, THOMAS A",07/01/13,07/31/13,LOCKSMITH (OTHER COMPENSATION),"6,301.08",FISCAL YEAR 2013,"","","","D'AMICO, THOMAS A"
,CHIEF ADMIN OFCR OF THE HOUSE,2013Q3,PERSONNEL COMPENSATION,"","D'AMICO, THOMAS A",08/01/13,08/01/13,LOCKSMITH (OTHER COMPENSATION),"25,000.00",FISCAL YEAR 2013,"","","","D'AMICO, THOMAS A"
,CHIEF ADMIN OFCR OF THE HOUSE,2013Q3,PERSONNEL COMPENSATION,"","DAHL,RYAN S",07/01/13,09/30/13,MEDIA LOGISTICS COORDINATOR,"14,819.25",FISCAL YEAR 2013,"","","","DAHL,RYAN S"
,CHIEF ADMIN OFCR OF THE HOUSE,2013Q3,PERSONNEL COMPENSATION,"","DAHL,RYAN S",09/01/13,09/30/13,MEDIA LOGISTICS COORDINATOR (OTHER COMPENSATION),"2,000.00",FISCAL YEAR 2013,"","","","DAHL,RYAN S"
,CHIEF ADMIN OFCR OF THE HOUSE,2013Q3,PERSONNEL COMPENSATION,"","DAHLSTROM, DARREN",07/01/13,09/30/13,JOURNEYMAN FURNITURE SPEC,"19,680.51",FISCAL YEAR 2013,"","","","DAHLSTROM, DARREN"
,CHIEF ADMIN OFCR OF THE HOUSE,2013Q3,PERSONNEL COMPENSATION,"","DALTON, MARK V",07/01/13,08/31/13,SENIOR SYSTEMS ENGINEER,"19,308.50",FISCAL YEAR 2013,"","","","DALTON, MARK V"
,CHIEF ADMIN OFCR OF THE HOUSE,2013Q3,PERSONNEL COMPENSATION,"","DALTON, MARK V",08/01/13,08/31/13,SENIOR SYSTEMS ENGINEER (OTHER COMPENSATION),"4,344.41",FISCAL YEAR 2013,"","","","DALTON, MARK V"
,CHIEF ADMIN OFCR OF THE HOUSE,2013Q3,PERSONNEL COMPENSATION,"","DALTON, MARK V",09/01/13,09/01/13,SENIOR SYSTEMS ENGINEER (OTHER COMPENSATION),"25,000.00",FISCAL YEAR 2013,"","","","DALTON, MARK V"
,CHIEF ADMIN OFCR OF THE HOUSE,2013Q3,PERSONNEL COMPENSATION,"","DAS, SATYENDRA K",07/01/13,09/30/13,BUSINESS PROC APPLIC SPEC,"29,978.76",FISCAL YEAR 2013,"","","","DAS, SATYENDRA K"
,CHIEF ADMIN OFCR OF THE HOUSE,2013Q3,PERSONNEL COMPENSATION,"","DAVENPORT,KAREN V",07/01/13,09/30/13,FINANCIAL ANALYST,"21,663.00",FISCAL YEAR 2013,"","","","DAVENPORT,KAREN V"
,CHIEF ADMIN OFCR OF THE HOUSE,2013Q3,PERSONNEL COMPENSATION,"","DAVIS, JOHN J",07/01/13,09/30/13,BROADCAST PRODUCTION TECHNICIA,"22,551.00",FISCAL YEAR 2013,"","","","DAVIS, JOHN J"
,CHIEF ADMIN OFCR OF THE HOUSE,2013Q3,PERSONNEL COMPENSATION,"","DAVIS, STACHIA G",07/01/13,09/30/13,DIR MOD FURN & TRANSITION,"27,267.51",FISCAL YEAR 2013,"","","","DAVIS, STACHIA G"
,CHIEF ADMIN OFCR OF THE HOUSE,2013Q3,PERSONNEL COMPENSATION,"","DAVIS,SCOTT K",07/01/13,09/30/13,PAYROLL & BENEFITS GENERALIST,"15,648.73",FISCAL YEAR 2013,"","","","DAVIS,SCOTT K"
,CHIEF ADMIN OFCR OF THE HOUSE,2013Q3,PERSONNEL COMPENSATION,"","DAVIS,SCOTT K",07/01/13,07/31/13,PAYROLL & BENEFITS GENERALIST (OVERTIME),"2,015.38",FISCAL YEAR 2013,"","","","DAVIS,SCOTT K"
,CHIEF ADMIN OFCR OF THE HOUSE,2013Q3,PERSONNEL COMPENSATION,"","DAWKINS, JOANN",07/01/13,09/30/13,SR TELECOMM ADMIN,"16,167.00",FISCAL YEAR 2013,"","","","DAWKINS, JOANN"
,CHIEF ADMIN OFCR OF THE HOUSE,2013Q3,PERSONNEL COMPENSATION,"","DEAN, JOSEPH M",07/01/13,09/30/13,JOURNEYMAN TEXTILE SPEC,"20,286.24",FISCAL YEAR 2013,"","","","DEAN, JOSEPH M"
,CHIEF ADMIN OFCR OF THE HOUSE,2013Q3,PERSONNEL COMPENSATION,"","DEAN, JOSEPH M",08/01/13,08/31/13,JOURNEYMAN TEXTILE SPEC (OVERTIME),234.07,FISCAL YEAR 2013,"","","","DEAN, JOSEPH M"
,CHIEF ADMIN OFCR OF THE HOUSE,2013Q3,PERSONNEL COMPENSATION,"","DEAVER,JAMES",07/01/13,09/30/13,SENIOR SYSTEMS ENGINEER,"31,512.51",FISCAL YEAR 2013,"","","","DEAVER,JAMES"
,CHIEF ADMIN OFCR OF THE HOUSE,2013Q3,PERSONNEL COMPENSATION,"","DELISLE,KALDON A",07/01/13,09/30/13,JOURNEYMAN FURNITURE SPEC,"13,584.42",FISCAL YEAR 2013,"","","","DELISLE,KALDON A"
,CHIEF ADMIN OFCR OF THE HOUSE,2013Q3,PERSONNEL COMPENSATION,"","DELUCA, ALAN",07/01/13,09/30/13,COMPUTER FACILITIES OP MGR (A),"35,160.75",FISCAL YEAR 2013,"","","","DELUCA, ALAN"
,CHIEF ADMIN OFCR OF THE HOUSE,2013Q3,PERSONNEL COMPENSATION,"","DENT,RICHARD H",07/01/13,09/30/13,JOURNEYMAN TEXTILE SPEC,"12,453.24",FISCAL YEAR 2013,"","","","DENT,RICHARD H"
,CHIEF ADMIN OFCR OF THE HOUSE,2013Q3,PERSONNEL COMPENSATION,"","DERRICK, SCOTT",07/01/13,09/30/13,GRAPHICS & DESKTOP PUBL SPEC,"22,551.00",FISCAL YEAR 2013,"","","","DERRICK, SCOTT"
,CHIEF ADMIN OFCR OF THE HOUSE,2013Q3,PERSONNEL COMPENSATION,"","DICKIE, JAMES",07/01/13,09/30/13,ENGINEERING OPS MANAGER,"30,405.24",FISCAL YEAR 2013,"","","","DICKIE, JAMES"
,CHIEF ADMIN OFCR OF THE HOUSE,2013Q3,PERSONNEL COMPENSATION,"","DIEFFENDERFER, GARY L",07/01/13,09/30/13,SR. APPLICATION DBA SPECIALIST,"31,512.51",FISCAL YEAR 2013,"","","","DIEFFENDERFER, GARY L"
,CHIEF ADMIN OFCR OF THE HOUSE,2013Q3,PERSONNEL COMPENSATION,"","DOBBINS, MARK",07/01/13,09/30/13,"MANAGER, PURCHASING","22,998.51",FISCAL YEAR 2013,"","","","DOBBINS, MARK"
,CHIEF ADMIN OFCR OF THE HOUSE,2013Q3,PERSONNEL COMPENSATION,"","DOODY,ERICA",07/01/13,09/30/13,ADMINISTRATIVE SPECIALIST,"11,146.50",FISCAL YEAR 2013,"","","","DOODY,ERICA"
,CHIEF ADMIN OFCR OF THE HOUSE,2013Q3,PERSONNEL COMPENSATION,"","DOOLEY,GENEVA",07/01/13,09/30/13,SENIOR SOFTWARE SPECIALIST,"32,067.24",FISCAL YEAR 2013,"","","","DOOLEY,GENEVA"
,CHIEF ADMIN OFCR OF THE HOUSE,2013Q3,PERSONNEL COMPENSATION,"","DOZIER, BRIAN A",07/01/13,09/30/13,INVENTORY ADMINISTRATOR,"15,155.76",FISCAL YEAR 2013,"","","","DOZIER, BRIAN A"
,CHIEF ADMIN OFCR OF THE HOUSE,2013Q3,PERSONNEL COMPENSATION,"","DUENAS, JOSEPH E",07/01/13,09/30/13,TECHNICAL SUPPORT REP,"18,329.01",FISCAL YEAR 2013,"","","","DUENAS, JOSEPH E"
,CHIEF ADMIN OFCR OF THE HOUSE,2013Q3,PERSONNEL COMPENSATION,"","DUNKLIN, KELDA Y",07/01/13,09/30/13,SR TECHNICAL SUPPORT REP,"26,384.49",FISCAL YEAR 2013,"","","","DUNKLIN, KELDA Y"
,CHIEF ADMIN OFCR OF THE HOUSE,2013Q3,PERSONNEL COMPENSATION,"","DUPUIS,TIMOTHY D",05/01/13,05/31/13,ADA AIDE (OVERTIME),"1,389.29",FISCAL YEAR 2013,"","","","DUPUIS,TIMOTHY D"
,CHIEF ADMIN OFCR OF THE HOUSE,2013Q3,PERSONNEL COMPENSATION,"","DUPUIS,TIMOTHY D",05/01/13,05/31/13,ADA AIDE (OTHER COMPENSATION),"4,775.09",FISCAL YEAR 2013,"","","","DUPUIS,TIMOTHY D"
,CHIEF ADMIN OFCR OF THE HOUSE,2013Q3,PERSONNEL COMPENSATION,"","DURAN, ROLANDO",07/01/13,09/30/13,ELECTRONICS TECHNICIAN (A),"22,107.00",FISCAL YEAR 2013,"","","","DURAN, ROLANDO"
,CHIEF ADMIN OFCR OF THE HOUSE,2013Q3,PERSONNEL COMPENSATION,"","DURAN, ROLANDO",06/01/13,07/31/13,ELECTRONICS TECHNICIAN (A) (OVERTIME),690.83,FISCAL YEAR 2013,"","","","DURAN, ROLANDO"
,CHIEF ADMIN OFCR OF THE HOUSE,2013Q3,PERSONNEL COMPENSATION,"","DURHAM, SANDRA F",07/01/13,09/01/13,NETWORK OPER BRANCH MGR,"23,415.36",FISCAL YEAR 2013,"","","","DURHAM, SANDRA F"
,CHIEF ADMIN OFCR OF THE HOUSE,2013Q3,PERSONNEL COMPENSATION,"","DURHAM, SANDRA F",09/01/13,09/01/13,NETWORK OPER BRANCH MGR (OTHER COMPENSATION),"8,828.74",FISCAL YEAR 2013,"","","","DURHAM, SANDRA F"
,CHIEF ADMIN OFCR OF THE HOUSE,2013Q3,PERSONNEL COMPENSATION,"","DURHAM, SANDRA F",09/01/13,09/01/13,NETWORK OPER BRANCH MGR (OTHER COMPENSATION),"25,000.00",FISCAL YEAR 2013,"","","","DURHAM, SANDRA F"
,CHIEF ADMIN OFCR OF THE HOUSE,2013Q3,PERSONNEL COMPENSATION,"","EGERSON, TROY H",07/01/13,09/30/13,JOURNEYMAN TEXTILE SPEC,"18,123.51",FISCAL YEAR 2013,"","","","EGERSON, TROY H"
,CHIEF ADMIN OFCR OF THE HOUSE,2013Q3,PERSONNEL COMPENSATION,"","ELERY, JR, E J",07/01/13,09/01/13,SENIOR CONTRACTS SPECIALIST,"23,611.58",FISCAL YEAR 2013,"","","","ELERY, JR, E J"
,CHIEF ADMIN OFCR OF THE HOUSE,2013Q3,PERSONNEL COMPENSATION,"","ELERY, JR, E J",09/01/13,09/01/13,SENIOR CONTRACTS SPECIALIST (OTHER COMPENSATION),"11,612.25",FISCAL YEAR 2013,"","","","ELERY, JR, E J"
,CHIEF ADMIN OFCR OF THE HOUSE,2013Q3,PERSONNEL COMPENSATION,"","ELERY, JR, E J",09/01/13,09/01/13,SENIOR CONTRACTS SPECIALIST (OTHER COMPENSATION),"25,000.00",FISCAL YEAR 2013,"","","","ELERY, JR, E J"
,CHIEF ADMIN OFCR OF THE HOUSE,2013Q3,PERSONNEL COMPENSATION,"","ELIAS, ANDREW C",07/01/13,09/30/13,DEPUTY DIRECTOR,"29,470.74",FISCAL YEAR 2013,"","","","ELIAS, ANDREW C"
,CHIEF ADMIN OFCR OF THE HOUSE,2013Q3,PERSONNEL COMPENSATION,"","ELIAS, ANDREW C",09/01/13,09/30/13,DEPUTY DIRECTOR (OTHER COMPENSATION),"2,000.00",FISCAL YEAR 2013,"","","","ELIAS, ANDREW C"
,CHIEF ADMIN OFCR OF THE HOUSE,2013Q3,PERSONNEL COMPENSATION,"","ELLIN, JAMES B",07/01/13,09/30/13,SR NETWORK SYSTEMS ENGINEER,"28,746.75",FISCAL YEAR 2013,"","","","ELLIN, JAMES B"
,CHIEF ADMIN OFCR OF THE HOUSE,2013Q3,PERSONNEL COMPENSATION,"","ELLIOTT, RONALD",07/01/13,09/30/13,SR INFO SYST. SECURITY ANALYST,"25,044.51",FISCAL YEAR 2013,"","","","ELLIOTT, RONALD"
,CHIEF ADMIN OFCR OF THE HOUSE,2013Q3,PERSONNEL COMPENSATION,"","ELLIS-GREGG, SHARON",07/01/13,09/30/13,PAYROLL & BENEFITS ASSISTANT,"14,134.74",FISCAL YEAR 2013,"","","","ELLIS-GREGG, SHARON"
,CHIEF ADMIN OFCR OF THE HOUSE,2013Q3,PERSONNEL COMPENSATION,"","EMAMALI, NICOLE S",07/01/13,09/30/13,SR TECHNICAL SUPPORT REP,"27,098.01",FISCAL YEAR 2013,"","","","EMAMALI, NICOLE S"
,CHIEF ADMIN OFCR OF THE HOUSE,2013Q3,PERSONNEL COMPENSATION,"","ENGLISH, JOSEPH H",07/01/13,09/30/13,MOBILE COMM SPECIALIST (DATA),"25,044.51",FISCAL YEAR 2013,"","","","ENGLISH, JOSEPH H"
,CHIEF ADMIN OFCR OF THE HOUSE,2013Q3,PERSONNEL COMPENSATION,"","ERVING, JAMES H",07/01/13,09/30/13,COMMUNICATIONS SPECIALIST,"25,939.74",FISCAL YEAR 2013,"","","","ERVING, JAMES H"
,CHIEF ADMIN OFCR OF THE HOUSE,2013Q3,PERSONNEL COMPENSATION,"","EVANS JR, WILLIAM R",07/01/13,09/30/13,ELECTRONICS TECHNICIAN (A),"22,551.00",FISCAL YEAR 2013,"","","","EVANS JR, WILLIAM R"
,CHIEF ADMIN OFCR OF THE HOUSE,2013Q3,PERSONNEL COMPENSATION,"","EVANS JR, WILLIAM R",06/01/13,08/31/13,ELECTRONICS TECHNICIAN (A) (OVERTIME),943.23,FISCAL YEAR 2013,"","","","EVANS JR, WILLIAM R"
,CHIEF ADMIN OFCR OF THE HOUSE,2013Q3,PERSONNEL COMPENSATION,"","EWERS, GRETCHEN",07/01/13,09/30/13,MANAGER,"26,384.49",FISCAL YEAR 2013,"","","","EWERS, GRETCHEN"
,CHIEF ADMIN OFCR OF THE HOUSE,2013Q3,PERSONNEL COMPENSATION,"","EWING JR, JOHN C",07/01/13,09/30/13,RECEIVING/WAREHOUSE SPECIALIST,"10,684.50",FISCAL YEAR 2013,"","","","EWING JR, JOHN C"
,CHIEF ADMIN OFCR OF THE HOUSE,2013Q3,PERSONNEL COMPENSATION,"","FARLEY, JOANN I",07/01/13,09/30/13,FINANCIAL COUNSELOR,"17,735.76",FISCAL YEAR 2013,"","","","FARLEY, JOANN I"
,CHIEF ADMIN OFCR OF THE HOUSE,2013Q3,PERSONNEL COMPENSATION,"","FIELD, ESTANISLAO",07/01/13,08/31/13,INFO SYSTEMS SECURITY ANALYST,"8,904.71",FISCAL YEAR 2013,"","","","FIELD, ESTANISLAO"
,CHIEF ADMIN OFCR OF THE HOUSE,2013Q3,PERSONNEL COMPENSATION,"","FIELD, ESTANISLAO",08/01/13,08/31/13,INFO SYSTEMS SECURITY ANALYST (OTHER COMPENSATION),"7,339.43",FISCAL YEAR 2013,"","","","FIELD, ESTANISLAO"
,CHIEF ADMIN OFCR OF THE HOUSE,2013Q3,PERSONNEL COMPENSATION,"","FIELD, ESTANISLAO",08/01/13,08/31/13,INFO SYSTEMS SECURITY ANALYST (OTHER COMPENSATION),"25,000.00",FISCAL YEAR 2013,"","","","FIELD, ESTANISLAO"
,CHIEF ADMIN OFCR OF THE HOUSE,2013Q3,PERSONNEL COMPENSATION,"","FISHER, JEROME",07/01/13,09/30/13,SR TECH SOLUTIONS ENGINEER,"24,150.51",FISCAL YEAR 2013,"","","","FISHER, JEROME"
,CHIEF ADMIN OFCR OF THE HOUSE,2013Q3,PERSONNEL COMPENSATION,"","FONTNEAU, BRUCE",07/01/13,09/30/13,SYSTEMS ENGINEER,"22,809.00",FISCAL YEAR 2013,"","","","FONTNEAU, BRUCE"
,CHIEF ADMIN OFCR OF THE HOUSE,2013Q3,PERSONNEL COMPENSATION,"","FORD, DARIN J",07/01/13,09/30/13,SR TECHNICAL SUPPORT REP (A),"22,551.00",FISCAL YEAR 2013,"","","","FORD, DARIN J"
,CHIEF ADMIN OFCR OF THE HOUSE,2013Q3,PERSONNEL COMPENSATION,"","FORGIONE, JOHN A",07/01/13,09/30/13,SR CUSTOMER SOLUTIONS REP,"18,903.24",FISCAL YEAR 2013,"","","","FORGIONE, JOHN A"
,CHIEF ADMIN OFCR OF THE HOUSE,2013Q3,PERSONNEL COMPENSATION,"","FOSTER, CHARLES J",03/01/13,09/30/13,PAYROLL & BENEFITS ASSISTANT,"13,450.63",FISCAL YEAR 2013,"","","","FOSTER, CHARLES J"
,CHIEF ADMIN OFCR OF THE HOUSE,2013Q3,PERSONNEL COMPENSATION,"","FOUNTAIN,ANIKA",07/01/13,09/30/13,TECH SOLUTIONS TECHNICIAN,"17,735.76",FISCAL YEAR 2013,"","","","FOUNTAIN,ANIKA"
,CHIEF ADMIN OFCR OF THE HOUSE,2013Q3,PERSONNEL COMPENSATION,"","FRANK, DEBBIE",07/01/13,09/30/13,SR EA COUNSELOR,"28,176.51",FISCAL YEAR 2013,"","","","FRANK, DEBBIE"
,CHIEF ADMIN OFCR OF THE HOUSE,2013Q3,PERSONNEL COMPENSATION,"","FRAVEL,DON J",03/01/13,09/30/13,TECH SOLUTIONS TECHNICIAN,"9,483.75",FISCAL YEAR 2013,"","","","FRAVEL,DON J"
,CHIEF ADMIN OFCR OF THE HOUSE,2013Q3,PERSONNEL COMPENSATION,"","FRECH, JASON L",07/01/13,09/30/13,SR SYSTEMS ENGINEER,"25,403.76",FISCAL YEAR 2013,"","","","FRECH, JASON L"
,CHIEF ADMIN OFCR OF THE HOUSE,2013Q3,PERSONNEL COMPENSATION,"","FREEMAN, ANTOINETTE P",07/01/13,09/30/13,ADMINISTRATIVE SPECIALIST,"14,807.25",FISCAL YEAR 2013,"","","","FREEMAN, ANTOINETTE P"
,CHIEF ADMIN OFCR OF THE HOUSE,2013Q3,PERSONNEL COMPENSATION,"","FREENEY, MALCOLM",07/01/13,09/30/13,PROJECT MANAGER,"25,491.51",FISCAL YEAR 2013,"","","","FREENEY, MALCOLM"
,CHIEF ADMIN OFCR OF THE HOUSE,2013Q3,PERSONNEL COMPENSATION,"","FRENCH, CAROL",07/01/13,09/30/13,PAYROLL & BENEFITS GENERALIST,"18,123.51",FISCAL YEAR 2013,"","","","FRENCH, CAROL"
,CHIEF ADMIN OFCR OF THE HOUSE,2013Q3,PERSONNEL COMPENSATION,"","FRENCH, CHARLES",07/01/13,09/30/13,SENIOR NETWORK TECHNICIAN,"25,044.51",FISCAL YEAR 2013,"","","","FRENCH, CHARLES"
,CHIEF ADMIN OFCR OF THE HOUSE,2013Q3,PERSONNEL COMPENSATION,"","FRITZ,ERIC D",07/01/13,09/30/13,SENIOR SYSTEMS ENGINEER,"26,928.51",FISCAL YEAR 2013,"","","","FRITZ,ERIC D"
,CHIEF ADMIN OFCR OF THE HOUSE,2013Q3,PERSONNEL COMPENSATION,"","GAERTNER, LESLIE C",07/01/13,09/30/13,SR NETWORK COMM SPEC,"28,962.75",FISCAL YEAR 2013,"","","","GAERTNER, LESLIE C"
,CHIEF ADMIN OFCR OF THE HOUSE,2013Q3,PERSONNEL COMPENSATION,"","GAINES, JULIA W",07/01/13,09/30/13,SPECIAL ASSISTANT (A),"24,777.24",FISCAL YEAR 2013,"","","","GAINES, JULIA W"
,CHIEF ADMIN OFCR OF THE HOUSE,2013Q3,PERSONNEL COMPENSATION,"","GALLAGHER, RENEE",07/01/13,09/30/13,SR INFO SYST. SECURITY ANALYST,"25,044.51",FISCAL YEAR 2013,"","","","GALLAGHER, RENEE"
,CHIEF ADMIN OFCR OF THE HOUSE,2013Q3,PERSONNEL COMPENSATION,"","GALLEGOS, JERRY L",07/01/13,08/31/13,SUPERINTENDENT,"13,934.70",FISCAL YEAR 2013,"","","","GALLEGOS, JERRY L"
,CHIEF ADMIN OFCR OF THE HOUSE,2013Q3,PERSONNEL COMPENSATION,"","GALLEGOS, JERRY L",08/01/13,08/31/13,SUPERINTENDENT (OTHER COMPENSATION),"4,257.83",FISCAL YEAR 2013,"","","","GALLEGOS, JERRY L"
,CHIEF ADMIN OFCR OF THE HOUSE,2013Q3,PERSONNEL COMPENSATION,"","GALLEGOS, JERRY L",08/01/13,08/31/13,SUPERINTENDENT (OTHER COMPENSATION),"25,000.00",FISCAL YEAR 2013,"","","","GALLEGOS, JERRY L"
,CHIEF ADMIN OFCR OF THE HOUSE,2013Q3,PERSONNEL COMPENSATION,"","GALLO,MAXSON",07/01/13,08/31/13,EXECUTIVE ASSISTANT,"5,837.87",FISCAL YEAR 2013,"","","","GALLO,MAXSON"
,CHIEF ADMIN OFCR OF THE HOUSE,2013Q3,PERSONNEL COMPENSATION,"","GANGL,CHRISTOPHER J",09/09/13,09/30/13,SENIOR SYSTEMS ENGINEER,"5,684.80",FISCAL YEAR 2013,"","","","GANGL,CHRISTOPHER J"
,CHIEF ADMIN OFCR OF THE HOUSE,2013Q3,PERSONNEL COMPENSATION,"","GARAY, GERMAN",07/01/13,09/30/13,BROADCAST PRODUCTION TECHNICIA,"22,551.00",FISCAL YEAR 2013,"","","","GARAY, GERMAN"
,CHIEF ADMIN OFCR OF THE HOUSE,2013Q3,PERSONNEL COMPENSATION,"","GARAY, GERMAN",06/01/13,07/31/13,BROADCAST PRODUCTION TECHNICIA (OVERTIME),"2,916.41",FISCAL YEAR 2013,"","","","GARAY, GERMAN"
,CHIEF ADMIN OFCR OF THE HOUSE,2013Q3,PERSONNEL COMPENSATION,"","GASKINS, JAMES R",07/01/13,09/30/13,BRANCH MANAGER,"32,067.24",FISCAL YEAR 2013,"","","","GASKINS, JAMES R"
,CHIEF ADMIN OFCR OF THE HOUSE,2013Q3,PERSONNEL COMPENSATION,"","GATES, TRENA F",07/01/13,09/30/13,FINANCIAL COUNSELOR,"20,676.99",FISCAL YEAR 2013,"","","","GATES, TRENA F"
,CHIEF ADMIN OFCR OF THE HOUSE,2013Q3,PERSONNEL COMPENSATION,"","GATES,COREY M",07/01/13,09/30/13,JOURNEYMAN TEXTILE SPEC,"12,786.51",FISCAL YEAR 2013,"","","","GATES,COREY M"
,CHIEF ADMIN OFCR OF THE HOUSE,2013Q3,PERSONNEL COMPENSATION,"","GATES,COREY M",08/01/13,08/31/13,JOURNEYMAN TEXTILE SPEC (OVERTIME),147.53,FISCAL YEAR 2013,"","","","GATES,COREY M"
,CHIEF ADMIN OFCR OF THE HOUSE,2013Q3,PERSONNEL COMPENSATION,"","GATES,THOMAS D",07/01/13,09/30/13,SENIOR SYSTEMS ENGINEER,"23,704.50",FISCAL YEAR 2013,"","","","GATES,THOMAS D"
,CHIEF ADMIN OFCR OF THE HOUSE,2013Q3,PERSONNEL COMPENSATION,"","GEPERT,DARLA M",07/01/13,09/30/13,ADMINISTRATIVE SPECIALIST (A),"12,453.24",FISCAL YEAR 2013,"","","","GEPERT,DARLA M"
,CHIEF ADMIN OFCR OF THE HOUSE,2013Q3,PERSONNEL COMPENSATION,"","GERARDEN,PAUL J",07/01/13,09/30/13,CUSTOMER SOLUTIONS REP,"13,460.01",FISCAL YEAR 2013,"","","","GERARDEN,PAUL J"
,CHIEF ADMIN OFCR OF THE HOUSE,2013Q3,PERSONNEL COMPENSATION,"","GILLIS,DANIEL",07/01/13,09/30/13,ADA AIDE,"6,839.67",FISCAL YEAR 2013,"","","","GILLIS,DANIEL"
,CHIEF ADMIN OFCR OF THE HOUSE,2013Q3,PERSONNEL COMPENSATION,"","GILLIS,DANIEL",04/01/13,08/31/13,ADA AIDE (OVERTIME),"13,365.67",FISCAL YEAR 2013,"","","","GILLIS,DANIEL"
,CHIEF ADMIN OFCR OF THE HOUSE,2013Q3,PERSONNEL COMPENSATION,"","GIZARA, MICHAEL P",07/01/13,09/30/13,SR APPLICATION SECURITY ANALYS,"28,962.75",FISCAL YEAR 2013,"","","","GIZARA, MICHAEL P"
,CHIEF ADMIN OFCR OF THE HOUSE,2013Q3,PERSONNEL COMPENSATION,"","GOGGINS II, JAMES D",07/01/13,09/30/13,NETWORK COMM SPECIALIST (A),"22,551.00",FISCAL YEAR 2013,"","","","GOGGINS II, JAMES D"
,CHIEF ADMIN OFCR OF THE HOUSE,2013Q3,PERSONNEL COMPENSATION,"","GOLDSBOROUGH-LEE, ANGEL M",07/01/13,09/30/13,"DIR, TECH MGT & INTERNAL CTRLS","34,141.25",FISCAL YEAR 2013,"","","","GOLDSBOROUGH-LEE, ANGEL M"
,CHIEF ADMIN OFCR OF THE HOUSE,2013Q3,PERSONNEL COMPENSATION,"","GONZALEZ, ROSARIO D",07/01/13,09/30/13,SR CUSTOMER SOLUTIONS REP,"19,633.24",FISCAL YEAR 2013,"","","","GONZALEZ, ROSARIO D"
,CHIEF ADMIN OFCR OF THE HOUSE,2013Q3,PERSONNEL COMPENSATION,"","GOULD, MICHAEL",07/01/13,09/30/13,"MANAGER, REMEDY MANAGEMENT","29,298.99",FISCAL YEAR 2013,"","","","GOULD, MICHAEL"
,CHIEF ADMIN OFCR OF THE HOUSE,2013Q3,PERSONNEL COMPENSATION,"","GRAEUB, ANDREW C",07/01/13,09/30/13,"MANAGER, NETWORK SYST ENGINEER","33,938.25",FISCAL YEAR 2013,"","","","GRAEUB, ANDREW C"
,CHIEF ADMIN OFCR OF THE HOUSE,2013Q3,PERSONNEL COMPENSATION,"","GREEN, CAROLINE",07/01/13,09/30/13,TECHNICAL SUPPORT REP (A),"17,735.76",FISCAL YEAR 2013,"","","","GREEN, CAROLINE"
,CHIEF ADMIN OFCR OF THE HOUSE,2013Q3,PERSONNEL COMPENSATION,"","GREEN, MITCHELL",07/01/13,09/30/13,CONTRACT ADMINISTRATOR,"32,067.24",FISCAL YEAR 2013,"","","","GREEN, MITCHELL"
,CHIEF ADMIN OFCR OF THE HOUSE,2013Q3,PERSONNEL COMPENSATION,"","GREEN,ANDREW L",07/01/13,09/30/13,TECHNICAL SUPPORT REP,"16,698.58",FISCAL YEAR 2013,"","","","GREEN,ANDREW L"
,CHIEF ADMIN OFCR OF THE HOUSE,2013Q3,PERSONNEL COMPENSATION,"","GREENE, CHANTEL T",07/01/13,09/30/13,MGR BUS SYS AND INTEGRATION,"35,160.75",FISCAL YEAR 2013,"","","","GREENE, CHANTEL T"
,CHIEF ADMIN OFCR OF THE HOUSE,2013Q3,PERSONNEL COMPENSATION,"","GRIGGS,KYLE R",07/01/13,09/30/13,CONTRACTS SUPPORT ADMIN,"14,148.00",FISCAL YEAR 2013,"","","","GRIGGS,KYLE R"
,CHIEF ADMIN OFCR OF THE HOUSE,2013Q3,PERSONNEL COMPENSATION,"","GRISWOLD,RAYMOND",07/01/13,09/30/13,"DIRECTOR, ACQ & CONTRACT MGMT","32,917.41",FISCAL YEAR 2013,"","","","GRISWOLD,RAYMOND"
,CHIEF ADMIN OFCR OF THE HOUSE,2013Q3,PERSONNEL COMPENSATION,"","GRONSKI,ROBERT S",07/01/13,09/30/13,SR BUSINESS PROCESS APPL SPEC,"29,853.99",FISCAL YEAR 2013,"","","","GRONSKI,ROBERT S"
,CHIEF ADMIN OFCR OF THE HOUSE,2013Q3,PERSONNEL COMPENSATION,"","GUARNERO,DAVID P",07/01/13,09/30/13,PAYROLL & BENEFITS GENERALIST,"15,401.76",FISCAL YEAR 2013,"","","","GUARNERO,DAVID P"
,CHIEF ADMIN OFCR OF THE HOUSE,2013Q3,PERSONNEL COMPENSATION,"","GUARNERO,DAVID P",08/01/13,08/31/13,PAYROLL & BENEFITS GENERALIST (OVERTIME),37.02,FISCAL YEAR 2013,"","","","GUARNERO,DAVID P"
,CHIEF ADMIN OFCR OF THE HOUSE,2013Q3,PERSONNEL COMPENSATION,"","GUDURU,PRATAP K",07/01/13,09/30/13,SENIOR SYSTEMS ENGINEER,"30,960.24",FISCAL YEAR 2013,"","","","GUDURU,PRATAP K"
,CHIEF ADMIN OFCR OF THE HOUSE,2013Q3,PERSONNEL COMPENSATION,"","GUGLIOTTA,NORMAN",07/01/13,09/30/13,FINANCIAL COUNSELOR (A),"16,179.24",FISCAL YEAR 2013,"","","","GUGLIOTTA,NORMAN"
,CHIEF ADMIN OFCR OF THE HOUSE,2013Q3,PERSONNEL COMPENSATION,"","HALL,MORGAN",07/01/13,09/30/13,FACILITIES MANAGEMENT SPECIALI,"16,569.24",FISCAL YEAR 2013,"","","","HALL,MORGAN"
,CHIEF ADMIN OFCR OF THE HOUSE,2013Q3,PERSONNEL COMPENSATION,"","HAMBRIC, STEEN H",07/01/13,09/30/13,ASSISTANT CAO,"42,102.75",FISCAL YEAR 2013,"","","","HAMBRIC, STEEN H"
,CHIEF ADMIN OFCR OF THE HOUSE,2013Q3,PERSONNEL COMPENSATION,"","HAMEL,RYAN T",07/01/13,09/30/13,THIRD ASSISTANT,"16,569.24",FISCAL YEAR 2013,"","","","HAMEL,RYAN T"
,CHIEF ADMIN OFCR OF THE HOUSE,2013Q3,PERSONNEL COMPENSATION,"","HAMNER, PHILIP D",07/01/13,09/30/13,"DIRECTOR, ACCOUNTING","35,775.51",FISCAL YEAR 2013,"","","","HAMNER, PHILIP D"
,CHIEF ADMIN OFCR OF THE HOUSE,2013Q3,PERSONNEL COMPENSATION,"","HANCOCK, TERRY L",07/01/13,09/01/13,SR INFO SYST. SECURITY ANALYST,"21,734.46",FISCAL YEAR 2013,"","","","HANCOCK, TERRY L"
,CHIEF ADMIN OFCR OF THE HOUSE,2013Q3,PERSONNEL COMPENSATION,"","HANCOCK, TERRY L",09/01/13,09/01/13,SR INFO SYST. SECURITY ANALYST (OTHER COMPENSATION),"10,689.08",FISCAL YEAR 2013,"","","","HANCOCK, TERRY L"
,CHIEF ADMIN OFCR OF THE HOUSE,2013Q3,PERSONNEL COMPENSATION,"","HANCOCK, TERRY L",09/01/13,09/01/13,SR INFO SYST. SECURITY ANALYST (OTHER COMPENSATION),"25,000.00",FISCAL YEAR 2013,"","","","HANCOCK, TERRY L"
,CHIEF ADMIN OFCR OF THE HOUSE,2013Q3,PERSONNEL COMPENSATION,"","HANEY, WINSTON",07/01/13,09/30/13,ACCOUNT MANAGEMENT COUNSELOR,"13,798.50",FISCAL YEAR 2013,"","","","HANEY, WINSTON"
,CHIEF ADMIN OFCR OF THE HOUSE,2013Q3,PERSONNEL COMPENSATION,"","HANONU, TINA M",07/01/13,09/30/13,ASSISTANT CAO,"42,102.75",FISCAL YEAR 2013,"","","","HANONU, TINA M"
,CHIEF ADMIN OFCR OF THE HOUSE,2013Q3,PERSONNEL COMPENSATION,"","HAQ,RABIA",07/01/13,09/30/13,BUSINESS PROC APPLIC SPEC,"23,256.00",FISCAL YEAR 2013,"","","","HAQ,RABIA"
,CHIEF ADMIN OFCR OF THE HOUSE,2013Q3,PERSONNEL COMPENSATION,"","HARGROVE, BRIAN",07/01/13,09/30/13,LOGISTICS & DIST SPEC (A),"10,391.01",FISCAL YEAR 2013,"","","","HARGROVE, BRIAN"
,CHIEF ADMIN OFCR OF THE HOUSE,2013Q3,PERSONNEL COMPENSATION,"","HARRELL,VICKIE",07/01/13,09/30/13,NETWORK TECHNICIAN,"22,551.00",FISCAL YEAR 2013,"","","","HARRELL,VICKIE"
,CHIEF ADMIN OFCR OF THE HOUSE,2013Q3,PERSONNEL COMPENSATION,"","HARRINGTON, KEITH",07/01/13,09/30/13,FINANCIAL COUNSELOR,"22,639.26",FISCAL YEAR 2013,"","","","HARRINGTON, KEITH"
,CHIEF ADMIN OFCR OF THE HOUSE,2013Q3,PERSONNEL COMPENSATION,"","HARRIS, DONALD",07/01/13,09/30/13,SR NETWORK COMM SPECIALIST,"28,454.01",FISCAL YEAR 2013,"","","","HARRIS, DONALD"
,CHIEF ADMIN OFCR OF THE HOUSE,2013Q3,PERSONNEL COMPENSATION,"","HARRIS, KEVIN",07/01/13,09/30/13,JOURNEYMAN FURNITURE SPEC,"18,903.24",FISCAL YEAR 2013,"","","","HARRIS, KEVIN"
,CHIEF ADMIN OFCR OF THE HOUSE,2013Q3,PERSONNEL COMPENSATION,"","HARRIS, STEPHANIE A",07/01/13,09/30/13,SR BUSINESS PROC APPL SPEC II,"42,102.75",FISCAL YEAR 2013,"","","","HARRIS, STEPHANIE A"
,CHIEF ADMIN OFCR OF THE HOUSE,2013Q3,PERSONNEL COMPENSATION,"","HARVEY, JAMIE",07/01/13,09/30/13,SR TELECOMMUNICATIONS ADMIN (A,"16,167.00",FISCAL YEAR 2013,"","","","HARVEY, JAMIE"
,CHIEF ADMIN OFCR OF THE HOUSE,2013Q3,PERSONNEL COMPENSATION,"","HARVEY,KINSEY B",07/01/13,09/30/13,MEDIA LOGISTICS COORDINATOR,"15,789.00",FISCAL YEAR 2013,"","","","HARVEY,KINSEY B"
,CHIEF ADMIN OFCR OF THE HOUSE,2013Q3,PERSONNEL COMPENSATION,"","HARVEY,KINSEY B",09/01/13,09/30/13,MEDIA LOGISTICS COORDINATOR (OTHER COMPENSATION),"2,000.00",FISCAL YEAR 2013,"","","","HARVEY,KINSEY B"
,CHIEF ADMIN OFCR OF THE HOUSE,2013Q3,PERSONNEL COMPENSATION,"","HAYES,KATHLEEN M",07/01/13,09/30/13,CUSTOMER SOLUTIONS REP,"14,481.75",FISCAL YEAR 2013,"","","","HAYES,KATHLEEN M"
,CHIEF ADMIN OFCR OF THE HOUSE,2013Q3,PERSONNEL COMPENSATION,"","HAYES,MICHELLE P",07/01/13,09/30/13,SENIOR SYSTEMS ENGINEER,"31,512.51",FISCAL YEAR 2013,"","","","HAYES,MICHELLE P"
,CHIEF ADMIN OFCR OF THE HOUSE,2013Q3,PERSONNEL COMPENSATION,"","HEEB III, JOHN J",07/01/13,09/30/13,SR BUSINESS PROCESS APPL SPEC,"33,729.51",FISCAL YEAR 2013,"","","","HEEB III, JOHN J"
,CHIEF ADMIN OFCR OF THE HOUSE,2013Q3,PERSONNEL COMPENSATION,"","HEFNER,JEREMY",07/01/13,09/30/13,SR SYSTEMS SECURITY ENGINEER,"32,621.25",FISCAL YEAR 2013,"","","","HEFNER,JEREMY"
,CHIEF ADMIN OFCR OF THE HOUSE,2013Q3,PERSONNEL COMPENSATION,"","HERBERT, GREGORY L",07/01/13,09/30/13,REC/WAREHOUSE SPEC (A),"12,029.49",FISCAL YEAR 2013,"","","","HERBERT, GREGORY L"
,CHIEF ADMIN OFCR OF THE HOUSE,2013Q3,PERSONNEL COMPENSATION,"","HERBERT,DONNA",07/01/13,09/30/13,FINANCIAL ANALYST,"19,502.49",FISCAL YEAR 2013,"","","","HERBERT,DONNA"
,CHIEF ADMIN OFCR OF THE HOUSE,2013Q3,PERSONNEL COMPENSATION,"","HIBBS, CYNTHIA",07/01/13,09/30/13,NETWORK COORDINATOR (A),"18,903.24",FISCAL YEAR 2013,"","","","HIBBS, CYNTHIA"
,CHIEF ADMIN OFCR OF THE HOUSE,2013Q3,PERSONNEL COMPENSATION,"","HILL, TITRA M",06/01/13,09/30/13,RECEPTIONIST,"10,169.79",FISCAL YEAR 2013,"","","","HILL, TITRA M"
,CHIEF ADMIN OFCR OF THE HOUSE,2013Q3,PERSONNEL COMPENSATION,"","HIRSCH, PATRICK A",07/01/13,09/30/13,DIR-HOUSE RECORDING STUDIO,"39,794.25",FISCAL YEAR 2013,"","","","HIRSCH, PATRICK A"
,CHIEF ADMIN OFCR OF THE HOUSE,2013Q3,PERSONNEL COMPENSATION,"","HITE,JASON A",07/01/13,09/30/13,CHIEF HUMAN RESOURCES OFFICER,"36,857.68",FISCAL YEAR 2013,"","","","HITE,JASON A"
,CHIEF ADMIN OFCR OF THE HOUSE,2013Q3,PERSONNEL COMPENSATION,"","HOBBS, DENINE",07/01/13,09/30/13,SPECIAL ASSISTANT,"24,595.50",FISCAL YEAR 2013,"","","","HOBBS, DENINE"
,CHIEF ADMIN OFCR OF THE HOUSE,2013Q3,PERSONNEL COMPENSATION,"","HODGES, JOHN E",07/01/13,09/30/13,"MANAGER, SALES & CUSTOMER SVC","24,777.24",FISCAL YEAR 2013,"","","","HODGES, JOHN E"
,CHIEF ADMIN OFCR OF THE HOUSE,2013Q3,PERSONNEL COMPENSATION,"","HOKHOLD, MARK D",07/01/13,09/30/13,SYSTEMS ENGINEER,"24,595.50",FISCAL YEAR 2013,"","","","HOKHOLD, MARK D"
,CHIEF ADMIN OFCR OF THE HOUSE,2013Q3,PERSONNEL COMPENSATION,"","HOLAU,GEORGE",07/01/13,09/30/13,FINANCIAL COUNSELOR,"20,286.24",FISCAL YEAR 2013,"","","","HOLAU,GEORGE"
,CHIEF ADMIN OFCR OF THE HOUSE,2013Q3,PERSONNEL COMPENSATION,"","HOLLAND, GREGORY",07/01/13,09/30/13,LOGISTICS & DIST SPEC (A),"11,274.00",FISCAL YEAR 2013,"","","","HOLLAND, GREGORY"
,CHIEF ADMIN OFCR OF THE HOUSE,2013Q3,PERSONNEL COMPENSATION,"","HOLLEY, STEVEN M",07/01/13,09/30/13,LOGISTICS & DIST SPEC (A),"10,980.00",FISCAL YEAR 2013,"","","","HOLLEY, STEVEN M"
,CHIEF ADMIN OFCR OF THE HOUSE,2013Q3,PERSONNEL COMPENSATION,"","HOLLIWAY, MONROE",07/01/13,07/01/13,LOGISTICS & DIST SPEC (A) (OTHER COMPENSATION),"25,000.00",FISCAL YEAR 2013,"","","","HOLLIWAY, MONROE"
,CHIEF ADMIN OFCR OF THE HOUSE,2013Q3,PERSONNEL COMPENSATION,"","HOLMBERG, BARBARA A",07/01/13,08/31/13,PAYROLL & BENEFITS ASSISTANT,"5,100.28",FISCAL YEAR 2013,"","","","HOLMBERG, BARBARA A"
,CHIEF ADMIN OFCR OF THE HOUSE,2013Q3,PERSONNEL COMPENSATION,"","HOLMBERG, BARBARA A",08/01/13,08/31/13,PAYROLL & BENEFITS ASSISTANT (OTHER COMPENSATION),"4,935.75",FISCAL YEAR 2013,"","","","HOLMBERG, BARBARA A"
,CHIEF ADMIN OFCR OF THE HOUSE,2013Q3,PERSONNEL COMPENSATION,"","HOLMBERG, BARBARA A",08/01/13,08/31/13,PAYROLL & BENEFITS ASSISTANT (OTHER COMPENSATION),"25,000.00",FISCAL YEAR 2013,"","","","HOLMBERG, BARBARA A"
,CHIEF ADMIN OFCR OF THE HOUSE,2013Q3,PERSONNEL COMPENSATION,"","HORNBURG, RICHARD A",07/01/13,09/30/13,BUSINESS PROC APPLIC SPEC,"27,946.26",FISCAL YEAR 2013,"","","","HORNBURG, RICHARD A"
,CHIEF ADMIN OFCR OF THE HOUSE,2013Q3,PERSONNEL COMPENSATION,"","HORTON, ALFREDDA L",07/01/13,08/31/13,ASSISTANT CAO,"14,502.06",FISCAL YEAR 2013,"","","","HORTON, ALFREDDA L"
,CHIEF ADMIN OFCR OF THE HOUSE,2013Q3,PERSONNEL COMPENSATION,"","HORTON, ALFREDDA L",08/01/13,08/31/13,ASSISTANT CAO (OTHER COMPENSATION),"13,566.44",FISCAL YEAR 2013,"","","","HORTON, ALFREDDA L"
,CHIEF ADMIN OFCR OF THE HOUSE,2013Q3,PERSONNEL COMPENSATION,"","HORTON, ALFREDDA L",08/01/13,08/31/13,ASSISTANT CAO (OTHER COMPENSATION),"25,000.00",FISCAL YEAR 2013,"","","","HORTON, ALFREDDA L"
,CHIEF ADMIN OFCR OF THE HOUSE,2013Q3,PERSONNEL COMPENSATION,"","HOWARD, ANTHONY T",07/01/13,09/30/13,JOURNEYMAN TEXTILE SPEC,"16,505.25",FISCAL YEAR 2013,"","","","HOWARD, ANTHONY T"
,CHIEF ADMIN OFCR OF THE HOUSE,2013Q3,PERSONNEL COMPENSATION,"","HOWARD, ANTHONY T",08/01/13,08/31/13,JOURNEYMAN TEXTILE SPEC (OVERTIME),190.44,FISCAL YEAR 2013,"","","","HOWARD, ANTHONY T"
,CHIEF ADMIN OFCR OF THE HOUSE,2013Q3,PERSONNEL COMPENSATION,"","HUGHES, MICHAEL A",07/01/13,09/30/13,FINANCIAL COUNSELOR,"15,830.01",FISCAL YEAR 2013,"","","","HUGHES, MICHAEL A"
,CHIEF ADMIN OFCR OF THE HOUSE,2013Q3,PERSONNEL COMPENSATION,"","HUGHES, RICHARD N",07/01/13,09/01/13,SENIOR AUDIO SPECIALIST,"19,974.61",FISCAL YEAR 2013,"","","","HUGHES, RICHARD N"
,CHIEF ADMIN OFCR OF THE HOUSE,2013Q3,PERSONNEL COMPENSATION,"","HUGHES, RICHARD N",06/01/13,08/31/13,SENIOR AUDIO SPECIALIST (OVERTIME),935.12,FISCAL YEAR 2013,"","","","HUGHES, RICHARD N"
,CHIEF ADMIN OFCR OF THE HOUSE,2013Q3,PERSONNEL COMPENSATION,"","HUGHES, RICHARD N",09/01/13,09/01/13,SENIOR AUDIO SPECIALIST (OTHER COMPENSATION),"5,648.56",FISCAL YEAR 2013,"","","","HUGHES, RICHARD N"
,CHIEF ADMIN OFCR OF THE HOUSE,2013Q3,PERSONNEL COMPENSATION,"","HUGHES, RICHARD N",09/01/13,09/01/13,SENIOR AUDIO SPECIALIST (OTHER COMPENSATION),"25,000.00",FISCAL YEAR 2013,"","","","HUGHES, RICHARD N"
,CHIEF ADMIN OFCR OF THE HOUSE,2013Q3,PERSONNEL COMPENSATION,"","HUNT,DANIEL",07/01/13,09/30/13,SR NETWORK COMM SPECIALIST,"30,405.24",FISCAL YEAR 2013,"","","","HUNT,DANIEL"
,CHIEF ADMIN OFCR OF THE HOUSE,2013Q3,PERSONNEL COMPENSATION,"","HUNTER, STEVE",07/01/13,09/30/13,ACCOUNT MANAGEMENT COUNSELOR,"13,460.01",FISCAL YEAR 2013,"","","","HUNTER, STEVE"
,CHIEF ADMIN OFCR OF THE HOUSE,2013Q3,PERSONNEL COMPENSATION,"","HURDA, JACQUELINE L",07/01/13,09/30/13,FINANCIAL COUNSELOR (A),"19,894.74",FISCAL YEAR 2013,"","","","HURDA, JACQUELINE L"
,CHIEF ADMIN OFCR OF THE HOUSE,2013Q3,PERSONNEL COMPENSATION,"","ILOG,ANGELA M",07/01/13,09/30/13,CONTRACTS SUPPORT ADMIN,"14,148.00",FISCAL YEAR 2013,"","","","ILOG,ANGELA M"
,CHIEF ADMIN OFCR OF THE HOUSE,2013Q3,PERSONNEL COMPENSATION,"","JACKSON, REGGIE",07/01/13,09/30/13,SR TECHNICAL SUPPORT REP (A),"23,256.00",FISCAL YEAR 2013,"","","","JACKSON, REGGIE"
,CHIEF ADMIN OFCR OF THE HOUSE,2013Q3,PERSONNEL COMPENSATION,"","JACKSON, TREVERA R",07/01/13,09/01/13,SYSTEMS ENGINEER,"15,344.39",FISCAL YEAR 2013,"","","","JACKSON, TREVERA R"
,CHIEF ADMIN OFCR OF THE HOUSE,2013Q3,PERSONNEL COMPENSATION,"","JACKSON, TREVERA R",09/01/13,09/01/13,SYSTEMS ENGINEER (OTHER COMPENSATION),"7,546.42",FISCAL YEAR 2013,"","","","JACKSON, TREVERA R"
